Workbook

Sheet Overblik
A1: =A922 -> Retten i Glostrup | B1: =_xlfn.IFS($A$1=$A$902,B902,$A$1=$A$903,B903,$A$1=$A$904,B904,$A$1=$A$905,B905,$A$1=$A$906,B906,$A$1=$A$907,B907,$A$1=$A$908,B908,$A$1=$A$909,B909,$A$1=$A$910,B910,$A$1=$A$911,B911,$A$1=$A$912,B912,$A$1=$A$913,B913,$A$1=$A$914,B914,$A$1=$A$915,B915,$A$1=$A$916,B916,$A$1=$A$917,B917,$A$1=$A$918,B918,$A$1=$A$919,B919,$A$1=$A$920,B920,$A$1=$A$921,B921,$A$1=$A$922,B922,$A$1=$A$923,B923,$A$1=$A$924,B924,$A$1=$A$925,B925) -> 111.5108257 | C1: =_xlfn.IFS($A$1=$A$902,C902,$A$1=$A$903,C903,$A$1=$A$904,C904,$A$1=$A$905,C905,$A$1=$A$906,C906,$A$1=$A$907,C907,$A$1=$A$908,C908,$A$1=$A$909,C909,$A$1=$A$910,C910,$A$1=$A$911,C911,$A$1=$A$912,C912,$A$1=$A$913,C913,$A$1=$A$914,C914,$A$1=$A$915,C915,$A$1=$A$916,C916,$A$1=$A$917,C917,$A$1=$A$918,C918,$A$1=$A$919,C919,$A$1=$A$920,C920,$A$1=$A$921,C921,$A$1=$A$922,C922,$A$1=$A$923,C923,$A$1=$A$924,C924,$A$1=$A$925,C925) -> 107.2985096 | D1: =_xlfn.IFS($A$1=$A$902,D902,$A$1=$A$903,D903,$A$1=$A$904,D904,$A$1=$A$905,D905,$A$1=$A$906,D906,$A$1=$A$907,D907,$A$1=$A$908,D908,$A$1=$A$909,D909,$A$1=$A$910,D910,$A$1=$A$911,D911,$A$1=$A$912,D912,$A$1=$A$913,D913,$A$1=$A$914,D914,$A$1=$A$915,D915,$A$1=$A$916,D916,$A$1=$A$917,D917,$A$1=$A$918,D918,$A$1=$A$919,D919,$A$1=$A$920,D920,$A$1=$A$921,D921,$A$1=$A$922,D922,$A$1=$A$923,D923,$A$1=$A$924,D924,$A$1=$A$925,D925) -> 105.456 | E1: 104.583 | F1: =_xlfn.IFS($A$1=$A$902,F902,$A$1=$A$903,F903,$A$1=$A$904,F904,$A$1=$A$905,F905,$A$1=$A$906,F906,$A$1=$A$907,F907,$A$1=$A$908,F908,$A$1=$A$909,F909,$A$1=$A$910,F910,$A$1=$A$911,F911,$A$1=$A$912,F912,$A$1=$A$913,F913,$A$1=$A$914,F914,$A$1=$A$915,F915,$A$1=$A$916,F916,$A$1=$A$917,F917,$A$1=$A$918,F918,$A$1=$A$919,F919,$A$1=$A$920,F920,$A$1=$A$921,F921,$A$1=$A$922,F922,$A$1=$A$923,F923,$A$1=$A$924,F924,$A$1=$A$925,F925) -> 116.181 | G1: 119.696 | H1: =_xlfn.IFS($A$1=$A$902,H902,$A$1=$A$903,H903,$A$1=$A$904,H904,$A$1=$A$905,H905,$A$1=$A$906,H906,$A$1=$A$907,H907,$A$1=$A$908,H908,$A$1=$A$909,H909,$A$1=$A$910,H910,$A$1=$A$911,H911,$A$1=$A$912,H912,$A$1=$A$913,H913,$A$1=$A$914,H914,$A$1=$A$915,H915,$A$1=$A$916,H916,$A$1=$A$917,H917,$A$1=$A$918,H918,$A$1=$A$919,H919,$A$1=$A$920,H920,$A$1=$A$921,H921,$A$1=$A$922,H922,$A$1=$A$923,H923,$A$1=$A$924,H924,$A$1=$A$925,H925) -> 0.1561684862 | I1: 0.1879328959 | J1: 162 | K1: 224 | L1: 524.0676797 | M1: 551.2732394 | N1: 138.299454 | O1: 139.1657914 | P1: 41.66 | Q1: 61.5 | R1: 38.31168831 | S1: 22.90909 | T1: 30 | U1: 0 | V1: 13.04044338 | W1: 7.991211987 | X1: 10.35412234 | Y1: 11.26386003 | Z1: 94.55747 | AA1: 102.47903 | AB1: 29.4054 | AC1: 31.43391 | AD1: =_xlfn.IFS($A$1=$A$902,AD902,$A$1=$A$903,AD903,$A$1=$A$904,AD904,$A$1=$A$905,AD905,$A$1=$A$906,AD906,$A$1=$A$907,AD907,$A$1=$A$908,AD908,$A$1=$A$909,AD909,$A$1=$A$910,AD910,$A$1=$A$911,AD911,$A$1=$A$912,AD912,$A$1=$A$913,AD913,$A$1=$A$914,AD914,$A$1=$A$915,AD915,$A$1=$A$916,AD916,$A$1=$A$917,AD917,$A$1=$A$918,AD918,$A$1=$A$919,AD919,$A$1=$A$920,AD920,$A$1=$A$921,AD921,$A$1=$A$922,AD922,$A$1=$A$923,AD923,$A$1=$A$924,AD924,$A$1=$A$925,AD925) -> 54.92075 | AE1: 54.60231 | AF1: 52.57323579 | AG1: 56.00977209 | AH1: =AH902 -> 0 | AI1: =AI902 -> 0 | AJ1: 0
A2: =A ->  | B2: =AH1 -> 0
B3: ÅRSNØGLETAL 2019
I4: Evt. sammenligning
B5: =A1 -> Retten i Glostrup | I5: =B35 -> Retten i Glostrup | L5: Datatabeller
D6: 2018 | E6: 2019 | F6: Gnst. BR 2019 | G6: 5. bedste 2019 | I6: =$D$6 -> 2018 | J6: =$E$6 -> 2019 | L6: KLIK PÅ PILENE FOR AT HOPPE TIL DATA:
B7: Samlet produktivitet, retten (indeks) | D7: =B1 -> 111.5108257 | E7: =C1 -> 107.2985096 | F7: =Produkt.SAML.!$E$6 -> 105.1219723 | G7: =LARGE($C$902:$C$925,5) -> 113.3540865 | I7: =IF($B$5=$I$5,"",C35) ->  | J7: =IF($B$5=$I$5,"",D35) ->  | M7: Produktivitet, samlet for retten
B8: Samlet produktivitet, jurister (indeks) | D8: =D1 -> 105.456 | E8: =E1 -> 104.583 | F8: =Produkt.JUR!$E$6 -> 105.1035373 | G8: =LARGE($E$902:$E$925,5) -> 113.89 | I8: =IF($B$5=$I$5,"",E35) ->  | J8: =IF($B$5=$I$5,"",F35) ->  | M8: Produktivitet, jurister
B9: Samlet produktivitet, kontorfunktionærer (indeks) | D9: =F1 -> 116.181 | E9: =G1 -> 119.696 | F9: =Produkt.KON!$E$6 -> 107.6870982 | G9: =LARGE($G$902:$G$925,5) -> 117.112 | I9: =IF($B$5=$I$5,"",G35) ->  | J9: =IF($B$5=$I$5,"",H35) ->  | M9: Produktivitet, kontor
B10: Årsværksandel til generel ledelse og administration (pct.) | D10: =H1*100 -> 15.61684862 | E10: =I1*100 -> 18.79328959 | F10: ='Generel ledelse_Adm.'!$J$14*100 -> 15.94523724 | I10: =IF($B$5=$I$5,"",I35*100) ->  | J10: =IF($B$5=$I$5,"",J35*100) ->  | M10: Årsværk, ledelse og administration
B11: Gnst. sagsbehandlingstid, domsmandssager (dage) | D11: =J1 -> 162 | E11: =K1 -> 224 | F11: =Sagstid.Straf!$G$6 -> 155.9545677 | G11: =Sagstid.Straf!$G$7 -> 100 | I11: =IF($B$5=$I$5,"",K35) ->  | J11: =IF($B$5=$I$5,"",L35) ->  | M11: Aktivitet ved retten
B12: Gnst. sagsbehandlingstid, hovedforhandlet alm. civil sag (dage) | D12: =L1 -> 524.0676797 | E12: =M1 -> 551.2732394 | F12: =Sagstid.Civil!$E$6 -> 536.7705589 | G12: =Sagstid.Civil!$E$7 -> 434.87925 | I12: =IF($B$5=$I$5,"",M35) ->  | J12: =IF($B$5=$I$5,"",N35) ->  | M12: Målopfyldelse, straffesager
B13: Gnst. sagsbehandlingstid, almindelig fogedsag (dage) | D13: =N1 -> 138.299454 | E13: =O1 -> 139.1657914 | F13: =Sagstid.Foged!$E$6 -> 90.52076599 | G13: =Sagstid.Foged!$E$7 -> 61.58295113 | I13: =IF($B$5=$I$5,"",O35) ->  | J13: =IF($B$5=$I$5,"",P35) ->  | M13: Målopfyldelse, civile sager
B14: Gnst. sagsbehandlingstid, boudlæg (dage) | D14: =P1 -> 41.66 | E14: =Q1 -> 61.5 | F14: =Sagstid.Skifte!$E$6 -> 49.44844328 | G14: =Sagstid.Skifte!$E$7 -> 41.08 | I14: =IF($B$5=$I$5,"",Q35) ->  | J14: =IF($B$5=$I$5,"",R35) ->  | M14: Målopfyldelse, fogedsager
B15: Målopfyldelse, voldssager 37-dages frist (procent) | D15: =R1 -> 38.31168831 | E15: =S1 -> 22.90909 | F15: =Målopf.VVV!$E$9*100 -> 56.48939102 | G15: =Målopf.VVV!$E$10*100 -> 69.33333333 | I15: =IF($B$5=$I$5,"",S35) ->  | J15: =IF($B$5=$I$5,"",T35) ->  | M15: Målopfyldelse, skiftesager
B16: Målopfyldelse, voldtægtssager 37-dages frist (procent) | D16: =IF(T1=999," -",T1) -> 30 | E16: =IF(U1=999," -",U1) -> 0 | F16: =Målopf.VVV!$G$9*100 -> 59.6 | G16: =Målopf.VVV!$G$10*100 -> 88.88888889 | I16: =IF($B$5=$I$5,"",U35) ->  | J16: =IF($B$5=$I$5,"",V35) ->  | M16: Gnst. Sagsbehandlingstid, straffesager
B17: Gnst. sygefravær pr. medarbejder (dage pr. år) | D17: =V1 -> 13.04044338 | E17: =W1 -> 7.991211987 | F17: ='HR-nøgletal_lønsum'!$E$6 -> 9.991245689 | G17: ='HR-nøgletal_lønsum'!$E$7 -> 7.991211987 | I17: =IF($B$5=$I$5,"",W35) ->  | J17: =IF($B$5=$I$5,"",X35) ->  | M17: Gnst. Sagsbehandlingstid, civile sager
B18: Personaleomsætningsprocent (procent) | D18: =X1 -> 10.35412234 | E18: =Y1 -> 11.26386003 | F18: ='HR-nøgletal_lønsum'!$G$6 -> 7.754591385 | I18: =IF($B$5=$I$5,"",Y35) ->  | J18: =IF($B$5=$I$5,"",Z35) ->  | M18: Gnst. Sagsbehandlingstid, fogedsager
B19: Samlet årsværksforbrug, retten (årsværk) | D19: =Z1 -> 94.55747 | E19: =AA1 -> 102.47903 | F19: =Årsværk_Pers.kat!$O$8/24 -> 61.27335917 | I19: =IF($B$5=$I$5,"",AA35) ->  | J19: =IF($B$5=$I$5,"",AB35) ->  | M19: Gnst. Sagsbehandlingstid, skiftesager
B20: Samlet årsværksforbrug, jurister (årsværk) | D20: =AB1 -> 29.4054 | E20: =AC1 -> 31.43391 | F20: =Årsværk_Pers.kat!$J$8/24 -> 17.62527208 | I20: =IF($B$5=$I$5,"",AC35) ->  | J20: =IF($B$5=$I$5,"",AD35) ->  | M20: HR-nøgletal
B21: Samlet årsværksforbrug, kontorfunktionærer (årsværk) | D21: =AD1 -> 54.92075 | E21: =AE1 -> 54.60231 | F21: =Årsværk_Pers.kat!$K$8/24 -> 34.33707458 | I21: =IF($B$5=$I$5,"",AE35) ->  | J21: =IF($B$5=$I$5,"",AF35) ->  | M21: Årsværksforbrug, personalekategorier
B22: Samlet lønsumsforbrug (mio. kr.) | D22: =AF1 -> 52.57323579 | E22: =AG1 -> 56.00977209 | F22: ='HR-nøgletal_lønsum'!$I$6 -> 34.21696257 | I22: =IF($B$5=$I$5,"",AG35) ->  | J22: =IF($B$5=$I$5,"",AH35) ->  | M22: Årsværksforbrug, sagsområder
B24: Noter:
B25: 1) Ved beregningen af indeks for produktivitet samlet for retten, for jurister og kontor er indeks 100 lig gennemsnittet ved byretterne i 2012.
B27: 2) Årsværksandel til generel ledelse og administration er samlet for retten og inkluderer alle personalegrupper.
B28: 3) Den gennemsnitlige sagsbehandlingstid for en hovedforhandlet almindelig civil sag inkluderer sagstypen almindelige sager. Boligretssager og småsager indgår ikke.
B29: 4) Ansatte under socialt kapitel indgår ikke i beregningen af det gennemsnitlige sygefravær pr. medarbejder (årsværk).
B30: 5) Lønsumsforbruget inkluderer egentlig løn, over- og merarbejde, stævningsmænd, refusioner og pensionsbidrag.
B32: KLIK FOR AT AKTIVERE SAMMENLIGNING:
B34: =A926 -> 0 | C34: =B925 -> 64.68182868 | D34: 73.39619857 | E34: 65.668 | F34: 82.338 | G34: 72.646 | H34: 73.798 | I34: 0.276770563 | J34: 0.3558409958 | K34: 41 | L34: 42 | M34: 414.2488235 | N34: 226.512 | O34: 26.96698523 | P34: 24.85339885 | Q34: 23.76 | R34: 22.59 | S34: 89.47368421 | T34: 93.54839 | U34: 66.66666667 | V34: 100 | W34: 11.35858 | X34: 10.86696409 | Y34: 10.3713778 | Z34: 9.860065479 | AA34: 13.85144 | AB34: 12.71958 | AC34: 3.38544 | AD34: 2.85849 | AE34: 6.97781 | AF34: 7.07779 | AG34: 8.9885132
B35: =A922 -> Retten i Glostrup | C35: =B922 -> 111.5108257 | D35: 107.2985096 | E35: 105.456 | F35: 104.583 | G35: 116.181 | H35: 119.696 | I35: 0.1561684862 | J35: 0.1879328959 | K35: 162 | L35: 224 | M35: 524.0676797 | N35: 551.2732394 | O35: 138.299454 | P35: 139.1657914 | Q35: 41.66 | R35: 61.5 | S35: 38.31168831 | T35: 22.90909 | U35: 30 | V35: 0 | W35: 13.04044338 | X35: 7.991211987 | Y35: 10.35412234 | Z35: 11.26386003 | AA35: 94.55747 | AB35: 102.47903 | AC35: 29.4054 | AD35: 31.43391 | AE35: 54.92075 | AF35: 54.60231 | AG35: 52.57323579 | AH35: 56.00977209 | AI35: 0
B900: Samlet produktivitet, retten | D900: Samlet produktivitet, jurister | F900: Samlet produktivitet, kontor | H900: ÅRVK ledelse og adm. (andel) | J900: Sagstider domsmandssager | L900: Sagstider hfh. alm. Civil | N900: Sagstid alm. fogedsag | P900: Sagstider boudlæg | R900: Målopfyldelse vold | T900: Målopfyldelse voldtægt | V900: Sygefravær | X900: Personaleomsætning | Z900: Årsværk retten | AB900: Årsværk jurist | AD900: Årsværk kontor | AF900: Samlet lønsum
A901: Ret | B901: =$D$6 -> 2018 | C901: =$E$6 -> 2019 | D901: =$D$6 -> 2018 | E901: =$E$6 -> 2019 | F901: =$D$6 -> 2018 | G901: =$E$6 -> 2019 | H901: =$D$6 -> 2018 | I901: =$E$6 -> 2019 | J901: =$D$6 -> 2018 | K901: =$E$6 -> 2019 | L901: =$D$6 -> 2018 | M901: =$E$6 -> 2019 | N901: =$D$6 -> 2018 | O901: =$E$6 -> 2019 | P901: =$D$6 -> 2018 | Q901: =$E$6 -> 2019 | R901: =$D$6 -> 2018 | S901: =$E$6 -> 2019 | T901: =$D$6 -> 2018 | U901: =$E$6 -> 2019 | V901: =$D$6 -> 2018 | W901: =$E$6 -> 2019 | X901: =$D$6 -> 2018 | Y901: =$E$6 -> 2019 | Z901: =$D$6 -> 2018 | AA901: =$E$6 -> 2019 | AB901: =$D$6 -> 2018 | AC901: =$E$6 -> 2019 | AD901: =$D$6 -> 2018 | AE901: =$E$6 -> 2019 | AF901: =$D$6 -> 2018 | AG901: =$E$6 -> 2019
A902: Retten i Hjørring | B902: 102.20145 | C902: 112.076593 | D902: 103.477 | E902: 117.349 | F902: 103.54 | G902: 111.244 | H902: 0.1289432339 | I902: 0.1290745072 | J902: 107 | K902: 142 | L902: 483.197134 | M902: 462.0350968 | N902: 56.75281778 | O902: 83.18656963 | P902: 55.55 | Q902: 53.3 | R902: 56.75675676 | S902: 62.76596 | T902: 20 | U902: 42.85714286 | V902: 5.730838319 | W902: 11.67115635 | X902: 10.15364941 | Y902: 3.903345536 | Z902: 47.45743 | AA902: 50.23317 | AB902: 12.88924 | AC902: 12.66472 | AD902: 26.81338 | AE902: 27.7287 | AF902: 24.63338445 | AG902: 26.111157
A903: Retten i Aalborg | B903: 115.8585436 | C903: 107.7549111 | D903: 121.721 | E903: 104.473 | F903: 107.735 | G903: 109.199 | H903: 0.109728511 | I903: 0.1166867083 | J903: 142 | K903: 159 | L903: 500.4864583 | M903: 611.2285263 | N903: 64.98275331 | O903: 99.13823556 | P903: 51.77 | Q903: 41.08 | R903: 47.95918367 | S903: 53.84615 | T903: 21.42857143 | U903: 57.14285714 | V903: 6.501520143 | W903: 4.914900277 | X903: 12.11743046 | Y903: 6.144358204 | Z903: 70.94727 | AA903: 73.36204 | AB903: 19.47866 | AC903: 21.33205 | AD903: 41.1891 | AE903: 41.12848 | AF903: 37.55113361 | AG903: 39.79516638
A904: Retten i Randers | B904: 104.2428615 | C904: 111.0237562 | D904: 101.787 | E904: 110.78 | F904: 107.38 | G904: 108.796 | H904: 0.1248461076 | I904: 0.1481330344 | J904: 139 | K904: 169 | L904: 505.0009714 | M904: 592.163325 | N904: 114.9492871 | O904: 133.470018 | P904: 55.88 | Q904: 52.48 | R904: 38.57142857 | S904: 62.92135 | T904: 100 | U904: 40 | V904: 10.27738974 | W904: 12.67798225 | X904: 5.51325207 | Y904: 10.05702783 | Z904: 45.91017 | AA904: 49.9968 | AB904: 12.61336 | AC904: 12.89042 | AD904: 26.26789 | AE904: 28.71551 | AF904: 25.69024243 | AG904: 27.61360852
A905: Retten i Århus | B905: 111.8712875 | C905: 100.2860352 | D905: 114.932 | E905: 106.536 | F905: 110.276 | G905: 103.672 | H905: 0.134367586 | I905: 0.1843404481 | J905: 222 | K905: 276 | L905: 608.8778621 | M905: 702.1536889 | N905: 105.2783143 | O905: 141.2140711 | P905: 71.46 | Q905: 70.62 | R905: 61.81818182 | S905: 66.4 | T905: 0 | U905: 76.92307692 | V905: 16.58179415 | W905: 15.50239535 | X905: 15.63153285 | Y905: 12.5637887 | Z905: 76.13153 | AA905: 83.60515 | AB905: 22.51301 | AC905: 23.68577 | AD905: 43.37522 | AE905: 46.00667 | AF905: 42.70973142 | AG905: 46.19907028
A906: Retten i Viborg | B906: 104.5001039 | C906: 104.0821507 | D906: 104.077 | E906: 105.306 | F906: 109.353 | G906: 106.636 | H906: 0.1487838925 | I906: 0.1492367803 | J906: 147 | K906: 194 | L906: 576.0712941 | M906: 633.0053438 | N906: 65.28458003 | O906: 85.76863253 | P906: 51.84 | Q906: 49.19 | R906: 23.75 | S906: 61.5894 | T906: 31.25 | U906: 61.11111111 | V906: 13.37190019 | W906: 11.70690067 | X906: 18.18388198 | Y906: 14.42686509 | Z906: 49.86798 | AA906: 52.37116 | AB906: 13.51215 | AC906: 14.17594 | AD906: 26.61592 | AE906: 28.03704 | AF906: 25.50201953 | AG906: 26.83659024
A907: Retten i Holstebro | B907: 109.485698 | C907: 117.829256 | D907: 116.448 | E907: 124.733 | F907: 105.19 | G907: 113.674 | H907: 0.1885280229 | I907: 0.1752695081 | J907: 79 | K907: 63 | L907: 508.6731 | M907: 434.87925 | N907: 44.95084327 | O907: 45.24340842 | P907: 62.87 | Q907: 41.87 | R907: 71.08433735 | S907: 77.22772 | T907: 87.5 | U907: 42.85714286 | V907: 5.036595683 | W907: 13.78194312 | X907: 21.09435374 | Y907: 1.591760603 | Z907: 33.99519 | AA907: 32.7997 | AB907: 8.34288 | AC907: 7.9746 | AD907: 19.72015 | AE907: 18.95781 | AF907: 18.50196768 | AG907: 18.84726757
A908: Retten i Herning | B908: 110.1188962 | C908: 115.9783765 | D908: 105.911 | E908: 110.919 | F908: 113.659 | G908: 119.63 | H908: 0.1120340411 | I908: 0.1101086845 | J908: 106 | K908: 84 | L908: 449.2415065 | M908: 469.49214 | N908: 61.50138013 | O908: 73.99461685 | P908: 58.18 | Q908: 62.94 | R908: 75.49019608 | S908: 69.33333 | T908: 75 | U908: 75 | V908: 6.765788574 | W908: 3.463521823 | X908: 5.628443228 | Y908: 9.28334349 | Z908: 36.90117 | AA908: 39.17047 | AB908: 11.22781 | AC908: 12.0754 | AD908: 20.51485 | AE908: 22.03605 | AF908: 19.68615417 | AG908: 21.25259036
A909: Retten i Horsens | B909: 113.399628 | C909: 103.523099 | D909: 109.803 | E909: 96.563 | F909: 132.325 | G909: 122.067 | H909: 0.1794090346 | I909: 0.1780478906 | J909: 119 | K909: 190 | L909: 494.4026486 | M909: 447.956962 | N909: 72.30747078 | O909: 61.58295113 | P909: 56.3 | Q909: 52.02 | R909: 25.51020408 | S909: 38.61386 | T909: 0 | U909: 0 | V909: 12.16187031 | W909: 7.233343083 | X909: 20.93666005 | Y909: 6.695085913 | Z909: 41.46281 | AA909: 42.97502 | AB909: 11.43512 | AC909: 12.15434 | AD909: 18.6924 | AE909: 19.70622 | AF909: 21.3643055 | AG909: 21.82319903
A910: Retten i Kolding | B910: 107.3166197 | C910: 109.8752983 | D910: 100.646 | E910: 106.347 | F910: 113.673 | G910: 113.727 | H910: 0.1378757966 | I910: 0.1397230464 | J910: 110 | K910: 142 | L910: 512.4342524 | M910: 574.5305047 | N910: 55.49160207 | O910: 73.49851787 | P910: 41.46 | Q910: 30.37 | R910: 62.99212598 | S910: 55.66038 | T910: 28.57142857 | U910: 53.84615385 | V910: 8.391346653 | W910: 12.08875968 | X910: 7.1205379 | Y910: 5.077183052 | Z910: 65.64702 | AA910: 68.95616 | AB910: 19.64304 | AC910: 19.98124 | AD910: 36.20283 | AE910: 38.57853 | AF910: 35.27060904 | AG910: 38.02560596
A911: Retten i Esbjerg | B911: 105.1303341 | C911: 109.2275438 | D911: 102.641 | E911: 103.969 | F911: 108.223 | G911: 117.349 | H911: 0.1225090472 | I911: 0.1416092602 | J911: 159 | K911: 182 | L911: 598.1892558 | M911: 691.9972405 | N911: 51.58879047 | O911: 58.18642104 | P911: 64.94 | Q911: 56.95 | R911: 68.23529412 | S911: 56.29139 | T911: 100 | U911: 66.66666667 | V911: 18.08001835 | W911: 11.4069261 | X911: 11.85258732 | Y911: 16.34641659 | Z911: 44.84445 | AA911: 44.74226 | AB911: 13.10119 | AC911: 14.03954 | AD911: 25.97283 | AE911: 25.59647 | AF911: 24.48879049 | AG911: 25.72227133
A912: Retten i Sønderborg | B912: 112.4553808 | C912: 112.3238075 | D912: 114.763 | E912: 110.528 | F912: 113.229 | G912: 116.737 | H912: 0.1834792851 | I912: 0.1633166862 | J912: 131 | K912: 158 | L912: 566.124 | M912: 618.5721905 | N912: 73.1895683 | O912: 118.0636 | P912: 61.25 | Q912: 64.7 | R912: 56.60377358 | S912: 66.87898 | T912: 37.5 | U912: 54.54545455 | V912: 7.159856839 | W912: 6.351825041 | X912: 19.34537469 | Y912: 11.31449527 | Z912: 52.19876 | AA912: 56.95854 | AB912: 14.82488 | AC912: 15.90641 | AD912: 30.28972 | AE912: 33.08726 | AF912: 30.6269769 | AG912: 33.56342849
A913: Retten i Odense | B913: 112.2581009 | C913: 113.3540865 | D913: 115.751 | E913: 116.968 | F913: 109.119 | G913: 112.191 | H913: 0.1350397946 | I913: 0.1457252565 | J913: 89 | K913: 96 | L913: 497.5723671 | M913: 483.0985714 | N913: 75.39640434 | O913: 83.8533388 | P913: 47.46 | Q913: 46.97 | R913: 69.84126984 | S913: 56.92308 | T913: 58.62068966 | U913: 70 | V913: 8.051195822 | W913: 8.39718208 | X913: 6.960939618 | Y913: 6.574732047 | Z913: 69.05747 | AA913: 72.79689 | AB913: 18.98083 | AC913: 19.90301 | AD913: 42.31545 | AE913: 42.66025 | AF913: 37.49781746 | AG913: 39.38804959
A914: Retten i Svendborg | B914: 105.9425579 | C914: 96.53896714 | D914: 102.076 | E914: 97.275 | F914: 120.555 | G914: 105.108 | H914: 0.1705051936 | I914: 0.196934668 | J914: 171 | K914: 137 | L914: 527.6092208 | M914: 576.8277273 | N914: 106.4509033 | O914: 86.17469965 | P914: 54.89 | Q914: 38.42 | R914: 63.33333333 | S914: 53.84615 | T914: 36.36363636 | U914: 71.42857143 | V914: 9.574065984 | W914: 8.845553632 | X914: 5.258645265 | Y914: 7.581411514 | Z914: 35.81943 | AA914: 38.04629 | AB914: 10.38663 | AC914: 10.29846 | AD914: 19.45462 | AE914: 22.06089 | AF914: 19.67457372 | AG914: 20.67479059
A915: Retten i Nykøbing F. | B915: 113.3838113 | C915: 110.2722281 | D915: 119.249 | E915: 117 | F915: 107.594 | G915: 104.233 | H915: 0.1780803521 | I915: 0.170142519 | J915: 77 | K915: 100 | L915: 417.4611316 | M915: 419.7739565 | N915: 75.24575477 | O915: 69.83249628 | P915: 36.98 | Q915: 34.62 | R915: 72.54901961 | S915: 64 | T915: 85.71428571 | U915: 92.30769231 | V915: 6.637582669 | W915: 13.74577269 | X915: 8.994663904 | Y915: 1.997661158 | Z915: 47.42799 | AA915: 49.63078 | AB915: 12.65826 | AC915: 13.10207 | AD915: 30.50041 | AE915: 31.37255 | AF915: 25.1439967 | AG915: 26.45936466
A916: Retten i Næstved | B916: 123.1712889 | C916: 115.8199734 | D916: 122.016 | E916: 113.89 | F916: 123.001 | G916: 115.147 | H916: 0.1798204654 | I916: 0.1761849441 | J916: 132 | K916: 116 | L916: 487.5312 | M916: 604.5916047 | N916: 93.02628621 | O916: 78.49596651 | P916: 49.46 | Q916: 43.4 | R916: 78.49462366 | S916: 69.58763 | T916: 71.42857143 | U916: 64.28571429 | V916: 7.687176755 | W916: 10.59558133 | X916: 4.710463807 | Y916: 7.46576825 | Z916: 58.60537 | AA916: 64.63253 | AB916: 16.5859 | AC916: 18.96357 | AD916: 34.38183 | AE916: 38.1185 | AF916: 30.50068776 | AG916: 34.58996023
A917: Retten i Holbæk | B917: 99.79717626 | C917: 98.19585994 | D917: 100.885 | E917: 94.072 | F917: 100.592 | G917: 104.497 | H917: 0.1586128563 | I917: 0.1505526444 | J917: 130 | K917: 146 | L917: 421.733194 | M917: 547.222 | N917: 61.83408135 | O917: 82.871695 | P917: 38.81 | Q917: 55.99 | R917: 44.44444444 | S917: 44.7619 | T917: 25 | U917: 88.88888889 | V917: 5.26581695 | W917: 8.156396919 | X917: 14.8645185 | Y917: 3.067526945 | Z917: 42.06539 | AA917: 44.03951 | AB917: 11.24375 | AC917: 12.47353 | AD917: 23.78151 | AE917: 23.60285 | AF917: 21.74829751 | AG917: 23.29342936
A918: Retten i Roskilde | B918: 110.6857997 | C918: 113.6323279 | D918: 106.004 | E918: 110.739 | F918: 110.642 | G918: 110.488 | H918: 0.1295498188 | I918: 0.1365298651 | J918: 124 | K918: 119 | L918: 482.82 | M918: 538.7802439 | N918: 63.65395454 | O918: 66.60530039 | P918: 51.27 | Q918: 48.38 | R918: 67.70833333 | S918: 72.97297 | T918: 33.33333333 | U918: 100 | V918: 11.85945551 | W918: 10.80271587 | X918: 5.984630325 | Y918: 5.962924109 | Z918: 63.27168 | AA918: 65.81558 | AB918: 19.60239 | AC918: 20.41889 | AD918: 37.85466 | AE918: 38.95097 | AF918: 36.19257958 | AG918: 38.22246046
A919: Retten i Hillerød | B919: 104.6465332 | C919: 100.7493532 | D919: 101.38 | E919: 96.914 | F919: 125.719 | G919: 117.112 | H919: 0.1673007554 | I919: 0.1646398917 | J919: 115 | K919: 126 | L919: 407.7776066 | M919: 430.5937297 | N919: 64.04495934 | O919: 71.56656245 | P919: 48.38 | Q919: 50.15 | R919: 65.82278481 | S919: 50.57471 | T919: 55.55555556 | U919: 56.25 | V919: 7.006743778 | W919: 11.55266253 | X919: 7.881058842 | Y919: 6.664722272 | Z919: 46.80683 | AA919: 48.80015 | AB919: 13.3924 | AC919: 13.82417 | AD919: 21.72779 | AE919: 22.90455 | AF919: 24.90650638 | AG919: 26.63702221
A920: Retten i Helsingør | B920: 103.0572938 | C920: 111.8067746 | D920: 95.505 | E920: 111.149 | F920: 112.412 | G920: 116.124 | H920: 0.1649513473 | I920: 0.1628508888 | J920: 102 | K920: 115 | L920: 426.864466 | M920: 527.4568605 | N920: 89.01426471 | O920: 75.39681881 | P920: 51.31 | Q920: 44.55 | R920: 53.62318841 | S920: 58.90411 | T920: 66.66666667 | U920: 100 | V920: 11.29010186 | W920: 9.663325152 | X920: 12.37549035 | Y920: 14.71902355 | Z920: 43.30169 | AA920: 42.37615 | AB920: 12.74285 | AC920: 11.52174 | AD920: 23.03527 | AE920: 22.60817 | AF920: 23.08191679 | AG920: 22.78936598
A921: Retten i Lyngby | B921: 92.63409319 | C921: 98.57666569 | D921: 82.423 | E921: 97.502 | F921: 104.538 | G921: 101.317 | H921: 0.1748479161 | I921: 0.1800777638 | J921: 91 | K921: 130 | L921: 365.2606941 | M921: 404.079 | N921: 63.52278313 | O921: 59.41920865 | P921: 43.77 | Q921: 45.43 | R921: 58.33333333 | S921: 42.10526 | T921: 60 | U921: 75 | V921: 12.46306964 | W921: 11.56803069 | X921: 14.24446056 | Y921: 10.46799048 | Z921: 52.85992 | AA921: 52.39202 | AB921: 16.20458 | AC921: 14.33953 | AD921: 28.25268 | AE921: 29.99244 | AF921: 30.56093986 | AG921: 29.49295619
A922: Retten i Glostrup | B922: 111.5108257 | C922: 107.2985096 | D922: 105.456 | E922: 104.583 | F922: 116.181 | G922: 119.696 | H922: 0.1561684862 | I922: 0.1879328959 | J922: 162 | K922: 224 | L922: 524.0676797 | M922: 551.2732394 | N922: 138.299454 | O922: 139.1657914 | P922: 41.66 | Q922: 61.5 | R922: 38.31168831 | S922: 22.90909 | T922: 30 | U922: 0 | V922: 13.04044338 | W922: 7.991211987 | X922: 10.35412234 | Y922: 11.26386003 | Z922: 94.55747 | AA922: 102.47903 | AB922: 29.4054 | AC922: 31.43391 | AD922: 54.92075 | AE922: 54.60231 | AF922: 52.57323579 | AG922: 56.00977209
A923: Retten på Frederiksberg | B923: 96.56725848 | C923: 88.50987398 | D923: 89.447 | E923: 89.663 | F923: 106.434 | G923: 95.329 | H923: 0.1256400793 | I923: 0.1594661329 | J923: 144 | K923: 153 | L923: 587.0411512 | M923: 597.115362 | N923: 113.2241101 | O923: 119.3118174 | P923: 46.08 | Q923: 49.56 | R923: 52.17391304 | S923: 43.16547 | T923: 38.46153846 | U923: 30 | V923: 13.12803276 | W923: 9.979172097 | X923: 10.2057964 | Y923: 8.561199536 | Z923: 77.90809 | AA923: 87.46828 | AB923: 24.80539 | AC923: 25.54208 | AD923: 41.52306 | AE923: 45.77945 | AF923: 45.444564 | AG923: 47.90256278
A924: Københavns Byret | B924: 95.3437124 | C924: 97.19139164 | D924: 97.864 | E924: 100.146 | F924: 90.612 | G924: 92.046 | H924: 0.169346859 | I924: 0.1553566051 | J924: 152 | K924: 164 | L924: 495.7333333 | M924: 500.5578078 | N924: 84.75326759 | O924: 84.03561376 | P924: 54.98 | Q924: 42.3 | R924: 49.47368421 | S924: 54.28571 | T924: 28.57142857 | U924: 35.29411765 | V924: 7.053268655 | W924: 9.243422429 | X924: 5.242178625 | Y924: 3.273865564 | Z924: 188.1861 | AA924: 194.19336 | AB924: 59.50228 | AC924: 61.44665 | AD924: 111.3338 | AE924: 114.78033 | AF924: 114.8730123 | AG924: 120.6381034
A925: Retten på Bornholm | B925: 64.68182868 | C925: 73.39619857 | D925: 65.668 | E925: 82.338 | F925: 72.646 | G925: 73.798 | H925: 0.276770563 | I925: 0.3558409958 | J925: 41 | K925: 42 | L925: 414.2488235 | M925: 226.512 | N925: 26.96698523 | O925: 24.85339885 | P925: 23.76 | Q925: 22.59 | R925: 89.47368421 | S925: 93.54839 | T925: 66.66666667 | U925: 100 | V925: 11.35858 | W925: 10.86696409 | X925: 10.3713778 | Y925: 9.860065479 | Z925: 13.85144 | AA925: 12.71958 | AB925: 3.38544 | AC925: 2.85849 | AD925: 6.97781 | AE925: 7.07779 | AF925: 8.9885132 | AG925: 9.31930893

Sheet Produkt.SAML.
B2: PRODUKTIVITETSINDEKS SAMLET FOR RETTEN
D4: Samlet | F4: Retssager | H4: Straffesager | J4: Civile sager | L4: Fogedsager | N4: Skiftesager
D5: =Overblik!$D$6 -> 2018 | E5: =Overblik!$E$6 -> 2019 | F5: =Overblik!$D$6 -> 2018 | G5: =Overblik!$E$6 -> 2019 | H5: =Overblik!$D$6 -> 2018 | I5: =Overblik!$E$6 -> 2019 | J5: =Overblik!$D$6 -> 2018 | K5: =Overblik!$E$6 -> 2019 | L5: =Overblik!$D$6 -> 2018 | M5: =Overblik!$E$6 -> 2019 | N5: =Overblik!$D$6 -> 2018 | O5: =Overblik!$E$6 -> 2019
C6: SAMLET BYRETTERNE | D6: 105.8836368 | E6: 105.1219723 | F6: 103.1594535 | G6: 101.5383587 | H6: 102.6789566 | I6: 97.46159646 | J6: 103.3774138 | K6: 106.8264887 | L6: 107.2423088 | M6: 107.4789019 | N6: 117.0582056 | O6: 120.5605241
C7: 5. BEDSTE RET | D7: =LARGE(D9:D32,5) -> 112.4553808 | E7: =LARGE(E9:E32,5) -> 113.3540865 | F7: 103.2987214 | G7: 113.5103402 | H7: 100.8409392 | I7: 116.628359 | J7: 112.1092609 | K7: 117.0648117 | L7: 118.7201552 | M7: 119.5436893 | N7: 135.7425492 | O7: 134.7558872
B8: EID | C8: Ret
B9: 901 | C9: Retten i Hjørring | D9: =Overblik!$B902 -> 102.20145 | E9: =Overblik!$C902 -> 112.076593 | F9: 89.72551568 | G9: 96.75767535 | H9: 80.54646306 | I9: 96.92185206 | J9: 99.86071644 | K9: 96.45907235 | L9: 115.6929616 | M9: 98.26845123 | N9: 138.6094189 | O9: 134.7558872
B10: 902 | C10: Retten i Aalborg | D10: =Overblik!$B903 -> 115.8585436 | E10: =Overblik!$C903 -> 107.7549111 | F10: 96.36421067 | G10: 123.8723884 | H10: 98.42596363 | I10: 119.4267107 | J10: 94.22485265 | K10: 129.3044753 | L10: 103.0704531 | M10: 89.86054509 | N10: 111.6556714 | O10: 117.8334141
B11: 903 | C11: Retten i Randers | D11: =Overblik!$B904 -> 104.2428615 | E11: =Overblik!$C904 -> 111.0237562 | F11: 85.49077048 | G11: 93.58989286 | H11: 88.57295091 | I11: 97.65453777 | J11: 82.59736371 | K11: 89.5154243 | L11: 111.946327 | M11: 117.5024026 | N11: 132.0144646 | O11: 129.9375981
B12: 904 | C12: Retten i Århus | D12: =Overblik!$B905 -> 111.8712875 | E12: =Overblik!$C905 -> 100.2860352 | F12: 87.40501283 | G12: 106.22841 | H12: 80.21431293 | I12: 98.17470683 | J12: 99.90368719 | K12: 119.8432296 | L12: 107.3861992 | M12: 128.0825591 | N12: 113.4011608 | O12: 123.0366126
B13: 905 | C13: Retten i Viborg | D13: =Overblik!$B906 -> 104.5001039 | E13: =Overblik!$C906 -> 104.0821507 | F13: 95.82119337 | G13: 100.9067301 | H13: 98.35182262 | I13: 98.76720363 | J13: 93.76048554 | K13: 103.2649908 | L13: 92.32467429 | M13: 96.80993069 | N13: 139.8731234 | O13: 134.3102756
B14: 906 | C14: Retten i Holstebro | D14: =Overblik!$B907 -> 109.485698 | E14: =Overblik!$C907 -> 117.829256 | F14: 97.24872598 | G14: 114.6320693 | H14: 95.16200163 | I14: 115.2241202 | J14: 99.62192812 | K14: 113.2108317 | L14: 122.1553283 | M14: 105.6594336 | N14: 135.7425492 | O14: 101.8456985
B15: 907 | C15: Retten i Herning | D15: =Overblik!$B908 -> 110.1188962 | E15: =Overblik!$C908 -> 115.9783765 | F15: 103.2344192 | G15: 113.5103402 | H15: 100.8409392 | I15: 116.628359 | J15: 106.0076202 | K15: 107.9637046 | L15: 99.23018532 | M15: 90.95962347 | N15: 110.0449873 | O15: 123.5796209
B16: 908 | C16: Retten i Horsens | D16: =Overblik!$B909 -> 113.399628 | E16: =Overblik!$C909 -> 103.523099 | F16: 100.469381 | G16: 117.6613165 | H16: 88.79901334 | I16: 110.1225321 | J16: 111.7488478 | K16: 126.2227442 | L16: 82.45876106 | M16: 103.7068465 | N16: 100.4416175 | O16: 116.8977653
B17: 909 | C17: Retten i Kolding | D17: =Overblik!$B910 -> 107.3166197 | E17: =Overblik!$C910 -> 109.8752983 | F17: 103.2987214 | G17: 96.63817746 | H17: 99.58044849 | I17: 94.60294874 | J17: 107.6282047 | K17: 99.01189546 | L17: 120.5805045 | M17: 123.4352214 | N17: 137.0896629 | O17: 148.2563831
B18: 910 | C18: Retten i Esbjerg | D18: =Overblik!$B911 -> 105.1303341 | E18: =Overblik!$C911 -> 109.2275438 | F18: 87.41782327 | G18: 102.6504848 | H18: 81.12971675 | I18: 95.44758699 | J18: 99.15370043 | K18: 117.0648117 | L18: 98.79620093 | M18: 94.88922102 | N18: 116.6617158 | O18: 134.6249052
B19: 911 | C19: Retten i Sønderborg | D19: =Overblik!$B912 -> 112.4553808 | E19: =Overblik!$C912 -> 112.3238075 | F19: 99.10843877 | G19: 108.9311581 | H19: 112.1232184 | I19: 135.0005911 | J19: 82.3160523 | K19: 78.67665885 | L19: 118.7201552 | M19: 109.583648 | N19: 127.0897545 | O19: 141.2477254
B20: 912 | C20: Retten i Odense | D20: =Overblik!$B913 -> 112.2581009 | E20: =Overblik!$C913 -> 113.3540865 | F20: 105.0849843 | G20: 107.183718 | H20: 95.1821268 | I20: 101.7332279 | J20: 120.7012904 | K20: 115.3102506 | L20: 126.312511 | M20: 119.1530989 | N20: 112.3653845 | O20: 124.2126096
B21: 913 | C21: Retten i Svendborg | D21: =Overblik!$B914 -> 105.9425579 | E21: =Overblik!$C914 -> 96.53896714 | F21: 92.42906514 | G21: 89.21937199 | H21: 80.01263356 | I21: 79.92065717 | J21: 113.7828307 | K21: 103.2786573 | L21: 105.4080959 | M21: 116.4736209 | N21: 160.9643934 | O21: 171.7227105
B22: 914 | C22: Retten i Nykøbing F. | D22: =Overblik!$B915 -> 113.3838113 | E22: =Overblik!$C915 -> 110.2722281 | F22: 101.0780191 | G22: 111.5261696 | H22: 94.39126335 | I22: 111.3097324 | J22: 112.1092609 | K22: 110.9327269 | L22: 109.4151105 | M22: 118.7929116 | N22: 114.4357558 | O22: 114.7257743
B23: 915 | C23: Retten i Næstved | D23: =Overblik!$B916 -> 123.1712889 | E23: =Overblik!$C916 -> 115.8199734 | F23: 119.4419677 | G23: 125.228349 | H23: 114.2586875 | I23: 121.4107693 | J23: 126.4980824 | K23: 130.9563897 | L23: 115.8929993 | M23: 112.7758329 | N23: 124.7335327 | O23: 131.7836322
B24: 916 | C24: Retten i Holbæk | D24: =Overblik!$B917 -> 99.79717626 | E24: =Overblik!$C917 -> 98.19585994 | F24: 88.9739072 | G24: 98.99103851 | H24: 77.48123223 | I24: 92.09840899 | J24: 102.1197314 | K24: 108.2476008 | L24: 95.7294427 | M24: 95.84361044 | N24: 110.8698545 | O24: 111.8731401
B25: 917 | C25: Retten i Roskilde | D25: =Overblik!$B918 -> 110.6857997 | E25: =Overblik!$C918 -> 113.6323279 | F25: 107.6115951 | G25: 106.3254856 | H25: 97.23286953 | I25: 100.3476242 | J25: 119.9129299 | K25: 114.2036366 | L25: 118.0781534 | M25: 121.0977878 | N25: 134.2611806 | O25: 114.9199617
B26: 918 | C26: Retten i Hillerød | D26: =Overblik!$B919 -> 104.6465332 | E26: =Overblik!$C919 -> 100.7493532 | F26: 96.43743641 | G26: 98.62894599 | H26: 91.17652533 | I26: 103.7162813 | J26: 103.3644964 | K26: 92.29897372 | L26: 119.444133 | M26: 113.8648808 | N26: 117.0824173 | O26: 123.5012267
B27: 919 | C27: Retten i Helsingør | D27: =Overblik!$B920 -> 103.0572938 | E27: =Overblik!$C920 -> 111.8067746 | F27: 92.59632887 | G27: 93.79264893 | H27: 85.77419099 | I27: 101.9273638 | J27: 99.56102073 | K27: 85.96789428 | L27: 88.09365275 | M27: 102.3230621 | N27: 131.0014749 | O27: 140.6074865
B28: 920 | C28: Retten i Lyngby | D28: =Overblik!$B921 -> 92.63409319 | E28: =Overblik!$C921 -> 98.57666569 | F28: 106.9737941 | G28: 88.70516108 | H28: 160.3456055 | I28: 130.8401207 | J28: 80.6825469 | K28: 67.83583379 | L28: 111.6644331 | M28: 119.5436893 | N28: 79.17212577 | O28: 78.26878717
B29: 921 | C29: Retten i Glostrup | D29: =Overblik!$B922 -> 111.5108257 | E29: =Overblik!$C922 -> 107.2985096 | F29: 97.09609047 | G29: 112.8459618 | H29: 89.00937361 | I29: 111.9532283 | J29: 108.2417371 | K29: 113.5627273 | L29: 96.94134408 | M29: 106.736835 | N29: 123.0845095 | O29: 110.2137249
B30: 922 | C30: Retten på Frederiksberg | D30: =Overblik!$B923 -> 96.56725848 | E30: =Overblik!$C923 -> 88.50987398 | F30: 100.4840015 | G30: 92.19331441 | H30: 101.727255 | I30: 95.76426505 | J30: 97.71025487 | K30: 86.7182239 | L30: 116.3789485 | M30: 121.7122747 | N30: 78.60446373 | O30: 81.69409188
B31: 923 | C31: Københavns Byret | D31: =Overblik!$B924 -> 95.3437124 | E31: =Overblik!$C924 -> 97.19139164 | F31: 99.64721746 | G31: 97.17544047 | H31: 93.04122885 | I31: 92.3759253 | J31: 110.1505658 | K31: 105.081458 | L31: 92.92593024 | M31: 91.44525469 | N31: 62.78585896 | O31: 66.05508668
B32: 924 | C32: Retten på Bornholm | D32: =Overblik!$B925 -> 64.68182868 | E32: =Overblik!$C925 -> 73.39619857 | F32: 56.46574606 | G32: 69.61126425 | H32: 53.56393195 | I32: 66.34639219 | J32: 60.08122757 | K32: 73.58875828 | L32: 61.81659735 | M32: 51.08652207 | N32: 69.70252161 | O32: 69.03298449
B35: 1) Indeks 100 svarer til gennemsnittet ved byretterne i 2012.
B36: 2) "Retssager" svarer til den samlede produktivitet for straffesager og civile sager, "Fogedsager" til den samlede produktivitet for øvrige fogedsager og tvangsauktioner, "Skiftesager" til den samlede produktivitet for insolvensskifter og dødsboskifter.
B37: 3) Ved beregningen af den samlede produktivitet, samlet for retten, anvendes rettens samlede vægtede årsværksforbrug - dvs. også årsværksforbruget til generel ledelse og administration mv. Ved beregning af produktiviteten på de enkelte sagsområder er årsværkforbruget til generel ledelse og administration mv. nøgletalsfordelt, således at forskelle i andele i årsværksforbrug til generel ledelse og administration mv. ikke vanskeliggør en sammenligning af de enkelte retter.

Sheet Produkt.JUR
B2: PRODUKTIVITETSINDEKS JURISTER
D4: Samlet | F4: Retssager | H4: Straffesager | J4: Civile sager | L4: Fogedsager | N4: Skiftesager
D5: =Overblik!$D$6 -> 2018 | E5: =Overblik!$E$6 -> 2019 | F5: =Overblik!$D$6 -> 2018 | G5: =Overblik!$E$6 -> 2019 | H5: =Overblik!$D$6 -> 2018 | I5: =Overblik!$E$6 -> 2019 | J5: =Overblik!$D$6 -> 2018 | K5: =Overblik!$E$6 -> 2019 | L5: =Overblik!$D$6 -> 2018 | M5: =Overblik!$E$6 -> 2019 | N5: =Overblik!$D$6 -> 2018 | O5: =Overblik!$E$6 -> 2019
C6: SAMLET BYRETTERNE | D6: 104.5349607 | E6: 105.1035373 | F6: 100.3390312 | G6: 100.0857048 | H6: 99.51305571 | I6: 96.99216375 | J6: 100.9681344 | K6: 103.652775 | L6: 113.6800833 | M6: 116.2112404 | N6: 125.1043753 | O6: 137.1156011
C7: 5. BEDSTE RET | D7: =LARGE(D9:D32,5) -> 115.7711637 | E7: =LARGE(E9:E32,5) -> 113.89 | F7: 113.4670183 | G7: 109.3892211 | H7: 113.1266488 | I7: 116.2129577 | J7: 117.7996204 | K7: 115.5891645 | L7: 128.6508721 | M7: 135.7946701 | N7: 176.5893561 | O7: 171.3610284
B8: EID | C8: Ret
B9: 901 | C9: Retten i Hjørring | D9: 103.4954791 | E9: 117.349 | F9: 93.59048325 | G9: 108.9081922 | H9: 94.06685613 | I9: 118.3995157 | J9: 93.01722719 | K9: 100.1790704 | L9: 119.9757527 | M9: 134.7640738 | N9: 176.5893561 | O9: 146.1479385
B10: 902 | C10: Retten i Aalborg | D10: 121.7419153 | E10: 104.473 | F10: 119.5785969 | G10: 93.08990643 | H10: 111.0019321 | I10: 91.37383535 | J10: 130.0070479 | K10: 94.81766293 | L10: 92.39586308 | M10: 121.9970869 | N10: 134.0761745 | O10: 171.3610284
B11: 903 | C11: Retten i Randers | D11: 101.8049645 | E11: 110.78 | F11: 94.29475864 | G11: 103.5755411 | H11: 94.52810768 | I11: 91.44130564 | J11: 94.00732313 | K11: 118.5137041 | L11: 121.2546341 | M11: 118.1051787 | N11: 149.6839515 | O11: 144.2433346
B12: 904 | C12: Retten i Århus | D12: 114.9519043 | E12: 106.536 | F12: 110.3745396 | G12: 102.0451965 | H12: 107.7770474 | I12: 96.29750986 | J12: 113.475746 | K12: 110.583623 | L12: 128.6508721 | M12: 89.52933856 | N12: 126.1417169 | O12: 148.9520637
B13: 905 | C13: Retten i Viborg | D13: 104.0952045 | E13: 105.306 | F13: 100.8765936 | G13: 103.9488234 | H13: 99.70803748 | I13: 92.23366722 | J13: 102.0051692 | K13: 121.916514 | L13: 106.3821504 | M13: 111.4549172 | N13: 124.930907 | O13: 122.5976374
B14: 906 | C14: Retten i Holstebro | D14: 116.4687438 | E14: 124.733 | F14: 119.1784 | G14: 126.9136462 | H14: 114.0558516 | I14: 119.5299769 | J14: 125.9949883 | K14: 136.6925149 | L14: 146.7412876 | M14: 167.0330189 | N14: 112.2365599 | O14: 135.9731488
B15: 907 | C15: Retten i Herning | D15: 105.9300289 | E15: 110.919 | F15: 100.9333923 | G15: 101.4962671 | H15: 105.3516377 | I15: 114.288048 | J15: 94.18943943 | K15: 85.61512018 | L15: 101.0662009 | M15: 128.9263849 | N15: 106.9447268 | O15: 138.1753212
B16: 908 | C16: Retten i Horsens | D16: 109.8226506 | E16: 96.563 | F16: 105.032922 | G16: 90.86171209 | H16: 102.4493381 | I16: 95.61492965 | J16: 107.5064317 | K16: 86.80062049 | L16: 119.0126196 | M16: 124.6690141 | N16: 117.3917511 | O16: 114.6007469
B17: 909 | C17: Retten i Kolding | D17: 100.6640153 | E17: 106.347 | F17: 86.6414839 | G17: 95.98924505 | H17: 80.43634396 | I17: 91.32893724 | J17: 95.0746313 | K17: 100.5292138 | L17: 145.2703223 | M17: 125.700612 | N17: 246.3115599 | O17: 221.4233888
B18: 910 | C18: Retten i Esbjerg | D18: 102.6591188 | E18: 103.969 | F18: 96.99444568 | G18: 96.54378702 | H18: 83.45679231 | I18: 87.36803007 | J18: 129.6557531 | K18: 111.326989 | L18: 93.1091833 | M18: 126.0184745 | N18: 209.4527667 | O18: 163.5401753
B19: 911 | C19: Retten i Sønderborg | D19: 114.7832152 | E19: 110.528 | F19: 109.2608395 | G19: 100.3808384 | H19: 135.6269826 | I19: 126.3634431 | J19: 80.07069692 | K19: 77.04210599 | L19: 112.8879138 | M19: 140.504617 | N19: 185.6712936 | O19: 176.7021759
B20: 912 | C20: Retten i Odense | D20: 115.7711637 | E20: 116.968 | F20: 115.2168068 | G20: 113.1096803 | H20: 113.6757177 | I20: 111.1294405 | J20: 116.732343 | K20: 115.2225648 | L20: 105.4292408 | M20: 135.7946701 | N20: 173.6360272 | O20: 128.8340024
B21: 913 | C21: Retten i Svendborg | D21: 102.0940186 | E21: 97.275 | F21: 89.85740533 | G21: 87.10292191 | H21: 84.29738847 | I21: 71.83912316 | J21: 96.62140341 | K21: 112.9556245 | L21: 117.4297771 | M21: 96.81323694 | N21: 213.5294821 | O21: 204.521638
B22: 914 | C22: Retten i Nykøbing F. | D22: 119.2700223 | E22: 117 | F22: 113.4670183 | G22: 113.8238392 | H22: 113.0932309 | I22: 118.2705779 | J22: 113.0706115 | K22: 106.887792 | L22: 140.9716622 | M22: 124.6299609 | N22: 133.2079609 | O22: 135.7307439
B23: 915 | C23: Retten i Næstved | D23: 122.0372471 | E23: 113.89 | F23: 119.6966479 | G23: 110.8611966 | H23: 113.1266488 | I23: 115.7518579 | J23: 130.1447352 | K23: 102.6875572 | L23: 130.1434065 | M23: 123.6189128 | N23: 130.0235389 | O23: 124.4009729
B24: 916 | C24: Retten i Holbæk | D24: 100.9025018 | E24: 94.072 | F24: 97.2820303 | G24: 84.30138918 | H24: 89.27706766 | I24: 77.57930555 | J24: 107.5302024 | K24: 92.87055589 | L24: 105.0511182 | M24: 123.7824564 | N24: 128.2776712 | O24: 130.2336238
B25: 917 | C25: Retten i Roskilde | D25: 106.0226516 | E25: 110.739 | F25: 104.6182591 | G25: 104.2360126 | H25: 94.91957435 | I25: 81.31948323 | J25: 117.7996204 | K25: 136.7549343 | L25: 105.1164366 | M25: 103.5753315 | N25: 100.8773935 | O25: 151.5260149
B26: 918 | C26: Retten i Hillerød | D26: 101.3977163 | E26: 96.914 | F26: 96.7501938 | G26: 88.78252699 | H26: 102.1883243 | I26: 87.49743315 | J26: 90.44067985 | K26: 90.0773667 | L26: 102.5250331 | M26: 86.06171669 | N26: 146.4918432 | O26: 181.8125571
B27: 919 | C27: Retten i Helsingør | D27: 95.52199033 | E27: 111.149 | F27: 87.28538289 | G27: 100.9779139 | H27: 93.6966003 | I27: 93.65707659 | J27: 81.27217959 | K27: 108.195326 | L27: 114.7070962 | M27: 129.1893121 | N27: 144.878135 | O27: 162.9945619
B28: 920 | C28: Retten i Lyngby | D28: 82.4379848 | E28: 97.502 | F28: 79.77134095 | G28: 92.59825443 | H28: 118.5318494 | I28: 116.2129577 | J28: 62.07598597 | K28: 81.02184057 | L28: 125.5241785 | M28: 141.0961369 | N28: 59.98620197 | O28: 85.7420037
B29: 921 | C29: Retten i Glostrup | D29: 105.4739813 | E29: 104.583 | F29: 106.7716669 | G29: 105.4767303 | H29: 102.7411716 | I29: 103.8345702 | J29: 112.1199961 | K29: 107.1558703 | L29: 114.1748763 | M29: 113.6421686 | N29: 72.63045392 | O29: 99.405217
B30: 922 | C30: Retten på Frederiksberg | D30: 89.46239244 | E30: 89.663 | F30: 81.81807625 | G30: 81.85424225 | H30: 81.55220034 | I30: 79.58222344 | J30: 81.6835345 | K30: 84.74911369 | L30: 122.5741322 | M30: 139.7195501 | N30: 85.8830691 | O30: 87.78798535
B31: 923 | C31: Københavns Byret | D31: 97.88086279 | E31: 100.146 | F31: 97.36443905 | G31: 102.7308435 | H31: 94.8443411 | I31: 94.00854144 | J31: 100.701299 | K31: 115.5891645 | L31: 107.3758234 | M31: 84.07592015 | N31: 39.11179149 | O31: 46.56706664
B32: 924 | C32: Retten på Bornholm | D32: 65.67993888 | E32: 82.338 | F32: 98.53680955 | G32: 109.3892211 | H32: 88.64389115 | I32: 112.0224074 | J32: 111.3396037 | K32: 107.1432729 | L32: 39.06475735 | M32: 62.88254475 | N32: 64.86966929 | O32: 77.72884814
B35: 1) Indeks 100 svarer til gennemsnittet ved byretterne i 2012.
B36: 2) "Retssager" svarer til den samlede produktivitet for straffesager og civile sager, "Fogedsager" til den samlede produktivitet for øvrige fogedsager og tvangsauktioner, "Skiftesager" til den samlede produktivitet for insolvensskifter og dødsboskifter.
B37: 3) Ved beregningen af den samlede produktivitet for juristerne anvendes det samlede årsværksforbrug for gruppen - dvs. også årsværksforbruget til generel ledelse og administration mv. Ved beregning af produktiviteten på de enkelte sagsområder er kun medtaget det direkte årsværksforbrug - dvs. der er ikke foretaget en nøgletalsfordeling af årsværkforbruget til generel ledelse og administration mv.

Sheet Produkt.KON
B2: PRODUKTIVITETSINDEKS KONTORPERSONALE
D4: Samlet | F4: Retssager | H4: Straffesager | J4: Civile sager | L4: Fogedsager | N4: Skiftesager
D5: =Overblik!$D$6 -> 2018 | E5: =Overblik!$E$6 -> 2019 | F5: =Overblik!$D$6 -> 2018 | G5: =Overblik!$E$6 -> 2019 | H5: =Overblik!$D$6 -> 2018 | I5: =Overblik!$E$6 -> 2019 | J5: =Overblik!$D$6 -> 2018 | K5: =Overblik!$E$6 -> 2019 | L5: =Overblik!$D$6 -> 2018 | M5: =Overblik!$E$6 -> 2019 | N5: =Overblik!$D$6 -> 2018 | O5: =Overblik!$E$6 -> 2019
C6: SAMLET BYRETTERNE | D6: 108.2306338 | E6: 107.6870982 | F6: 98.47007509 | G6: 97.59926847 | H6: 99.33966142 | I6: 93.03654435 | J6: 96.43770678 | K6: 104.2734172 | L6: 100.0819804 | M6: 101.0947519 | N6: 106.9159321 | O6: 108.7320358
C7: 5. BEDSTE RET | D7: =LARGE(D9:D32,5) -> 116.1365727 | E7: =LARGE(E9:E32,5) -> 117.112 | F7: 110.8363158 | G7: 109.3200441 | H7: 125.0440401 | I7: 109.4538298 | J7: 110.1576049 | K7: 117.1702358 | L7: 116.9832186 | M7: 116.3433442 | N7: 122.9544556 | O7: 130.8311155
B8: EID | C8: Ret
B9: 901 | C9: Retten i Hjørring | D9: 103.5013117 | E9: 111.244 | F9: 91.21600822 | G9: 96.97502111 | H9: 89.95685641 | I9: 94.91348116 | J9: 92.63350405 | K9: 99.51589633 | L9: 86.16208723 | M9: 95.78917203 | N9: 110.944831 | O9: 121.5633996
B10: 902 | C10: Retten i Aalborg | D10: 107.6940687 | E10: 109.199 | F10: 108.3089372 | G10: 103.7001378 | H10: 112.4054883 | I10: 106.4796996 | J10: 102.2422407 | K10: 100.2169083 | L10: 88.43629216 | M10: 98.76990638 | N10: 95.83405178 | O10: 101.9597671
B11: 903 | C11: Retten i Randers | D11: 107.3399054 | E11: 108.796 | F11: 76.67767986 | G11: 81.13061963 | H11: 84.31128573 | I11: 80.31758345 | J11: 68.86865755 | K11: 82.08642052 | L11: 119.4150383 | M11: 134.3361231 | N11: 112.3524218 | O11: 108.7777846
B12: 904 | C12: Retten i Århus | D12: 110.2347028 | E12: 103.672 | F12: 88.51657696 | G12: 87.07108507 | H12: 78.57521648 | I12: 79.91228513 | J12: 110.1576049 | K12: 101.735666 | L12: 116.9832186 | M12: 110.9244828 | N12: 109.0128991 | O12: 109.6184817
B13: 905 | C13: Retten i Viborg | D13: 109.3113635 | E13: 106.636 | F13: 93.22191532 | G13: 85.71122078 | H13: 91.34163938 | I13: 86.53938441 | J13: 95.50884999 | K13: 83.67854059 | L13: 98.33418347 | M13: 106.6985359 | N13: 133.3256028 | O13: 132.1138578
B14: 906 | C14: Retten i Holstebro | D14: 105.150053 | E14: 113.674 | F14: 96.71664313 | G14: 104.7305069 | H14: 105.2474889 | I14: 115.6508716 | J14: 84.11936668 | K14: 90.44068164 | L14: 87.52067414 | M14: 93.24630497 | N14: 92.45733501 | O14: 102.7716034
B15: 907 | C15: Retten i Herning | D15: 113.6155767 | E15: 119.63 | F15: 110.8363158 | G15: 106.2013634 | H15: 109.3333549 | I15: 98.58594301 | J15: 112.2324007 | K15: 123.7863618 | L15: 76.01420661 | M15: 94.77644398 | N15: 117.878254 | O15: 122.3970022
B16: 908 | C16: Retten i Horsens | D16: 132.2744982 | E16: 122.067 | F16: 161.4127719 | G16: 115.1304036 | H16: 144.5963779 | I16: 108.4072944 | J16: 188.4783164 | K16: 124.4164289 | L16: 105.1744628 | M16: 122.7940958 | N16: 117.9625586 | O16: 125.2307719
B17: 909 | C17: Retten i Kolding | D17: 113.6302445 | E17: 113.727 | F17: 99.38567707 | G17: 91.51780589 | H17: 105.153362 | I17: 79.48909599 | J17: 92.45813097 | K17: 107.6328058 | L17: 104.1583226 | M17: 117.8139622 | N17: 108.0011062 | O17: 119.1763132
B18: 910 | C18: Retten i Esbjerg | D18: 108.182054 | E18: 117.349 | F18: 97.2600022 | G18: 105.6522637 | H18: 102.7792646 | I18: 99.36931375 | J18: 86.41930243 | K18: 117.1702358 | L18: 86.51694633 | M18: 105.3114982 | N18: 104.1305595 | O18: 111.6471647
B19: 911 | C19: Retten i Sønderborg | D19: 113.1859886 | E19: 116.737 | F19: 103.3405665 | G19: 92.36479723 | H19: 125.0440401 | I19: 104.3003947 | J19: 74.22887089 | K19: 75.49226016 | L19: 105.2520992 | M19: 138.006291 | N19: 122.2176186 | O19: 123.7802399
B20: 912 | C20: Retten i Odense | D20: 109.0774821 | E20: 112.191 | F20: 84.34841798 | G20: 92.51520911 | H20: 77.23560128 | I20: 85.48637162 | J20: 98.10885154 | K20: 105.4036284 | L20: 116.1326347 | M20: 116.3433442 | N20: 98.40971412 | O20: 96.09005538
B21: 913 | C21: Retten i Svendborg | D21: 120.5091304 | E21: 105.108 | F21: 86.78329173 | G21: 75.51244044 | H21: 74.58223758 | I21: 70.96710666 | J21: 111.5384293 | K21: 82.35457672 | L21: 120.3505845 | M21: 109.3888797 | N21: 153.8152316 | O21: 137.2051595
B22: 914 | C22: Retten i Nykøbing F. | D22: 107.5528437 | E22: 104.233 | F22: 99.54524515 | G22: 95.636295 | H22: 99.4885509 | I22: 98.69682535 | J22: 98.15590604 | K22: 89.01777536 | L22: 103.992631 | M22: 99.84238524 | N22: 102.2323798 | O22: 101.9332054
B23: 915 | C23: Retten i Næstved | D23: 122.9541031 | E23: 115.147 | F23: 128.7009623 | G23: 120.4642325 | H23: 130.5897253 | I23: 127.2647136 | J23: 123.8332525 | K23: 107.2071164 | L23: 100.4934975 | M23: 95.95353424 | N23: 126.486322 | O23: 113.9115096
B24: 916 | C24: Retten i Holbæk | D24: 100.5534486 | E24: 104.497 | F24: 97.68259493 | G24: 97.52108804 | H24: 93.50693632 | I24: 87.76361377 | J24: 103.4877697 | K24: 113.4562542 | L24: 90.19301202 | M24: 101.2750681 | N24: 101.4903616 | O24: 92.73506032
B25: 917 | C25: Retten i Roskilde | D25: 110.6002832 | E25: 110.488 | F25: 92.1055584 | G25: 94.6134012 | H25: 92.65485811 | I25: 89.50880141 | J25: 91.05836777 | K25: 100.9072287 | L25: 118.9762663 | M25: 101.7481658 | N25: 113.0212433 | O25: 130.8311155
B26: 918 | C26: Retten i Hillerød | D26: 125.6709954 | E26: 117.112 | F26: 112.5463279 | G26: 109.3200441 | H26: 135.8448866 | I26: 139.7094525 | J26: 89.34275089 | K26: 81.91336915 | L26: 125.8477724 | M26: 109.6883419 | N26: 110.3553135 | O26: 103.7854717
B27: 919 | C27: Retten i Helsingør | D27: 112.3695183 | E27: 116.124 | F27: 94.33898453 | G27: 111.5963594 | H27: 102.8458326 | I27: 110.7079132 | J27: 85.42596809 | K27: 112.7836937 | L27: 93.43415986 | M27: 82.59849484 | N27: 139.543664 | O27: 137.835235
B28: 920 | C28: Retten i Lyngby | D28: 104.4987341 | E28: 101.317 | F28: 94.45432036 | G28: 99.02136266 | H28: 134.6681256 | I28: 87.68112398 | J28: 70.74211601 | K28: 113.0449846 | L28: 107.4116593 | M28: 93.86809619 | N28: 81.96115938 | O28: 82.15850114
B29: 921 | C29: Retten i Glostrup | D29: 116.1365727 | E29: 119.696 | F29: 113.6279201 | G29: 113.2851982 | H29: 116.6532833 | I29: 109.4538298 | J29: 107.9362597 | K29: 118.8957058 | L29: 98.47811013 | M29: 90.27054175 | N29: 122.9544556 | O29: 141.7719353
B30: 922 | C30: Retten på Frederiksberg | D30: 106.393739 | E30: 95.329 | F30: 95.44258778 | G30: 89.62811769 | H30: 107.7207179 | I30: 93.67772903 | J30: 79.03278923 | K30: 82.8820926 | L30: 110.7541938 | M30: 90.28974028 | N30: 77.22625384 | O30: 67.78912212
B31: 923 | C31: Københavns Byret | D31: 90.57796678 | E31: 92.046 | F31: 95.78953761 | G31: 97.59230293 | H31: 88.52747139 | I31: 81.16333164 | J31: 109.39717 | K31: 129.3454303 | L31: 81.9560536 | M31: 76.68320608 | N31: 79.94141941 | O31: 75.61024925
B32: 924 | C32: Retten på Bornholm | D32: 72.61904219 | E32: 73.798 | F32: 59.07536225 | G32: 75.30021829 | H32: 61.17322615 | I32: 65.45978391 | J32: 56.43698198 | K32: 91.87540159 | L32: 75.84359451 | M32: 103.8076419 | N32: 91.09909348 | O32: 109.442203
B35: 1) Indeks 100 svarer til gennemsnittet ved byretterne i 2012.
B36: 2) "Retssager" svarer til den samlede produktivitet for straffesager og civile sager, "Fogedsager" til den samlede produktivitet for øvrige fogedsager og tvangsauktioner, "Skiftesager" til den samlede produktivitet for insolvensskifter og dødsboskifter.
B37: 3) Ved beregningen af den samlede produktivitet for kontorpersonale anvendes det samlede årsværksforbrug for gruppen - dvs. også årsværksforbruget til generel ledelse og administration mv. Ved beregning af produktiviteten på de enkelte sagsområder er kun medtaget det direkte årsværksforbrug - dvs. der er ikke foretaget en nøgletalsfordeling af årsværkforbruget til generel ledelse og administration mv.

Sheet Generel ledelse_Adm.
B2: ÅRSVÆRKSFORBRUG ANVENDT TIL GENEREL LEDELSE OG ADMINISTRATION MV.
E6: Årsværk til generel ledelse og administration | H6: %-del til generel ledelse og administration
E7: =Overblik!$D$6-1 -> 2017 | F7: =Overblik!$D$6 -> 2018 | G7: =Overblik!$E$6 -> 2019 | H7: =Overblik!$D$6-1 -> 2017 | I7: =Overblik!$D$6 -> 2018 | J7: =Overblik!$E$6 -> 2019
C9: SAMLET BYRETTERNE | D9: Jurister | E9: 30.86608241 | F9: 28.58120802 | G9: 30.79718309 | H9: 0.07484334104 | I9: 0.06997010171 | J9: 0.07280545549
D10: Kontor | E10: 107.3037173 | F10: 96.27090644 | G10: 103.7447916 | H10: 0.1362408847 | I10: 0.121598096 | J10: 0.1258901552
D11: Elev | E11: 6.869543021 | F11: 7.984551723 | G11: 7.237624995 | H11: 0.09461694353 | I11: 0.120573605 | J11: 0.1002993337
D12: Fleks | E12: 15.55364767 | F12: 14.63960951 | G12: 14.90127794 | H12: 0.3486287013 | I12: 0.3375591496 | J12: 0.330354514
D13: Øvrige | E13: 68.11446017 | F13: 66.10997817 | G13: 77.80289288 | H13: 0.7814420657 | I13: 0.740306093 | J13: 0.7326534996
C14: Samlet byretterne | D14: Samlet | E14: 228.7074505 | F14: 213.5862539 | G14: 234.4837705 | H14: 0.1628512618 | I14: 0.1523494213 | J14: 0.1594523724
D15: - ekskl. fleks og elever | E15: 206.2842598 | F15: 190.9620926 | G15: 212.3448676 | H15: 0.160260966 | I15: 0.1480909204 | J15: 0.1569101428
B16: EID | C16: Ret
B17: 901 | C17: Retten i Hjørring | D17: Jurister | E17: 0.8470651409 | F17: 0.9474311606 | G17: 0.8165050132 | H17: 0.07049946242 | I17: 0.07350558765 | J17: 0.06447083024
B18: 901 | C18: Retten i Hjørring | D18: Kontor | E18: 2.723311864 | F18: 2.417068948 | G18: 2.818710263 | H18: 0.0943831268 | I18: 0.09014413506 | J18: 0.1016531703
B19: 901 | C19: Retten i Hjørring | D19: Elev | E19: 0.1286096358 | F19: 0.0508515866 | G19: 0.2043393491 | H19: 0.06562620144 | I19: 0.0275479496 | J19: 0.05879829108
B20: 901 | C20: Retten i Hjørring | D20: Fleks | E20: 0.01001772737 | F20: 0.006271080151 | G20: 0.008313919343 | H20: 0.003642200711 | I20: 0.002374365866 | J20: 0.003059152283
B21: 901 | C21: Retten i Hjørring | D21: Øvrige | E21: 2.653946356 | F21: 2.697691724 | G21: 2.635953119 | H21: 0.8788483858 | I21: 0.8255577968 | J21: 0.7228185816
B22: 901 | C22: Retten i Hjørring | D22: Samlet | E22: 6.362950724 | F22: 6.119314499 | G22: 6.483821663 | H22: 0.1309276329 | I22: 0.1289432339 | J22: 0.1290745072
D23: - ekskl. fleks og elever | E23: 6.22432336 | F23: 6.062191832 | G23: 6.271168395 | H23: 0.1280751588 | I23: 0.1410785168 | J23: 0.1423964882
B24: 902 | C24: Retten i Aalborg | D24: Jurister | E24: 1.078182721 | F24: 0.9484796083 | G24: 1.161353235 | H24: 0.05377807888 | I24: 0.04869326783 | J24: 0.05444170789
B25: 902 | C25: Retten i Aalborg | D25: Kontor | E25: 8.321737469 | F25: 4.715528113 | G25: 5.091225087 | H25: 0.2040891583 | I25: 0.1144848543 | J25: 0.1237883113
B26: 902 | C26: Retten i Aalborg | D26: Elev | E26: 0.1697706444 | F26: 0.3872569671 | G26: 0.4172954905 | H26: 0.03888969826 | I26: 0.09729218966 | J26: 0.07630964725
B27: 902 | C27: Retten i Aalborg | D27: Fleks | E27: 0.734442288 | F27: 0.6715692859 | G27: 0.9785450735 | H27: 0.3467196133 | I27: 0.2387733988 | J27: 0.5013526283
B28: 902 | C28: Retten i Aalborg | D28: Øvrige | E28: 1.157589289 | F28: 1.062104321 | G28: 0.9119560765 | H28: 0.331392166 | I28: 0.3046264021 | J28: 0.2619622482
B29: 902 | C29: Retten i Aalborg | D29: Samlet | E29: 11.46172241 | F29: 7.784938295 | G29: 8.560374963 | H29: 0.1618874542 | I29: 0.109728511 | J29: 0.1166867083
D30: - ekskl. fleks og elever | E30: 10.55750948 | F30: 6.726112042 | G30: 7.164534399 | H30: 0.1491161861 | I30: 0.104842666 | J30: 0.1086493934
B31: 903 | C31: Retten i Randers | D31: Jurister | E31: 1.388581791 | F31: 1.15289616 | G31: 0.9410169033 | H31: 0.1096670134 | I31: 0.0914027793 | J31: 0.0730012601
B32: 903 | C32: Retten i Randers | D32: Kontor | E32: 2.366435034 | F32: 2.065933683 | G32: 3.45850903 | H32: 0.09875646624 | I32: 0.07864863463 | J32: 0.1204404529
B33: 903 | C33: Retten i Randers | D33: Elev | E33: 0.06129504806 | F33: 0.009475444306 | G33: 0.3566343155 | H33: 0.02104377598 | I33: 0.003466757026 | J33: 0.07640570299
B34: 903 | C34: Retten i Randers | D34: Fleks | E34: 1.500784017 | F34: 1.296336599 | G34: 1.505954867 | H34: 0.6747553117 | I34: 0.7612657452 | J34: 0.8571415618
B35: 903 | C35: Retten i Randers | D35: Øvrige | E35: 3.890001847 | F35: 1.207064134 | G35: 1.144062578 | H35: 0.8783481298 | I35: 0.4655410458 | J35: 0.5818411305
B36: 903 | C36: Retten i Randers | D36: Samlet | E36: 9.207097736 | F36: 5.731706022 | G36: 7.406177694 | H36: 0.1993317086 | I36: 0.1248461076 | J36: 0.1481330344
D37: - ekskl. fleks og elever | E37: 7.645018671 | F37: 4.425893978 | G37: 5.543588511 | H37: 0.165513029 | I37: 0.1067147251 | J37: 0.1272276185
B38: 904 | C38: Retten i Århus | D38: Jurister | E38: 1.326319556 | F38: 1.502239191 | G38: 1.651208691 | H38: 0.05663697382 | I38: 0.06672760287 | J38: 0.06971311005
B39: 904 | C39: Retten i Århus | D39: Kontor | E39: 4.174571599 | F39: 3.738227275 | G39: 5.739054012 | H39: 0.09298758446 | I39: 0.086183477 | J39: 0.1247439559
B40: 904 | C40: Retten i Århus | D40: Elev | E40: 0.06386853133 | F40: 0.1149930944 | G40: 0.1007544288 | H40: 0.03137700997 | I40: 0.06179567209 | J40: 0.05614467627
B41: 904 | C41: Retten i Århus | D41: Fleks | E41: 0.993460951 | F41: 1.192348196 | G41: 1.173067802 | H41: 0.4129750131 | I41: 0.4110156552 | J41: 0.4675551436
B42: 904 | C42: Retten i Århus | D42: Øvrige | E42: 3.593063197 | F42: 3.681802152 | G42: 6.747725883 | H42: 0.7930008799 | I42: 0.6716827546 | J42: 0.7022136951
B43: 904 | C43: Retten i Århus | D43: Samlet | E43: 10.15128383 | F43: 10.22960991 | G43: 15.41181082 | H43: 0.1313505977 | I43: 0.134367586 | J43: 0.1843404481
D44: - ekskl. fleks og elever | E44: 9.093954351 | F44: 8.922268618 | G44: 14.13798859 | H44: 0.1176694849 | I44: 0.1250148154 | J44: 0.1782811178
B45: 905 | C45: Retten i Viborg | D45: Jurister | E45: 1.303051779 | F45: 1.069864392 | G45: 1.303286249 | H45: 0.09307904966 | I45: 0.07917795404 | J45: 0.09193649589
B46: 905 | C46: Retten i Viborg | D46: Kontor | E46: 3.04737348 | F46: 3.225842229 | G46: 3.447435541 | H46: 0.1266646749 | I46: 0.1211997267 | J46: 0.1229600393
B47: 905 | C47: Retten i Viborg | D47: Elev | E47: 0.1899732155 | F47: 0.3037094349 | G47: 0.3577759454 | H47: 0.04710398941 | I47: 0.07648628222 | J47: 0.08405540451
B48: 905 | C48: Retten i Viborg | D48: Fleks | E48: 0.09496004875 | F48: 0.07242446112 | G48: 0.0792325416 | H48: 0.04747860002 | I48: 0.03621114422 | J48: 0.03961508235
B49: 905 | C49: Retten i Viborg | D49: Øvrige | E49: 2.559943619 | F49: 2.747711657 | G49: 2.627973024 | H49: 0.7062322558 | I49: 0.729013886 | J49: 0.6735473663
B50: 905 | C50: Retten i Viborg | D50: Samlet | E50: 7.195302142 | F50: 7.419552174 | G50: 7.815703301 | H50: 0.1507946121 | I50: 0.1487838925 | J50: 0.1492367803
D51: - ekskl. fleks og elever | E51: 6.910368877 | F51: 7.043418278 | G51: 7.378694814 | H51: 0.1448231602 | I51: 0.1604527464 | J51: 0.160007538
B52: 906 | C52: Retten i Holstebro | D52: Jurister | E52: 0.931273504 | F52: 0.9085010394 | G52: 1.005668305 | H52: 0.1193556309 | I52: 0.1088953742 | J52: 0.126108934
B53: 906 | C53: Retten i Holstebro | D53: Kontor | E53: 1.598179102 | F53: 1.347691462 | G53: 1.342012166 | H53: 0.08558064091 | I53: 0.06834083221 | J53: 0.07078940899
B54: 906 | C54: Retten i Holstebro | D54: Elev | E54: 0.04688204797 | F54: 0.0497470595 | G54: 0.03510913142 | H54: 0.02744272166 | I54: 0.0400901453 | J54: 0.01782877222
B55: 906 | C55: Retten i Holstebro | D55: Fleks | E55: 2.134659037 | F55: 2.014446397 | G55: 1.397817684 | H55: 0.9512910377 | I55: 0.7740071149 | J55: 0.7243066548
B56: 906 | C56: Retten i Holstebro | D56: Øvrige | E56: 2.221508116 | F56: 2.08866 | G56: 1.96818 | H56: 0.930275885 | I56: 1 | J56: 1
B57: 906 | C57: Retten i Holstebro | D57: Samlet | E57: 6.932501807 | F57: 6.409045959 | G57: 5.748787286 | H57: 0.2112448284 | I57: 0.1885280229 | J57: 0.1752695081
D58: - ekskl. fleks og elever | E58: 4.750960722 | F58: 4.344852502 | G58: 4.315860471 | H58: 0.1447696532 | I58: 0.1440998001 | J58: 0.1493346838
B59: 907 | C59: Retten i Herning | D59: Jurister | E59: 0.5870465448 | F59: 0.4191155065 | G59: 0.5163178247 | H59: 0.05215942859 | I59: 0.03732833976 | J59: 0.04275782373
B60: 907 | C60: Retten i Herning | D60: Kontor | E60: 1.710624653 | F60: 1.465547179 | G60: 1.591714308 | H60: 0.08432446521 | I60: 0.07143835703 | J60: 0.07223228792
B61: 907 | C61: Retten i Herning | D61: Elev | E61: 0.1751750325 | F61: 0.2494645112 | G61: 0.204916791 | H61: 0.05794262217 | I61: 0.07898320733 | J61: 0.06698903907
B62: 907 | C62: Retten i Herning | D62: Fleks | E62: 0.1081465398 | F62: 0 | G62: 0 | H62: 0.3092109786 | I62: - | J62: -
B63: 907 | C63: Retten i Herning | D63: Øvrige | E63: 2.152288722 | F63: 2.00006 | G63: 2.00006 | H63: 0.9362702648 | I63: 1 | J63: 1
B64: 907 | C64: Retten i Herning | D64: Samlet | E64: 4.733281492 | F64: 4.134187196 | G64: 4.313008924 | H64: 0.1271947787 | I64: 0.1120340411 | J64: 0.1101086845
D65: - ekskl. fleks og elever | E65: 4.449959919 | F65: 3.884722685 | G65: 4.108092133 | H65: 0.1195812394 | I65: 0.1151277279 | J65: 0.1137612947
B66: 908 | C66: Retten i Horsens | D66: Jurister | E66: 0.6641910236 | F66: 0.6881712666 | G66: 0.9865621139 | H66: 0.05187440193 | I66: 0.0601805024 | J66: 0.081169534
B67: 908 | C67: Retten i Horsens | D67: Kontor | E67: 2.909736097 | F67: 2.849680359 | G67: 3.10057422 | H67: 0.157127773 | I67: 0.1524512828 | J67: 0.1573398764
B68: 908 | C68: Retten i Horsens | D68: Elev | E68: 0.4342581811 | F68: 0.5959390973 | G68: 0.6740271823 | H68: 0.112692178 | I68: 0.1936438984 | J68: 0.2088226109
B69: 908 | C69: Retten i Horsens | D69: Fleks | E69: 1.00801021 | F69: 0.8970889244 | G69: 0.9372890763 | H69: 0.2335362568 | I69: 0.2377944102 | J69: 0.2417045297
B70: 908 | C70: Retten i Horsens | D70: Øvrige | E70: 2.472148312 | F70: 2.407923066 | G70: 1.953159068 | H70: 0.5570134676 | I70: 0.5368537017 | J70: 0.4872081648
B71: 908 | C71: Retten i Horsens | D71: Samlet | E71: 7.488343824 | F71: 7.438802713 | G71: 7.65161166 | H71: 0.1704603932 | I71: 0.1794090346 | J71: 0.1780478906
D72: - ekskl. fleks og elever | E72: 6.046075433 | F72: 5.945774691 | G72: 6.040295401 | H72: 0.1376294171 | I72: 0.1717797995 | J72: 0.1683967021
B73: 909 | C73: Retten i Kolding | D73: Jurister | E73: 1.190276446 | F73: 1.216881101 | G73: 1.520608135 | H73: 0.06370302902 | I73: 0.06194973391 | J73: 0.07610179022
B74: 909 | C74: Retten i Kolding | D74: Kontor | E74: 3.720763431 | F74: 3.332999538 | G74: 3.65459088 | H74: 0.1019116687 | I74: 0.09206461312 | J74: 0.09473121138
B75: 909 | C75: Retten i Kolding | D75: Elev | E75: 0.05155026221 | F75: 0.495600075 | G75: 0.4973146293 | H75: 0.01544137615 | I75: 0.1451431736 | J75: 0.1359444291
B76: 909 | C76: Retten i Kolding | D76: Fleks | E76: 1.00003 | F76: 1.00003 | G76: 0.91926 | H76: 0.3333333333 | I76: 0.3333333333 | J76: 0.3333333333
B77: 909 | C77: Retten i Kolding | D77: Øvrige | E77: 3.085375969 | F77: 3.005624461 | G77: 3.042991101 | H77: 0.9092740455 | I77: 0.8875312153 | J77: 0.7644957155
B78: 909 | C78: Retten i Kolding | D78: Samlet | E78: 9.047996108 | F78: 9.051135175 | G78: 9.634764745 | H78: 0.1393581009 | I78: 0.1378757966 | J78: 0.1397230464
D79: - ekskl. fleks og elever | E79: 7.996415846 | F79: 7.5555051 | G79: 8.218190116 | H79: 0.1231615611 | I79: 0.1275570284 | J79: 0.1314066052
B80: 910 | C80: Retten i Esbjerg | D80: Jurister | E80: 1.027797878 | F80: 1.071889357 | G80: 1.189627323 | H80: 0.07349450565 | I80: 0.0818161829 | J80: 0.08473406697
B81: 910 | C81: Retten i Esbjerg | D81: Kontor | E81: 2.005595139 | F81: 1.790201993 | G81: 2.436782768 | H81: 0.07713358722 | I81: 0.06892595044 | J81: 0.09519995407
B82: 910 | C82: Retten i Esbjerg | D82: Elev | E82: 0.1844939304 | F82: 0.06762991596 | G82: 0.03273857432 | H82: 0.05892906252 | I82: 0.03079083602 | J82: 0.02885727132
B83: 910 | C83: Retten i Esbjerg | D83: Fleks | E83: 0 | F83: 0.0001464451841 | G83: 0 | H83: 0 | I83: 0.000165663847 | J83: 0
B84: 910 | C84: Retten i Esbjerg | D84: Øvrige | E84: 2.955197754 | F84: 2.563983131 | G84: 2.676769672 | H84: 0.9995291043 | I84: 0.9531500368 | J84: 0.8448385838
B85: 910 | C85: Retten i Esbjerg | D85: Samlet | E85: 6.173084702 | F85: 5.493850842 | G85: 6.335918338 | H85: 0.1311366779 | I85: 0.1225090472 | J85: 0.1416092602
D86: - ekskl. fleks og elever | E86: 5.988590772 | F86: 5.426074481 | G86: 6.303179763 | H86: 0.1272174184 | I86: 0.1299221958 | J86: 0.1472554512
B87: 911 | C87: Retten i Sønderborg | D87: Jurister | E87: 1.053634876 | F87: 1.151366095 | G87: 1.167522287 | H87: 0.06361933973 | I87: 0.07766444619 | J87: 0.07339948404
B88: 911 | C88: Retten i Sønderborg | D88: Kontor | E88: 3.479651774 | F88: 3.854914582 | G88: 4.019251678 | H88: 0.1189693276 | I88: 0.1272680824 | J88: 0.1214742979
B89: 911 | C89: Retten i Sønderborg | D89: Elev | E89: 0.1844223082 | F89: 0.1254916812 | G89: 0.118703307 | H89: 0.08655357938 | I89: 0.05696580519 | J89: 0.04453923883
B90: 911 | C90: Retten i Sønderborg | D90: Fleks | E90: 1.00003 | F90: 1.00003 | G90: 0.6225899948 | H90: 1 | I90: 1 | J90: 0.430914788
B91: 911 | C91: Retten i Sønderborg | D91: Øvrige | E91: 3.276495886 | F91: 3.445588812 | G91: 3.374212735 | H91: 0.8124779023 | I91: 0.8877637874 | J91: 0.8753003267
B92: 911 | C92: Retten i Sønderborg | D92: Samlet | E92: 8.994234844 | F92: 9.57739117 | G92: 9.302280001 | H92: 0.1697879508 | I92: 0.1834792851 | J92: 0.1633166862
D93: - ekskl. fleks og elever | E93: 7.809782536 | F93: 8.451869489 | G93: 8.5609867 | H93: 0.1474285468 | I93: 0.1725019183 | J93: 0.1619908251
B94: 912 | C94: Retten i Odense | D94: Jurister | E94: 2.125780645 | F94: 1.981702385 | G94: 1.581806246 | H94: 0.1046404739 | I94: 0.1044054652 | J94: 0.07947572984
B95: 912 | C95: Retten i Odense | D95: Kontor | E95: 2.943860838 | F95: 2.831804277 | G95: 3.404402621 | H95: 0.07222787496 | I95: 0.0669212847 | J95: 0.07980268801
B96: 912 | C96: Retten i Odense | D96: Elev | E96: 0.05906564626 | F96: 0.04319138845 | G96: 0.08763209579 | H96: 0.02413610968 | I96: 0.01619608233 | J96: 0.02190714766
B97: 912 | C97: Retten i Odense | D97: Fleks | E97: 0.4123504325 | F97: 0.4774976963 | G97: 0.5428475293 | H97: 0.3853058172 | I97: 0.4400778746 | J97: 0.4463142255
B98: 912 | C98: Retten i Odense | D98: Øvrige | E98: 3.473409267 | F98: 3.991310814 | G98: 4.991656976 | H98: 0.8120128363 | I98: 0.9954932719 | J98: 0.9949128746
B99: 912 | C99: Retten i Odense | D99: Samlet | E99: 9.01446683 | F99: 9.325506562 | G99: 10.60834547 | H99: 0.1308949304 | I99: 0.1350397946 | J99: 0.1457252565
D100: - ekskl. fleks og elever | E100: 8.543050751 | F100: 8.804817477 | G100: 9.977865843 | H100: 0.1240497141 | I100: 0.1348247223 | J100: 0.1476442865
B101: 913 | C101: Retten i Svendborg | D101: Jurister | E101: 0.9424041336 | F101: 0.7999540838 | G101: 0.8732591719 | H101: 0.09388533901 | I101: 0.07701767404 | J101: 0.08479512198
B102: 913 | C102: Retten i Svendborg | D102: Kontor | E102: 2.573637068 | F102: 2.166809319 | G102: 3.12048668 | H102: 0.1352473693 | I102: 0.1113776223 | J102: 0.1414488119
B103: 913 | C103: Retten i Svendborg | D103: Elev | E103: 0.5989689905 | F103: 0.0690498637 | G103: 0.0971355675 | H103: 0.3001327821 | I103: 0.05590674664 | J103: 0.1424567617
B104: 913 | C104: Retten i Svendborg | D104: Fleks | E104: 0.5498822452 | F104: 0.4132303088 | G104: 0.4703565091 | H104: 0.5498657492 | I104: 0.4132179123 | J104: 0.4703423988
B105: 913 | C105: Retten i Svendborg | D105: Øvrige | E105: 1.999293618 | F105: 2.65835527 | G105: 2.931395561 | H105: 0.6775015819 | I105: 0.7102090989 | J105: 0.7319248352
B106: 913 | C106: Retten i Svendborg | D106: Samlet | E106: 6.664186055 | F106: 6.107398845 | G106: 7.49263349 | H106: 0.1903312498 | I106: 0.1705051936 | J106: 0.196934668
D107: - ekskl. fleks og elever | E107: 5.515334819 | F107: 5.625118673 | G107: 6.925141413 | H107: 0.1575196972 | I107: 0.1674924592 | J107: 0.1904373897
B108: 914 | C108: Retten i Nykøbing F. | D108: Jurister | E108: 0.8339395876 | F108: 0.983215888 | G108: 1.080929726 | H108: 0.06598077459 | I108: 0.07767385786 | J108: 0.08250068315
B109: 914 | C109: Retten i Nykøbing F. | D109: Kontor | E109: 4.298112876 | F109: 3.988256714 | G109: 4.029782994 | H109: 0.1440607947 | I109: 0.1307607575 | J109: 0.1284493289
B110: 914 | C110: Retten i Nykøbing F. | D110: Elev | E110: 0.1627612216 | F110: 0.5492903231 | G110: 0.1897789461 | H110: 0.1378713134 | I110: 0.4119502344 | J110: 0.09488567762
B111: 914 | C111: Retten i Nykøbing F. | D111: Fleks | E111: 0.27914 | F111: 0.4551 | G111: 0.40708 | H111: 1 | I111: 1 | J111: 1
B112: 914 | C112: Retten i Nykøbing F. | D112: Øvrige | E112: 2.920239194 | F112: 2.470130231 | G112: 2.736734263 | H112: 0.9909697455 | I112: 0.9956870206 | J112: 0.9955381096
B113: 914 | C113: Retten i Nykøbing F. | D113: Samlet | E113: 8.49419288 | F113: 8.445993157 | G113: 8.444305929 | H113: 0.1811860244 | I113: 0.1780803521 | J113: 0.170142519
D114: - ekskl. fleks og elever | E114: 8.052291658 | F114: 7.441602833 | G114: 7.847446983 | H114: 0.1717600169 | I114: 0.1630518045 | J114: 0.1661763114
B115: 915 | C115: Retten i Næstved | D115: Jurister | E115: 1.224263788 | F115: 1.305696534 | G115: 1.464807651 | H115: 0.08175280502 | I115: 0.0787232851 | J115: 0.07724324329
B116: 915 | C116: Retten i Næstved | D116: Kontor | E116: 5.336168368 | F116: 5.035027401 | G116: 5.644841695 | H116: 0.1563149837 | I116: 0.1464444272 | J116: 0.1480866691
B117: 915 | C117: Retten i Næstved | D117: Elev | E117: 0.4301472193 | F117: 0.447190515 | G117: 0.1484553665 | H117: 0.131820436 | I117: 0.2240770231 | J117: 0.07422545648
B118: 915 | C118: Retten i Næstved | D118: Fleks | E118: 1.755070123 | F118: 1.098232685 | G118: 1.14146357 | H118: 0.4926125451 | I118: 0.4131971922 | J118: 0.4471820833
B119: 915 | C119: Retten i Næstved | D119: Øvrige | E119: 3.004934111 | F119: 2.652297771 | G119: 2.987710401 | H119: 0.9409650069 | I119: 0.8888248424 | J119: 0.9966243586
B120: 915 | C120: Retten i Næstved | D120: Samlet | E120: 11.75058361 | F120: 10.53844491 | G120: 11.38727868 | H120: 0.1987183827 | I120: 0.1798204654 | J120: 0.1761849441
D121: - ekskl. fleks og elever | E121: 9.565366267 | F121: 8.993021707 | G121: 10.09735975 | H121: 0.1617633794 | I121: 0.1666862837 | J121: 0.1680655219
B122: 916 | C122: Retten i Holbæk | D122: Jurister | E122: 1.593452362 | F122: 0.9467990103 | G122: 0.8092457669 | H122: 0.1291540552 | I122: 0.08420669352 | J122: 0.06487704498
B123: 916 | C123: Retten i Holbæk | D123: Kontor | E123: 3.419761221 | F123: 3.218122593 | G123: 2.671945749 | H123: 0.136347918 | I123: 0.1353203641 | J123: 0.1132043693
B124: 916 | C124: Retten i Holbæk | D124: Elev | E124: 0.1896124706 | F124: 0.120300462 | G124: 0.2987257459 | H124: 0.0721601998 | I124: 0.06014782508 | J124: 0.1302318188
B125: 916 | C125: Retten i Holbæk | D125: Fleks | E125: 0 | F125: 0.001369597657 | G125: 0.4089044619 | H125: 0 | I125: 0.0005849007115 | J125: 0.1429236148
B126: 916 | C126: Retten i Holbæk | D126: Øvrige | E126: 1.468800137 | F126: 2.385519996 | G126: 2.441442966 | H126: 0.9311703258 | I126: 0.8840301491 | J126: 0.8693575777
B127: 916 | C127: Retten i Holbæk | D127: Samlet | E127: 6.671626191 | F127: 6.672111659 | G127: 6.63026469 | H127: 0.1519957668 | I127: 0.1586128563 | J127: 0.1505526444
D128: - ekskl. fleks og elever | E128: 6.48201372 | F128: 6.550441599 | G128: 5.922634482 | H128: 0.1476759365 | I128: 0.1736425146 | J128: 0.1523126823
B129: 917 | C129: Retten i Roskilde | D129: Jurister | E129: 1.150399745 | F129: 1.199777905 | G129: 1.382938354 | H129: 0.06057346536 | I129: 0.06120569508 | J129: 0.06772838064
B130: 917 | C130: Retten i Roskilde | D130: Kontor | E130: 5.052839787 | F130: 4.917069066 | G130: 5.475695849 | H130: 0.1381879921 | I130: 0.1298933623 | J130: 0.1405791909
B131: 917 | C131: Retten i Roskilde | D131: Elev | E131: 0.09337966926 | F131: 0.02896862255 | G131: 0.03774805309 | H131: 0.02745782491 | I131: 0.01246160574 | J131: 0.01202895162
B132: 917 | C132: Retten i Roskilde | D132: Fleks | E132: 0 | F132: 0.4368218 | G132: 0 | H132: 0 | I132: 0.34 | J132: 0
B133: 917 | C133: Retten i Roskilde | D133: Øvrige | E133: 2.163716655 | F133: 2.051019083 | G133: 2.08941 | H133: 0.8748404562 | I133: 0.9300703704 | J133: 1
B134: 917 | C134: Retten i Roskilde | D134: Samlet | E134: 8.460335857 | F134: 8.633656477 | G134: 8.985792256 | H134: 0.1349891535 | I134: 0.1364537259 | J134: 0.1365298651
D135: - ekskl. fleks og elever | E135: 8.366956187 | F135: 8.167866054 | G135: 8.948044203 | H135: 0.1334992313 | I135: 0.1369016748 | J135: 0.1455930766
B136: 918 | C136: Retten i Hillerød | D136: Jurister | E136: 1.563523089 | F136: 1.125933998 | G136: 0.9391590534 | H136: 0.111007121 | I136: 0.08407260823 | J136: 0.06793601738
B137: 918 | C137: Retten i Hillerød | D137: Kontor | E137: 2.829902157 | F137: 2.328194745 | G137: 2.528984839 | H137: 0.129851815 | I137: 0.1071528556 | J137: 0.110414081
B138: 918 | C138: Retten i Hillerød | D138: Elev | E138: 0.01913789493 | F138: 0.02290674225 | G138: 0.02378894179 | H138: 0.006958905554 | I138: 0.007822325738 | J138: 0.006073271004
B139: 918 | C139: Retten i Hillerød | D139: Fleks | E139: 1.27348855 | F139: 1.280832638 | G139: 1.525754647 | H139: 0.4631473755 | I139: 0.4535735138 | J139: 0.511505579
B140: 918 | C140: Retten i Hillerød | D140: Øvrige | E140: 2.640039345 | F140: 3.072949891 | G140: 3.016763929 | H140: 0.5205422521 | I140: 0.5178206843 | J140: 0.5833361879
B141: 918 | C141: Retten i Hillerød | D141: Samlet | E141: 8.326091036 | F141: 7.830818015 | G141: 8.03445141 | H141: 0.1792496578 | I141: 0.1673007554 | J141: 0.1646398917
D142: - ekskl. fleks og elever | E142: 7.033464591 | F142: 6.527078634 | G142: 6.484907821 | H142: 0.1514211309 | I142: 0.1589853954 | J142: 0.1547699985
B143: 919 | C143: Retten i Helsingør | D143: Jurister | E143: 0.9159008137 | F143: 1.08689978 | G143: 0.8355221821 | H143: 0.07056888174 | I143: 0.08529487358 | J143: 0.07251701411
B144: 919 | C144: Retten i Helsingør | D144: Kontor | E144: 2.957827742 | F144: 2.652640666 | G144: 2.582801935 | H144: 0.1286145709 | I144: 0.1151556143 | J144: 0.1142419725
B145: 919 | C145: Retten i Helsingør | D145: Elev | E145: 0.08709938576 | F145: 0.1628429762 | G145: 0.1391379606 | H145: 0.03153478292 | I145: 0.06600395441 | J145: 0.06541942609
B146: 919 | C146: Retten i Helsingør | D146: Fleks | E146: 1.537935171 | F146: 1.470594676 | G146: 1.506686989 | H146: 0.4958937656 | I146: 0.572737308 | J146: 0.4833276624
B147: 919 | C147: Retten i Helsingør | D147: Øvrige | E147: 1.808054642 | F147: 1.769694006 | G147: 1.836844624 | H147: 0.9714926262 | I147: 0.7110803081 | J147: 0.6118613966
B148: 919 | C148: Retten i Helsingør | D148: Samlet | E148: 7.306817754 | F148: 7.142672105 | G148: 6.90099369 | H148: 0.1672006624 | I148: 0.1649513473 | J148: 0.1628508888
D149: - ekskl. fleks og elever | E149: 5.681783198 | F149: 5.509234452 | G149: 5.255168741 | H149: 0.1300152742 | I149: 0.1439688141 | J149: 0.1415267959
B150: 920 | C150: Retten i Lyngby | D150: Jurister | E150: 1.068192647 | F150: 1.040394702 | G150: 0.7974504805 | H150: 0.05985932495 | I150: 0.06420374378 | J150: 0.05561203753
B151: 920 | C151: Retten i Lyngby | D151: Kontor | E151: 4.473383298 | F151: 3.169298236 | G151: 4.463909999 | H151: 0.1490893199 | I151: 0.1121769063 | J151: 0.1488345063
B152: 920 | C152: Retten i Lyngby | D152: Elev | E152: 0.7498136004 | F152: 2.134684104 | G152: 1.495016753 | H152: 0.3146880877 | I152: 0.4598877802 | J152: 0.3975801742
B153: 920 | C153: Retten i Lyngby | D153: Fleks | E153: 0.04389274465 | F153: 0.06708863806 | G153: 0.03469408302 | H153: 0.0477178038 | I153: 0.07300893239 | J153: 0.03799384879
B154: 920 | C154: Retten i Lyngby | D154: Øvrige | E154: 2.97377084 | F154: 2.830981178 | G154: 2.643566486 | H154: 0.9802229041 | I154: 0.9961228636 | J154: 0.7805937164
B155: 920 | C155: Retten i Lyngby | D155: Samlet | E155: 9.30905313 | F155: 9.242446858 | G155: 9.434637802 | H155: 0.1717978066 | I155: 0.1748479161 | J155: 0.1800777638
D156: - ekskl. fleks og elever | E156: 8.515346785 | F156: 7.040674117 | G156: 7.904926965 | H156: 0.1571500216 | I156: 0.14885379 | J156: 0.1656572129
B157: 921 | C157: Retten i Glostrup | D157: Jurister | E157: 2.10505699 | F157: 2.315447991 | G157: 2.785414018 | H157: 0.07058773987 | I157: 0.07874227152 | J157: 0.08861175776
B158: 921 | C158: Retten i Glostrup | D158: Kontor | E158: 7.207998896 | F158: 7.54733249 | G158: 5.979792681 | H158: 0.1281859567 | I158: 0.1374222401 | J158: 0.1095153791
B159: 921 | C159: Retten i Glostrup | D159: Elev | E159: 0.7063918506 | F159: 0.5100308074 | G159: 0.4213791147 | H159: 0.1566022095 | I159: 0.1400929522 | J159: 0.1489477401
B160: 921 | C160: Retten i Glostrup | D160: Fleks | E160: 1.00003 | F160: 0.785513196 | G160: 0.8610690932 | H160: 0.5 | I160: 0.4338725281 | J160: 0.2973387018
B161: 921 | C161: Retten i Glostrup | D161: Øvrige | E161: 4.150775125 | F161: 3.608572463 | G161: 9.211525968 | H161: 0.9228497448 | I161: 0.7549014711 | J161: 0.8594565112
B162: 921 | C162: Retten i Glostrup | D162: Samlet | E162: 15.17025286 | F162: 14.76689695 | G162: 19.25918088 | H162: 0.1562956998 | I162: 0.1561684862 | J162: 0.1879328959
D163: - ekskl. fleks og elever | E163: 13.46383101 | F163: 13.47135294 | G163: 17.97673267 | H163: 0.1387148196 | I163: 0.1511828782 | J163: 0.1857982064
B164: 922 | C164: Retten på Frederiksberg | D164: Jurister | E164: 0.9223506766 | F164: 0.8231600449 | G164: 0.8998290597 | H164: 0.04023580369 | I164: 0.03318472497 | J164: 0.03522927889
B165: 922 | C165: Retten på Frederiksberg | D165: Kontor | E165: 5.126606382 | F165: 4.280378162 | G165: 4.96265854 | H165: 0.1253132187 | I165: 0.1030843623 | J165: 0.1084036296
B166: 922 | C166: Retten på Frederiksberg | D166: Elev | E166: 0.339337124 | F166: 0.1541509596 | G166: 0.3716149459 | H166: 0.0853951134 | I166: 0.04667818134 | J166: 0.1462930017
B167: 922 | C167: Retten på Frederiksberg | D167: Fleks | E167: 0.1173175813 | F167: 0.00263688487 | G167: 0.3823208118 | H167: 0.03898876418 | I167: 0.0008487517205 | J167: 0.09109014213
B168: 922 | C168: Retten på Frederiksberg | D168: Øvrige | E168: 4.9042122 | F168: 4.528052556 | G168: 7.331805009 | H168: 0.8219965405 | I168: 0.8757576832 | J168: 0.7792025406
B169: 922 | C169: Retten på Frederiksberg | D169: Samlet | E169: 11.40982396 | F169: 9.788378606 | G169: 13.94822837 | H169: 0.1485984445 | I169: 0.1256400793 | J169: 0.1594661329
D170: - ekskl. fleks og elever | E170: 10.95316926 | F170: 9.631590762 | G170: 13.19429261 | H170: 0.1426510978 | I170: 0.1347096544 | J170: 0.1634354703
B171: 923 | C171: Københavns Byret | D171: Jurister | E171: 3.981888792 | F171: 3.158767182 | G171: 4.514751751 | H171: 0.06750656296 | I171: 0.05308648983 | J171: 0.07347433507
B172: 923 | C172: Københavns Byret | D172: Kontor | E172: 23.01056656 | F172: 22.15463473 | G172: 19.84127475 | H172: 0.2065786318 | I172: 0.198992891 | J172: 0.1728630223
B173: 923 | C173: Københavns Byret | D173: Elev | E173: 1.12192377 | F173: 0.9262598759 | G173: 0.6363450048 | H173: 0.1696165785 | I173: 0.1524531948 | J173: 0.10512591
B174: 923 | C174: Københavns Byret | D174: Fleks | E174: 0 | F174: 0 | G174: 0 | H174: - | I174: - | J174: -
B175: 923 | C175: Københavns Byret | D175: Øvrige | E175: 5.079668232 | F175: 5.629063146 | G175: 5.176849643 | H175: 0.5524044464 | I175: 0.4992818322 | J175: 0.4345469981
B176: 923 | C176: Københavns Byret | D176: Samlet | E176: 33.19404735 | F176: 31.86872494 | G176: 30.16922114 | H176: 0.1782861169 | I176: 0.169346859 | J176: 0.1553566051
D177: - ekskl. fleks og elever | E177: 32.07212358 | F177: 30.94246506 | G177: 29.53287614 | H177: 0.1722602343 | I177: 0.1699104777 | J177: 0.1569727135
B178: 924 | C178: Retten på Bornholm | D178: Jurister | E178: 1.041507875 | F178: 0.7366236389 | G178: 0.5723935506 | H178: 0.3216674929 | I178: 0.2175857906 | J178: 0.200243328
B179: 924 | C179: Retten på Bornholm | D179: Kontor | E179: 2.015072438 | F179: 1.17770268 | G179: 2.338353316 | H179: 0.2842477984 | I179: 0.1687782672 | J179: 0.3303790188
B180: 924 | C180: Retten på Bornholm | D180: Elev | E180: 0.6216053409 | F180: 0.3655262158 | G180: 0.2912573548 | H180: 0.282118293 | I180: 0.1896128729 | J180: 0.2017730326
B181: 924 | C181: Retten på Bornholm | D181: Fleks | E181: 0 | F181: 0 | G181: 0 | H181: - | I181: - | J181: -
B182: 924 | C182: Retten på Bornholm | D182: Øvrige | E182: 1.50998774 | F182: 1.553818312 | G182: 1.324143793 | H182: 0.9970403775 | I182: 0.9957565254 | J182: 0.9883071426
B183: 924 | C183: Retten på Bornholm | D183: Samlet | E183: 5.188173394 | F183: 3.833670848 | G183: 4.526148014 | H183: 0.3694017284 | I183: 0.276770563 | J183: 0.3558409958
D184: - ekskl. fleks og elever | E184: 4.566568054 | F184: 3.468144632 | G184: 4.234890659 | H184: 0.3251429749 | I184: 0.2908616906 | J184: 0.3755637512
B186: 1) I opgørelsen er årsværksforbrug under kategorierne "ledelse og administration", "hjælpefunktioner" og "transporttid" henført under generel ledelse og administration mv.

Sheet Aktivitet
B2: AKTIVITET VED RETTEN MÅLT SOM VÆGTEDE AFSLUTTEDE SAGER
D4: Samlet | F4: Straffesager | H4: Civile sager | J4: Øvrige Fogedsager | L4: Tvangsauktionssager | N4: Insolvensskiftesager | P4: Dødsboskiftesager | R4: Notarialforretninger
D5: =Overblik!$D$6 -> 2018 | E5: =Overblik!$E$6 -> 2019 | F5: =Overblik!$D$6 -> 2018 | G5: =Overblik!$E$6 -> 2019 | H5: =Overblik!$D$6 -> 2018 | I5: =Overblik!$E$6 -> 2019 | J5: =Overblik!$D$6 -> 2018 | K5: =Overblik!$E$6 -> 2019 | L5: =Overblik!$D$6 -> 2018 | M5: =Overblik!$E$6 -> 2019 | N5: =Overblik!$D$6 -> 2018 | O5: =Overblik!$E$6 -> 2019 | P5: =Overblik!$D$6 -> 2018 | Q5: =Overblik!$E$6 -> 2019 | R5: =Overblik!$D$6 -> 2018 | S5: =Overblik!$E$6 -> 2019
C7: SAMLET BYRETTERNE | D7: 746501.5235 | E7: 775517.4155 | F7: 192725.3449 | G7: 192730.5324 | H7: 49931.23293 | I7: 54962.02922 | J7: 326056.2472 | K7: 337743.8692 | L7: 12631.95188 | M7: 10173.83042 | N7: 15128.06065 | O7: 17304.66585 | P7: 54946.97498 | Q7: 55337.71222 | R7: 97843.99974 | S7: 110147.0008
B8: EID | C8: Ret
B9: 901 | C9: Retten i Hjørring | D9: 23692.47431 | E9: 26367.41116 | F9: 5103.22583 | G9: 5728.04541 | H9: 1629.252502 | I9: 1764.645996 | J9: 10684.4917 | K9: 12896.32129 | L9: 571.5749207 | M9: 537.9079132 | N9: 660.6035461 | O9: 755.0011597 | P9: 2226.498077 | Q9: 2332.216736 | R9: 2044.999985 | S9: 2411.000107
B10: 902 | C10: Retten i Aalborg | D10: 40175.77402 | E10: 39028.36267 | F10: 9862.9646 | G10: 8797.159668 | H10: 2976.641724 | I10: 2855.540588 | J10: 15303.78271 | K10: 16677.90137 | L10: 526.6828156 | M10: 483.3737183 | N10: 1047.354309 | O10: 1203.705933 | P10: 3021.052612 | Q10: 3037.263245 | R10: 4427.999969 | S10: 4931.000244
B11: 903 | C11: Retten i Randers | D11: 23387.94635 | E11: 25969.1329 | F11: 4673.26709 | G11: 5002.335083 | H11: 1548.426605 | I11: 1759.735779 | J11: 11564.59058 | K11: 14434.44727 | L11: 539.0864105 | M11: 498.7974854 | N11: 730.0540619 | O11: 842.9758301 | P11: 2343.029724 | Q11: 2246.113098 | R11: 2593.000107 | S11: 3026.999893
B12: 904 | C12: Retten i Århus | D12: 43622.64002 | E12: 42958.32971 | F12: 11766.85059 | G12: 11559.65332 | H12: 2898.002686 | I12: 2737.911499 | J12: 16780.72754 | K12: 16328.00977 | L12: 440.2990417 | M12: 339.7534485 | N12: 1317.881683 | O12: 1577.440338 | P12: 2711.540039 | Q12: 2602.013794 | R12: 6175.999817 | S12: 6682.999847
B13: 905 | C13: Retten i Viborg | D13: 24919.59403 | E13: 26063.43843 | F13: 5306.53064 | G13: 6226.511475 | H13: 1719.894592 | I13: 1682.941223 | J13: 11326.56177 | K13: 11455.89722 | L13: 581.4272461 | M13: 405.8465424 | N13: 744.2971802 | O13: 801.3002014 | P13: 2189.821594 | Q13: 2106.208862 | R13: 3360.999924 | S13: 4011.999969
B14: 906 | C14: Retten i Holstebro | D14: 17463.86808 | E14: 18002.27403 | F14: 4253.936279 | G14: 4107.313965 | H14: 1051.227875 | I14: 1096.297211 | J14: 7248.803711 | K14: 7976.439941 | L14: 424.6714172 | M14: 398.0295563 | N14: 447.087265 | O14: 540.588089 | P14: 1746.374908 | Q14: 1801.352661 | R14: 2311.999893 | S14: 2549.000061
B15: 907 | C15: Retten i Herning | D15: 20567.72308 | E15: 23208.85352 | F15: 5651.328857 | G15: 6561.350098 | H15: 1228.683136 | I15: 1349.309265 | J15: 7766.885498 | K15: 9002.868652 | L15: 391.9185333 | M15: 289.9358139 | N15: 547.7787628 | O15: 639.9656982 | P15: 1618.967682 | Q15: 1745.770874 | R15: 2756.000015 | S15: 3465.999969
B16: 908 | C16: Retten i Horsens | D16: 21761.00089 | E16: 20708.06246 | F16: 4566.937378 | G16: 4284.077026 | H16: 1653.536469 | I16: 1474.410828 | J16: 9641.987793 | K16: 9083.674316 | L16: 435.9309082 | M16: 341.3041077 | N16: 617.7525024 | O16: 762.2582397 | P16: 1699.696411 | Q16: 1695.922272 | R16: 3142.000031 | S16: 3698.999924
B17: 909 | C17: Retten i Kolding | D17: 35150.8707 | E17: 37642.21076 | F17: 8397.17749 | G17: 7785.922852 | H17: 2418.955505 | I17: 3075.61853 | J17: 15842.68555 | K17: 16664.69971 | L17: 571.4271698 | M17: 506.7839203 | N17: 939.9170532 | O17: 1047.295197 | P17: 2509.425537 | Q17: 2689.059143 | R17: 5415.999969 | S17: 5397.999939
B18: 910 | C18: Retten i Esbjerg | D18: 23940.0552 | E18: 25800.60269 | F18: 6414.44458 | G18: 6336.053955 | H18: 1308.442627 | I18: 1567.613617 | J18: 10932.47876 | K18: 12195.06104 | L18: 420.449173 | M18: 347.9940643 | N18: 603.5010681 | O18: 776.0884094 | P18: 2086.383972 | Q18: 2124.627502 | R18: 2425.999969 | S18: 2892.000107
B19: 911 | C19: Retten i Sønderborg | D19: 29793.69679 | E19: 32046.88799 | F19: 8710.662598 | G19: 7877.907959 | H19: 1606.355591 | I19: 1784.401123 | J19: 11804.07544 | K19: 18439.49463 | L19: 603.6824951 | M19: 524.7101746 | N19: 630.3104248 | O19: 762.0828552 | P19: 2511.990662 | Q19: 2518.412628 | R19: 2925.000015 | S19: 3519.000031
B20: 912 | C20: Retten i Odense | D20: 39219.30496 | E20: 41139.47553 | F20: 9479.505615 | G20: 9861.360107 | H20: 2411.559448 | I20: 2574.990295 | J20: 19259.48193 | K20: 20543.22607 | L20: 653.1593323 | M20: 608.4901733 | N20: 1124.505341 | O20: 1221.179108 | P20: 3113.812195 | Q20: 3057.332336 | R20: 4062.000107 | S20: 4921.999969
B21: 913 | C21: Retten i Svendborg | D21: 19376.21214 | E21: 18711.93927 | F21: 4057.502197 | G21: 3696.667114 | H21: 1218.523041 | I21: 1119.089844 | J21: 9985.297607 | K21: 10277.05688 | L21: 403.3958893 | M21: 367.5228424 | N21: 558.0394135 | O21: 614.1002502 | P21: 1972.602539 | Q21: 1972.83728 | R21: 1914.999985 | S21: 2631.000046
B22: 914 | C22: Retten i Nykøbing F. | D22: 27369.45543 | E22: 27549.93455 | F22: 6850.87207 | G22: 6845.054443 | H22: 1403.047852 | I22: 1472.986755 | J22: 14026.06006 | K22: 14710.63037 | L22: 1386.465942 | M22: 1042.839996 | N22: 547.3398285 | O22: 626.1152344 | P22: 2244.337463 | Q22: 2154.32251 | R22: 1528.000031 | S22: 1651.000008
B23: 915 | C23: Retten i Næstved | D23: 36032.49796 | E23: 37973.02736 | F23: 9209.815674 | G23: 10341.72437 | H23: 2023.118164 | I23: 2069.896606 | J23: 17443.00781 | K23: 18751.29883 | L23: 1105.589294 | M23: 731.1750793 | N23: 963.3230286 | O23: 1028.604614 | P23: 2622.270447 | Q23: 2472.875488 | R23: 3135.999939 | S23: 4070.999878
B24: 916 | C24: Retten i Holbæk | D24: 20274.03245 | E24: 20947.17473 | F24: 4287.174316 | G24: 4466.933472 | H24: 1310.661346 | I24: 1378.948975 | J24: 10024.80371 | K24: 11423.00513 | L24: 705.4308167 | M24: 503.1082611 | N24: 590.5718079 | O24: 634.9175262 | P24: 1726.103729 | Q24: 1530.167572 | R24: 1766.000015 | S24: 1825.000046
B25: 917 | C25: Retten i Roskilde | D25: 36391.30832 | E25: 38593.277 | F25: 8367.686035 | G25: 7887.77124 | H25: 2500.242493 | I25: 3079.609619 | J25: 16736.75732 | K25: 15306.92871 | L25: 483.1692047 | M25: 407.5595093 | N25: 1155.329742 | O25: 1438.884521 | P25: 2713.036072 | Q25: 2942.65387 | R25: 4547.999908 | S25: 6078.999969
B26: 918 | C26: Retten i Hillerød | D26: 23757.17099 | E26: 23388.61862 | F26: 5744.852295 | G26: 5687.898438 | H26: 1548.743835 | I26: 1519.737793 | J26: 9670.594727 | K26: 8909.546143 | L26: 560.8435364 | M26: 419.2471161 | N26: 761.7433319 | O26: 823.4961243 | P26: 1802.917542 | Q26: 1897.987091 | R26: 2957.999908 | S26: 3194.000031
B27: 919 | C27: Retten i Helsingør | D27: 21840.22375 | E27: 22592.77757 | F27: 4540.025513 | G27: 4315.493774 | H27: 1440.248566 | I27: 1720.079956 | J27: 10529.37402 | K27: 10222.26611 | L27: 505.4365845 | M27: 357.6119385 | N27: 745.9877319 | O27: 842.6034851 | P27: 1979.370514 | Q27: 1956.020538 | R27: 1901.000053 | S27: 2216.000107
B28: 920 | C28: Retten i Lyngby | D28: 24445.0528 | E28: 25382.15147 | F28: 5449.93335 | G28: 5152.359009 | H28: 2029.97699 | I28: 2335.090698 | J28: 8783.092773 | K28: 8633.031006 | L28: 215.4587402 | M28: 123.7978096 | N28: 73.7784462 | O28: 66.48220825 | P28: 2393.009125 | Q28: 2508.304657 | R28: 13573.00037 | S28: 15516.00018
B29: 921 | C29: Retten i Glostrup | D29: 54865.00673 | E29: 57250.95115 | F29: 15254.61475 | G29: 15643.11377 | H29: 3731.905518 | I29: 4227.197998 | J29: 30308.36621 | K29: 27833.35938 | L29: 428.7471313 | M29: 344.7388306 | N29: 67.80335045 | O29: 80.49460602 | P29: 3531.277161 | Q29: 4130.964966 | R29: 5444.999908 | S29: 5795.000092
B30: 922 | C30: Retten på Frederiksberg | D30: 38676.33454 | E30: 39147.72096 | F30: 11135.11108 | G30: 11530.23145 | H30: 2599.202271 | I30: 2748.675842 | J30: 20695.41211 | K30: 19380.17383 | L30: 227.8617172 | M30: 186.5465164 | N30: 25.71851158 | O30: 33.90167522 | P30: 2499.74884 | Q30: 2275.579315 | R30: 3354.000015 | S30: 4115.999969
B31: 923 | C31: Københavns Byret | D31: 95661.57089 | E31: 100740.1932 | F31: 32846.99609 | G31: 32192.79297 | H31: 7422.799805 | I31: 9269.227783 | J31: 27997.35547 | K31: 24950.79541 | L31: 395.2616577 | M31: 332.776062 | N31: 77.15553665 | O31: 63.1272583 | P31: 3073.324402 | Q31: 2937.162354 | R31: 15595.99982 | S31: 15039.00043
B32: 924 | C32: Retten på Bornholm | D32: 4117.709124 | E32: 4304.607716 | F32: 793.9299622 | G32: 842.8014526 | H32: 251.7842941 | I32: 298.0713959 | J32: 1699.572388 | K32: 1647.736145 | L32: 53.98189926 | M32: 73.97953987 | N32: 150.2267227 | O32: 122.0572891 | P32: 610.383728 | Q32: 602.5434265 | R32: 481.9999962 | S32: 505.0000114
B34: 1) Vægtningen på tværs af sagstyper betyder, at antallet af vægtede sager inden for de enkelte sagområder ikke summer op til det samlede antal vægtede sager.

Sheet Målopf.Straf
B2: MÅLOPFYLDELSE STRAFFESAGER (80 pct. hurtigste sager)
D4: Nævninge- og domsmandssager (hfh.) | F4: Tilståelsessager | H4: Sager uden domsmænd - bødesager | J4: Sager uden domsmænd - øvrige | L4: Samlet VVV-sager | N4: Rettens andel af fristoverskridelser
D5: =Overblik!$D$6 -> 2018 | E5: =Overblik!$E$6 -> 2019 | F5: =Overblik!$D$6 -> 2018 | G5: =Overblik!$E$6 -> 2019 | H5: =Overblik!$D$6 -> 2018 | I5: =Overblik!$E$6 -> 2019 | J5: =Overblik!$D$6 -> 2018 | K5: =Overblik!$E$6 -> 2019 | L5: =Overblik!$D$6 -> 2018 | M5: =Overblik!$E$6 -> 2019 | N5: =Overblik!$D$6 -> 2018 | O5: =Overblik!$E$6 -> 2019
D6: 80 pct. | F6: 80 pct. | H6: 80 pct. | J6: 80 pct. | L6: < 37 dage
C8: MÅL | E8: < 90 dage | G8: < 45 dage | I8: < 10 dage | K8: < 95 dage | M8: 57 pct. | O8: < 20 pct.
C9: SAMLET BYRETTERNE | E9: 90 | G9: 45 | I9: 4 | K9: 95 | M9: 0.578814628 | O9: 0.1498470948
C10: 5. BEDSTE RET | E10: =SMALL(E12:E35,5) -> 65 | G10: =SMALL(G12:G35,5) -> 34 | I10: =SMALL(I12:I35,5) -> 2 | K10: =SMALL(K12:K35,5) -> 55 | M10: =LARGE(M12:M35,5) -> 0.6810344828 | O10: =SMALL(O12:O35,5) -> 0.02542372881
B11: EID | C11: Ret
B12: 901 | C12: Retten i Hjørring | E12: 93 | G12: 68 | I12: 8 | K12: 55 | M12: 0.6017699115 | O12: 0.22
B13: 902 | C13: Retten i Aalborg | E13: 98 | G13: 64 | I13: 3 | K13: 106 | M13: 0.5714285714 | O13: 0.02307692308
B14: 903 | C14: Retten i Randers | E14: 103 | G14: 82 | I14: 16 | K14: 114 | M14: 0.5909090909 | O14: 0.3050847458
B15: 904 | C15: Retten i Århus | E15: 159 | G15: 107 | I15: 7 | K15: 265 | M15: 0.6796116505 | O15: 0.1340782123
B16: 905 | C16: Retten i Viborg | E16: 131 | G16: 76 | I16: 7 | K16: 107 | M16: 0.6082474227 | O16: 0.2
B17: 906 | C17: Retten i Holstebro | E17: 39 | G17: 34 | I17: 4 | K17: 44 | M17: 0.7355371901 | O17: 0
B18: 907 | C18: Retten i Herning | E18: 57 | G18: 51 | I18: 2 | K18: 75 | M18: 0.7078651685 | O18: 0.1886792453
B19: 908 | C19: Retten i Horsens | E19: 128 | G19: 94 | I19: 8 | K19: 170 | M19: 0.4318181818 | O19: 0.2134831461
B20: 909 | C20: Retten i Kolding | E20: 86 | G20: 56 | I20: 6 | K20: 126 | M20: 0.5653846154 | O20: 0.3166666667
B21: 910 | C21: Retten i Esbjerg | E21: 112 | G21: 30 | I21: 2 | K21: 101 | M21: 0.5828877005 | O21: 0.3139534884
B22: 911 | C22: Retten i Sønderborg | E22: 94 | G22: 47 | I22: 9 | K22: 81 | M22: 0.6616161616 | O22: 0.3636363636
B23: 912 | C23: Retten i Odense | E23: 57 | G23: 43 | I23: 1 | K23: 52 | M23: 0.5648854962 | O23: 0.04098360656
B24: 913 | C24: Retten i Svendborg | E24: 71 | G24: 66 | I24: 7 | K24: 73 | M24: 0.5772357724 | O24: 0.07407407407
B25: 914 | C25: Retten i Nykøbing F. | E25: 65 | G25: 35 | I25: 4 | K25: 47 | M25: 0.6736401674 | O25: 0.1265822785
B26: 915 | C26: Retten i Næstved | E26: 76 | G26: 41 | I26: 2 | K26: 118 | M26: 0.6810344828 | O26: 0.1805555556
B27: 916 | C27: Retten i Holbæk | E27: 91 | G27: 60 | I27: 13 | K27: 114 | M27: 0.5104895105 | O27: 0.1066666667
B28: 917 | C28: Retten i Roskilde | E28: 79 | G28: 29 | I28: 1 | K28: 65 | M28: 0.7642857143 | O28: 0.02777777778
B29: 918 | C29: Retten i Hillerød | E29: 86 | G29: 38 | I29: 8 | K29: 99 | M29: 0.5221238938 | O29: 0.4181818182
B30: 919 | C30: Retten i Helsingør | E30: 79 | G30: 50 | I30: 1 | K30: 115 | M30: 0.6179775281 | O30: 0
B31: 920 | C31: Retten i Lyngby | E31: 89 | G31: 52 | I31: 5 | K31: 114 | M31: 0.5066666667 | O31: 0.3023255814
B32: 921 | C32: Retten i Glostrup | E32: 149 | G32: 56 | I32: 14 | K32: 126 | M32: 0.2754820937 | O32: 0.1597222222
B33: 922 | C33: Retten på Frederiksberg | E33: 95 | G33: 43 | I33: 6 | K33: 140 | M33: 0.4591836735 | O33: 0.02542372881
B34: 923 | C34: Københavns Byret | E34: 94 | G34: 17 | I34: 1 | K34: 122 | M34: 0.5684830633 | O34: 0.06340057637
B35: 924 | C35: Retten på Bornholm | E35: 25 | G35: 26 | I35: 2 | K35: 30 | M35: 0.9302325581 | O35: 0
B37: 1) Målene for de enkelte sagstyper er opstillet i samarbejde med byretterne. De aktuelle mål trådte i kraft i 2019, hvorfor der ikke er oplyst målopfyldelsestal for 2018.

Sheet Målopf.VVV
B2: MÅLOPFYLDELSE VVV-SAGER (PROCENT)
D4: Voldssager | F4: Voldtægtssager | H4: Våbensager | J4: Fast-track sager om ungdomskriminalitet
D5: =Overblik!$D$6 -> 2018 | E5: =Overblik!$E$6 -> 2019 | F5: =Overblik!$D$6 -> 2018 | G5: =Overblik!$E$6 -> 2019 | H5: =Overblik!$D$6 -> 2018 | I5: =Overblik!$E$6 -> 2019 | J5: =Overblik!$D$6 -> 2018 | K5: =Overblik!$E$6 -> 2019
D6: <37 dage | F6: <37 dage | H6: <37 dage | J6: <37 dage
C8: MÅL
C9: SAMLET BYRETTERNE | D9: 0.5663176265 | E9: 0.5648939102 | F9: 0.4669603524 | G9: 0.596 | H9: 0.5365853659 | I9: 0.6313993174 | K9: 0.7299270073
C10: 5. BEDSTE RET | D10: =LARGE(D12:D35,5) -> 0.7108433735 | E10: 0.6933333333 | F10: 0.75 | G10: 0.8888888889 | H10: 0.6363636364 | I10: 0.8 | K10: 0.8928571429
B11: EID | C11: Ret
B12: 901 | C12: Retten i Hjørring | D12: 0.5675675676 | E12: 0.6276595745 | F12: 0.2 | G12: 0.4285714286 | H12: 0.2307692308 | I12: 0.5 | K12: 0.8888888889
B13: 902 | C13: Retten i Aalborg | D13: 0.4795918367 | E13: 0.5384615385 | F13: 0.2142857143 | G13: 0.5714285714 | H13: 0.625 | I13: 0.6785714286 | K13: 0.5925925926
B14: 903 | C14: Retten i Randers | D14: 0.3857142857 | E14: 0.6292134831 | F14: 1 | G14: 0.4 | H14: 0.5833333333 | I14: 0.4375 | K14: 0.6818181818
B15: 904 | C15: Retten i Århus | D15: 0.6181818182 | E15: 0.664 | F15: 0 | G15: 0.7692307692 | H15: 0.5 | I15: 0.7391304348 | K15: 0.7592592593
B16: 905 | C16: Retten i Viborg | D16: 0.2375 | E16: 0.6158940397 | F16: 0.3125 | G16: 0.6111111111 | H16: 0.4782608696 | I16: 0.56 | K16: 0.8571428571
B17: 906 | C17: Retten i Holstebro | D17: 0.7108433735 | E17: 0.7722772277 | F17: 0.875 | G17: 0.4285714286 | H17: 0.7777777778 | I17: 0.6153846154 | K17: 0.95
B18: 907 | C18: Retten i Herning | D18: 0.7549019608 | E18: 0.6933333333 | F18: 0.75 | G18: 0.75 | H18: 0.7777777778 | I18: 0.8 | K18: 0.8928571429
B19: 908 | C19: Retten i Horsens | D19: 0.2551020408 | E19: 0.3861386139 | F19: 0 | G19: 0 | H19: 0.3846153846 | I19: 0.6428571429 | K19: 0.4444444444
B20: 909 | C20: Retten i Kolding | D20: 0.6299212598 | E20: 0.5566037736 | F20: 0.2857142857 | G20: 0.5384615385 | H20: 0.8 | I20: 0.6285714286 | K20: 0.756097561
B21: 910 | C21: Retten i Esbjerg | D21: 0.6823529412 | E21: 0.5629139073 | F21: 1 | G21: 0.6666666667 | H21: 0.5263157895 | I21: 0.6666666667 | K21: 0.8333333333
B22: 911 | C22: Retten i Sønderborg | D22: 0.5660377358 | E22: 0.6687898089 | F22: 0.375 | G22: 0.5454545455 | H22: 0.3636363636 | I22: 0.6666666667 | K22: 0.8076923077
B23: 912 | C23: Retten i Odense | D23: 0.6984126984 | E23: 0.5692307692 | F23: 0.5862068966 | G23: 0.7 | H23: 0.5853658537 | I23: 0.5263157895 | K23: 0.5789473684
B24: 913 | C24: Retten i Svendborg | D24: 0.6333333333 | E24: 0.5384615385 | F24: 0.3636363636 | G24: 0.7142857143 | H24: 0.25 | I24: 0.8333333333 | K24: 0.6923076923
B25: 914 | C25: Retten i Nykøbing F. | D25: 0.7254901961 | E25: 0.64 | F25: 0.8571428571 | G25: 0.9230769231 | H25: 0.5652173913 | I25: 0.8076923077 | K25: 0.7
B26: 915 | C26: Retten i Næstved | D26: 0.7849462366 | E26: 0.6958762887 | F26: 0.7142857143 | G26: 0.6428571429 | H26: 0.5 | I26: 0.5833333333 | K26: 0.9117647059
B27: 916 | C27: Retten i Holbæk | D27: 0.4444444444 | E27: 0.4476190476 | F27: 0.25 | G27: 0.8888888889 | H27: 0.6363636364 | I27: 0.6206896552 | K27: 1
B28: 917 | C28: Retten i Roskilde | D28: 0.6770833333 | E28: 0.7297297297 | F28: 0.3333333333 | G28: 1 | H28: 0.5882352941 | I28: 0.8695652174 | K28: 0.76
B29: 918 | C29: Retten i Hillerød | D29: 0.6582278481 | E29: 0.5057471264 | F29: 0.5555555556 | G29: 0.5625 | H29: 0.6 | I29: 0.6 | K29: 0.8260869565
B30: 919 | C30: Retten i Helsingør | D30: 0.5362318841 | E30: 0.5890410959 | F30: 0.6666666667 | G30: 1 | H30: 0.4 | I30: 0.6363636364 | K30: 0.8235294118
B31: 920 | C31: Retten i Lyngby | D31: 0.5833333333 | E31: 0.4210526316 | F31: 0.6 | G31: 0.75 | H31: 0.8333333333 | I31: 0.8 | K31: 0.6666666667
B32: 921 | C32: Retten i Glostrup | D32: 0.3831168831 | E32: 0.2290909091 | F32: 0.3 | G32: 0 | H32: 0.3846153846 | I32: 0.4302325581 | K32: 0.3170731707
B33: 922 | C33: Retten på Frederiksberg | D33: 0.5217391304 | E33: 0.4316546763 | F33: 0.3846153846 | G33: 0.3 | H33: 0.4615384615 | I33: 0.5744680851 | K33: 0.4117647059
B34: 923 | C34: Københavns Byret | D34: 0.4947368421 | E34: 0.5428571429 | F34: 0.2857142857 | G34: 0.3529411765 | H34: 0.6019417476 | I34: 0.6488888889 | K34: 0.6794871795
B35: 924 | C35: Retten på Bornholm | D35: 0.8947368421 | E35: 0.935483871 | F35: 0.6666666667 | G35: 1 | H35: - | I35: 0.9090909091 | K35: 1
B37: 1) Målene for voldssager, voldtægtssager, våbensager og fast-track sager om ungdomskriminalitet er fastsat eksternt.

Sheet Målopf.Civil
B2: MÅLOPFYLDELSE CIVILE SAGER (80 pct. hurtigste sager)
D4: Alle alm. sager, boligsager og småsager | F4: Hfh. almindelige sager og boligsager | H4: Hfh. småsager | J4: Familieret - §6- og 7-sager | L4: Familieret - prøvelsessager efter forenklet proces | N4: Tvangsfuldbyrdelsessager - forældreansvarsloven | P4: Konkurskarantænesager
D5: =Overblik!$D$6 -> 2018 | E5: =Overblik!$E$6 -> 2019 | F5: =Overblik!$D$6 -> 2018 | G5: =Overblik!$E$6 -> 2019 | H5: =Overblik!$D$6 -> 2018 | I5: =Overblik!$E$6 -> 2019 | J5: =Overblik!$D$6 -> 2018 | K5: =Overblik!$E$6 -> 2019 | L5: =Overblik!$D$6 -> 2018 | M5: =Overblik!$E$6 -> 2019 | N5: =Overblik!$D$6 -> 2018 | O5: =Overblik!$E$6 -> 2019 | P5: =Overblik!$D$6 -> 2018 | Q5: =Overblik!$E$6 -> 2019
D6: 80 pct. | F6: 80 pct. | H6: 80 pct. | J6: 80 pct. | L6: 80 pct. | N6: 80 pct. | P6: 80 pct.
C8: MÅL | E8: < 4 mdr. | G8: < 15 mdr. | I8: < 8 mdr. | K8: < 120 dage | M8: < 80 dage | O8: < 30 dage | Q8: < 125 dage
C9: SAMLET BYRETTERNE | E9: 91 | G9: 385 | I9: 219 | K9: 54 | M9: 38 | O9: 14 | Q9: 117
C10: 5. BEDSTE RET | E10: =SMALL(E12:E35,5) -> 72 | G10: =SMALL(G12:G35,5) -> 327 | I10: =SMALL(I12:I35,5) -> 157 | K10: =SMALL(K12:K35,5) -> 49 | M10: =SMALL(M12:M35,5) -> 28 | O10: =SMALL(O12:O35,5) -> 9 | Q10: =SMALL(Q12:Q35,5) -> 76
B11: EID | C11: Ret
B12: 901 | C12: Retten i Hjørring | E12: 76 | G12: 331 | I12: 181 | K12: 55 | M12: 27 | O12: 16 | Q12: 154
B13: 902 | C13: Retten i Aalborg | E13: 78 | G13: 486 | I13: 242 | K13: 61 | M13: 50 | O13: 25 | Q13: 126
B14: 903 | C14: Retten i Randers | E14: 104 | G14: 465 | I14: 347 | K14: 76 | M14: 64 | O14: 10 | Q14: 160
B15: 904 | C15: Retten i Århus | E15: 104 | G15: 524 | I15: 328 | K15: 62 | M15: 28 | O15: 20 | Q15: 124
B16: 905 | C16: Retten i Viborg | E16: 108 | G16: 459 | I16: 197 | K16: 89 | M16: 72 | O16: 14 | Q16: 163
B17: 906 | C17: Retten i Holstebro | E17: 59 | G17: 312 | I17: 145 | K17: 49 | M17: 24 | O17: 9 | Q17: 93
B18: 907 | C18: Retten i Herning | E18: 72 | G18: 336 | I18: 141 | K18: 65 | M18: 33 | O18: 13 | Q18: 76
B19: 908 | C19: Retten i Horsens | E19: 95 | G19: 327 | I19: 223 | K19: 71 | M19: 30 | O19: 10 | Q19: 121
B20: 909 | C20: Retten i Kolding | E20: 93 | G20: 415 | I20: 306 | K20: 64 | M20: 52 | O20: 18 | Q20: 77
B21: 910 | C21: Retten i Esbjerg | E21: 116 | G21: 547 | I21: 302 | K21: 57 | M21: 59 | O21: 19 | Q21: 155
B22: 911 | C22: Retten i Sønderborg | E22: 81 | G22: 404 | I22: 211 | K22: 59 | M22: 32 | O22: 9 | Q22: 108
B23: 912 | C23: Retten i Odense | E23: 83 | G23: 331 | I23: 200 | K23: 70 | M23: 53 | O23: 14 | Q23: 79
B24: 913 | C24: Retten i Svendborg | E24: 75 | G24: 375 | I24: 247 | K24: 39 | M24: 26 | O24: 8 | Q24: 122
B25: 914 | C25: Retten i Nykøbing F. | E25: 54 | G25: 317 | I25: 164 | K25: 53 | M25: 25 | O25: 9 | Q25: 80
B26: 915 | C26: Retten i Næstved | E26: 64 | G26: 458 | I26: 188 | K26: 57 | M26: 34 | O26: 16 | Q26: 92
B27: 916 | C27: Retten i Holbæk | E27: 94 | G27: 426 | I27: 157 | K27: 49 | M27: 48 | O27: 10 | Q27: 144
B28: 917 | C28: Retten i Roskilde | E28: 93 | G28: 418 | I28: 289 | K28: 49 | M28: 54 | O28: 18 | Q28: 113
B29: 918 | C29: Retten i Hillerød | E29: 75 | G29: 332 | I29: 206 | K29: 40 | M29: 32 | O29: 15 | Q29: 150
B30: 919 | C30: Retten i Helsingør | E30: 78 | G30: 379 | I30: 235 | K30: 51 | M30: 40 | O30: 13 | Q30: 162
B31: 920 | C31: Retten i Lyngby | E31: 81 | G31: 298 | I31: 161 | K31: 35 | M31: 39 | O31: 23 | Q31: 2
B32: 921 | C32: Retten i Glostrup | E32: 82 | G32: 389 | I32: 226 | K32: 60 | M32: 50 | O32: 12 | Q32: 23
B33: 922 | C33: Retten på Frederiksberg | E33: 98 | G33: 385 | I33: 132 | K33: 43 | M33: 39 | O33: 20 | Q33: 2
B34: 923 | C34: Københavns Byret | E34: 107 | G34: 364 | I34: 212 | K34: 50 | M34: 36 | O34: 11 | Q34: 9
B35: 924 | C35: Retten på Bornholm | E35: 53 | G35: 164 | I35: 117 | K35: 51 | M35: 36 | O35: 8 | Q35: 138
B37: 1) Målene for de enkelte sagstyper er opstillet i samarbejde med byretterne. De aktuelle mål trådte i kraft i 2019, hvorfor der ikke er oplyst målopfyldelsestal for 2018.

Sheet Målopf.Foged
B2: MÅLOPFYLDELSE FOGEDSAGER (PROCENT)
D4: Alm. fogedsager og betalingspåkrav | F4: Særlige fogedsager | H4: Tvangsauktion solgt på eller efter 1. auktion
D5: =Overblik!$D$6 -> 2018 | E5: =Overblik!$E$6 -> 2019 | F5: =Overblik!$D$6 -> 2018 | G5: =Overblik!$E$6 -> 2019 | H5: =Overblik!$D$6 -> 2018 | I5: =Overblik!$E$6 -> 2019
D6: < 3 MDR. | F6: < 2 MDR. | H6: < 5 MDR.
C8: MÅL | D8: 65 pct. | F8: 70 pct. | H8: 80 pct.
C9: SAMLET BYRETTERNE | E9: 0.6970316263 | G9: 0.7259684362 | I9: 0.79
C10: 5. BEDSTE RET | E10: =LARGE(E12:E35,5) -> 0.83959472 | G10: =LARGE(G12:G35,5) -> 0.8112652375
B11: EID | C11: Ret
B12: 901 | C12: Retten i Hjørring | E12: 0.6677956664 | G12: 0.8094262295
B13: 902 | C13: Retten i Aalborg | E13: 0.5884305535 | G13: 0.6271008403
B14: 903 | C14: Retten i Randers | E14: 0.4158491215 | G14: 0.6247787611
B15: 904 | C15: Retten i Århus | E15: 0.406588674 | G15: 0.8659370725
B16: 905 | C16: Retten i Viborg | E16: 0.7476227701 | G16: 0.7748091603
B17: 906 | C17: Retten i Holstebro | E17: 0.9330852093 | G17: 0.9174917492
B18: 907 | C18: Retten i Herning | E18: 0.7947312149 | G18: 0.7540540541
B19: 908 | C19: Retten i Horsens | E19: 0.8225540506 | G19: 0.8050847458
B20: 909 | C20: Retten i Kolding | E20: 0.8087672813 | G20: 0.7855769231
B21: 910 | C21: Retten i Esbjerg | E21: 0.7937330874 | G21: 0.8010033445
B22: 911 | C22: Retten i Sønderborg | E22: 0.5151586023 | G22: 0.7179080824
B23: 912 | C23: Retten i Odense | E23: 0.7388548745 | G23: 0.7653157399
B24: 913 | C24: Retten i Svendborg | E24: 0.5537184095 | G24: 0.7742718447
B25: 914 | C25: Retten i Nykøbing F. | E25: 0.8382040259 | G25: 0.7986577181
B26: 915 | C26: Retten i Næstved | E26: 0.7595385913 | G26: 0.7835325365
B27: 916 | C27: Retten i Holbæk | E27: 0.7298960108 | G27: 0.6295454545
B28: 917 | C28: Retten i Roskilde | E28: 0.8640690773 | G28: 0.7720670391
B29: 918 | C29: Retten i Hillerød | E29: 0.83959472 | G29: 0.7222222222
B30: 919 | C30: Retten i Helsingør | E30: 0.8260438853 | G30: 0.7876447876
B31: 920 | C31: Retten i Lyngby | E31: 0.8826876526 | G31: 0.9001692047
B32: 921 | C32: Retten i Glostrup | E32: 0.5796975891 | G32: 0.5567478333
B33: 922 | C33: Retten på Frederiksberg | E33: 0.6166225571 | G33: 0.5928509154
B34: 923 | C34: Københavns Byret | E34: 0.7491824553 | G34: 0.8112652375
B35: 924 | C35: Retten på Bornholm | E35: 0.9936307819 | G35: 0.95
B37: 1) Målene for de enkelte sagstyper er opstillet i samarbejde med byretterne. De aktuelle mål trådte i kraft i 2019, hvorfor der ikke er oplyst målopfyldelsestal for 2018.

Sheet Målopf.Skifte
B2: MÅLOPFYLDELSE SKIFTESAGER (PROCENT)
D4: Udlevering af bo | F4: Tvangsopløsningssager (eksklusive likvidation) | H4: Gældssanering (kun indledte sager)
D5: =Overblik!$D$6 -> 2018 | E5: =Overblik!$E$6 -> 2019 | F5: =Overblik!$D$6 -> 2018 | G5: =Overblik!$E$6 -> 2019 | H5: =Overblik!$D$6 -> 2018 | I5: =Overblik!$E$6 -> 2019
D6: <2 MDR. | F6: <3 MDR. | H6: <9 MDR.
C8: MÅL (procent) | D8: 80 pct. | F8: 75 pct. | H8: 75 pct.
C9: SAMLET BYRETTERNE | D9: 75.2598551 | E9: 0.781956179 | F9: 86.26229706 | G9: 0.7898582796 | H9: 80.88669243 | I9: 0.7922298999
C10: 5. BEDSTE RET | D10: =LARGE(D12:D35,5) -> 0.8221 | E10: =LARGE(E12:E35,5) -> 0.8588 | F10: 0.9128512821 | G10: 0.8308608696 | H10: 0.911137037 | I10: 0.900015
B11: EID | C11: Ret
B12: 901 | C12: Retten i Hjørring | D12: 0.7883 | E12: 0.7903 | F12: 0.9508785276 | G12: 0.8289813472 | H12: 0.8393258929 | I12: 0.8240216
B13: 902 | C13: Retten i Aalborg | D13: 0.715 | E13: 0.8077 | F13: 0.9038221154 | G13: 0.8234677485 | H13: 0.6315593985 | I13: 0.6666484127
B14: 903 | C14: Retten i Randers | D14: 0.784 | E14: 0.8138 | F14: 0.8191209524 | G14: 0.7055430421 | H14: 0.7524712871 | I14: 0.6666656566
B15: 904 | C15: Retten i Århus | D15: 0.6121 | E15: 0.6345 | F15: 0.8953017032 | G15: 0.8010179775 | H15: 0.869601087 | I15: 0.8765333333
B16: 905 | C16: Retten i Viborg | D16: 0.7717 | E16: 0.7692 | F16: 0.900539267 | G16: 0.7752090604 | H16: 0.7355008264 | I16: 0.7884884615
B17: 906 | C17: Retten i Holstebro | D17: 0.6775 | E17: 0.8756 | F17: 0.9435314516 | G17: 0.922656701 | H17: 0.9384369231 | I17: 0.9792
B18: 907 | C18: Retten i Herning | D18: 0.7823 | E18: 0.733 | F18: 0.8346212598 | G18: 0.7489331984 | H18: 0.903244086 | I18: 0.8142671429
B19: 908 | C19: Retten i Horsens | D19: 0.7155 | E19: 0.7637 | F19: 0.884952518 | G19: 0.8308608696 | H19: 0.9868289474 | I19: 0.9545363636
B20: 909 | C20: Retten i Kolding | D20: 0.7817 | E20: 0.8665 | F20: 0.861218509 | G20: 0.7933465887 | H20: 0.7669883495 | I20: 0.900015
B21: 910 | C21: Retten i Esbjerg | D21: 0.484 | E21: 0.6868 | F21: 0.8354607595 | G21: 0.7955408922 | H21: 0.7499683333 | I21: 0.7822491935
B22: 911 | C22: Retten i Sønderborg | D22: 0.6849 | E22: 0.655 | F22: 0.9155128889 | G22: 0.8155333333 | H22: 0.6219268293 | I22: 0.4096445783
B23: 912 | C23: Retten i Odense | D23: 0.8221 | E23: 0.8066 | F23: 0.8484348485 | G23: 0.8380356275 | H23: 0.911137037 | I23: 0.8999963636
B24: 913 | C24: Retten i Svendborg | D24: 0.7414 | E24: 0.8588 | F24: 0.8959552083 | G24: 0.7903812227 | H24: 0.7288288136 | I24: 0.70997
B25: 914 | C25: Retten i Nykøbing F. | D25: 0.931 | E25: 0.9239 | F25: 0.8129141935 | G25: 0.8091460581 | H25: 0.9208287129 | I25: 0.8645583333
B26: 915 | C26: Retten i Næstved | D26: 0.7337 | E26: 0.7818 | F26: 0.8880088803 | G26: 0.7937762238 | H26: 0.8217960396 | I26: 0.8604406977
B27: 916 | C27: Retten i Holbæk | D27: 0.8452 | E27: 0.7448 | F27: 0.8583292035 | G27: 0.8602521505 | H27: 0.8627705882 | I27: 0.7260438356
B28: 917 | C28: Retten i Roskilde | D28: 0.7776 | E28: 0.7622 | F28: 0.7556780899 | G28: 0.7070511811 | H28: 0.7983159664 | I28: 0.8333411111
B29: 918 | C29: Retten i Hillerød | D29: 0.7684 | E29: 0.7898 | F29: 0.9128512821 | G29: 0.6537091873 | H29: 0.77502 | I29: 0.7000233333
B30: 919 | C30: Retten i Helsingør | D30: 0.7424 | E30: 0.7999 | F30: 0.7867817259 | G30: 0.8139868922 | H30: 0.8571285714 | I30: 0.9138034483
B31: 920 | C31: Retten i Lyngby | D31: 0.7757 | E31: 0.7709 | F31: - | G31: - | H31: - | I31: -
B32: 921 | C32: Retten i Glostrup | D32: 0.845 | E32: 0.7803 | F32: - | G32: - | H32: - | I32: -
B33: 922 | C33: Retten på Frederiksberg | D33: 0.7742 | E33: 0.7436 | F33: - | G33: - | H33: - | I33: -
B34: 923 | C34: Københavns Byret | D34: 0.6765 | E34: 0.7915 | F34: - | G34: - | H34: - | I34: -
B35: 924 | C35: Retten på Bornholm | D35: 0.961 | E35: 0.9651 | F35: 0.9395363636 | G35: 0.857175 | H35: 1 | I35: 1
B37: 1) Målene for de enkelte sagstyper er opstillet i samarbejde med byretterne. De aktuelle mål trådte i kraft i 2019, hvorfor der ikke er oplyst målopfyldelsestal for 2018.

Sheet Sagstid.Straf
B2: GENNEMSNITLIG SAGSBEHANDLINGSTID STRAFFESAGER (DAGE)
D4: Nævningesager | F4: Domsmandssager | H4: Sager uden domsmænd | J4: Tilståelsessager
D5: =Overblik!$D$6 -> 2018 | E5: =Overblik!$E$6 -> 2019 | F5: =Overblik!$D$6 -> 2018 | G5: =Overblik!$E$6 -> 2019 | H5: =Overblik!$D$6 -> 2018 | I5: =Overblik!$E$6 -> 2019 | J5: =Overblik!$D$6 -> 2018 | K5: =Overblik!$E$6 -> 2019
C6: SAMLET BYRETTERNE | D6: 133.536036 | E6: 191.7698745 | F6: 134.495307 | G6: 155.9545677 | H6: 29.97034207 | I6: 25.74931509 | J6: 86.06921348 | K6: 88.86183575
C7: 5. BEDSTE RET | D7: =SMALL(D9:D32,5) -> 62 | E7: =SMALL(E9:E32,5) -> 105 | F7: 91 | G7: 100 | H7: 19 | I7: 14 | J7: 58 | K7: 62
B8: EID | C8: Ret
B9: 901 | C9: Retten i Hjørring | D9: 121 | E9: 119 | F9: 107 | G9: 142 | H9: 26 | I9: 23 | J9: 78 | K9: 101
B10: 902 | C10: Retten i Aalborg | D10: 97 | E10: 166 | F10: 142 | G10: 159 | H10: 27 | I10: 23 | J10: 98 | K10: 101
B11: 903 | C11: Retten i Randers | D11: 117 | E11: 120 | F11: 139 | G11: 169 | H11: 37 | I11: 36 | J11: 102 | K11: 121
B12: 904 | C12: Retten i Århus | D12: 147 | E12: 124 | F12: 222 | G12: 276 | H12: 72 | I12: 46 | J12: 175 | K12: 209
B13: 905 | C13: Retten i Viborg | D13: 108 | E13: 124 | F13: 147 | G13: 194 | H13: 37 | I13: 41 | J13: 136 | K13: 114
B14: 906 | C14: Retten i Holstebro | D14: 155 | E14: 38 | F14: 79 | G14: 63 | H14: 27 | I14: 13 | J14: 61 | K14: 48
B15: 907 | C15: Retten i Herning | D15: 118 | E15: 106 | F15: 106 | G15: 84 | H15: 25 | I15: 22 | J15: 74 | K15: 76
B16: 908 | C16: Retten i Horsens | D16: 126 | E16: 134 | F16: 119 | G16: 190 | H16: 56 | I16: 38 | J16: 98 | K16: 144
B17: 909 | C17: Retten i Kolding | D17: 76 | E17: 92 | F17: 110 | G17: 142 | H17: 22 | I17: 22 | J17: 62 | K17: 95
B18: 910 | C18: Retten i Esbjerg | D18: 176 | E18: 221 | F18: 159 | G18: 182 | H18: 30 | I18: 29 | J18: 67 | K18: 62
B19: 911 | C19: Retten i Sønderborg | D19: 40 | E19: 129 | F19: 131 | G19: 158 | H19: 47 | I19: 43 | J19: 73 | K19: 82
B20: 912 | C20: Retten i Odense | D20: 62 | E20: 214 | F20: 89 | G20: 96 | H20: 10 | I20: 8 | J20: 58 | K20: 65
B21: 913 | C21: Retten i Svendborg | D21: 106 | E21: 13 | F21: 171 | G21: 137 | H21: 39 | I21: 24 | J21: 94 | K21: 108
B22: 914 | C22: Retten i Nykøbing F. | D22: 111 | E22: 131 | F22: 77 | G22: 100 | H22: 19 | I22: 14 | J22: 37 | K22: 61
B23: 915 | C23: Retten i Næstved | D23: 109 | E23: 177 | F23: 132 | G23: 116 | H23: 14 | I23: 13 | J23: 97 | K23: 73
B24: 916 | C24: Retten i Holbæk | D24: 61 | E24: 105 | F24: 130 | G24: 146 | H24: 34 | I24: 43 | J24: 89 | K24: 94
B25: 917 | C25: Retten i Roskilde | D25: 98 | E25: 277 | F25: 124 | G25: 119 | H25: 24 | I25: 18 | J25: 64 | K25: 51
B26: 918 | C26: Retten i Hillerød | D26: 97 | E26: 161 | F26: 115 | G26: 126 | H26: 24 | I26: 29 | J26: 57 | K26: 62
B27: 919 | C27: Retten i Helsingør | D27: 113 | E27: 122 | F27: 102 | G27: 115 | H27: 23 | I27: 21 | J27: 79 | K27: 77
B28: 920 | C28: Retten i Lyngby | D28: 8 | E28: 174 | F28: 91 | G28: 130 | H28: 15 | I28: 25 | J28: 33 | K28: 87
B29: 921 | C29: Retten i Glostrup | D29: 136 | E29: 177 | F29: 162 | G29: 224 | H29: 48 | I29: 38 | J29: 115 | K29: 98
B30: 922 | C30: Retten på Frederiksberg | D30: 152 | E30: 294 | F30: 144 | G30: 153 | H30: 35 | I30: 32 | J30: 101 | K30: 80
B31: 923 | C31: Københavns Byret | D31: 201 | E31: 219 | F31: 152 | G31: 164 | H31: 23 | I31: 20 | J31: 79 | K31: 62
B32: 924 | C32: Retten på Bornholm | D32: 28 | E32: 0 | F32: 41 | G32: 42 | H32: 11 | I32: 11 | J32: 32 | K32: 32

Sheet Sagstid.Civil
B2: GENNEMSNITLIG SAGSBEHANDLINGSTID CIVILE SAGER (DAGE)
D4: Hovedforhandlede almindelige sager | F4: Hovedforhandlede boligretssager | H4: Hovedforhandlede småsager | J4: Alle ægteskabssager | L4: Alle forældre- ansvarssager
D5: =Overblik!$D$6 -> 2018 | E5: =Overblik!$E$6 -> 2019 | F5: =Overblik!$D$6 -> 2018 | G5: =Overblik!$E$6 -> 2019 | H5: =Overblik!$D$6 -> 2018 | I5: =Overblik!$E$6 -> 2019 | J5: =Overblik!$D$6 -> 2018 | K5: =Overblik!$E$6 -> 2019 | L5: =Overblik!$D$6 -> 2018 | M5: =Overblik!$E$6 -> 2019
C6: SAMLET BYRETTERNE | D6: 500.2284269 | E6: 536.7705589 | F6: 545.1807451 | G6: 447.8553651 | H6: 288.7873553 | I6: 287.7875 | J6: 117.2434242 | K6: 137.4438902 | L6: 147.3172643 | M6: 111.6521497
C7: 5. BEDSTE RET | D7: =SMALL(D9:D32,5) -> 421.733194 | E7: 434.87925 | F7: 289.159 | G7: 243.36 | H7: 211.7197627 | I7: 196.9976667 | J7: 93.3894 | K7: 100.4536 | L7: 119.1884571 | M7: 88.0656824
B8: EID | C8: Ret
B9: 901 | C9: Retten i Hjørring | D9: 483.197134 | E9: 462.0350968 | F9: 289.159 | G9: 197.73 | H9: 246.7866207 | I9: 233.22 | J9: 78.86666667 | K9: 100.4536 | L9: 152.1553091 | M9: 125.444475
B10: 902 | C10: Retten i Aalborg | D10: 500.4864583 | E10: 611.2285263 | F10: 413.2774286 | G10: 519.844 | H10: 332.7948 | I10: 293.8432672 | J10: 98.99175 | K10: 159.8593043 | L10: 139.1715 | M10: 155.481665
B11: 903 | C11: Retten i Randers | D11: 505.0009714 | E11: 592.163325 | F11: 1672.258596 | G11: 810.9017647 | H11: 373.7521224 | I11: 417.3305882 | J11: 140.79 | K11: 192.7614 | L11: 185.1350526 | M11: 130.1631373
B12: 904 | C12: Retten i Århus | D12: 608.8778621 | E12: 702.1536889 | F12: 511.2370714 | G12: 586.9032 | H12: 395.9917317 | I12: 412.3224444 | J12: 127.764 | K12: 203.6005263 | L12: 151.6752162 | M12: 140.7711724
B13: 905 | C13: Retten i Viborg | D13: 576.0712941 | E13: 633.0053438 | F13: 422.9301818 | G13: 358.449 | H13: 231.8350244 | I13: 231.62295 | J13: 128.5752 | K13: 163.3554 | L13: 146.4385 | M13: 112.0823721
B14: 906 | C14: Retten i Holstebro | D14: 508.6731 | E14: 434.87925 | F14: 163.254 | G14: 197.73 | H14: 173.8647857 | I14: 188.773 | J14: 89.4855 | K14: 107.484 | L14: 119.1884571 | M14: 90.86681633
B15: 907 | C15: Retten i Herning | D15: 449.2415065 | E15: 469.49214 | F15: 290.004 | G15: 236.262 | H15: 206.856 | I15: 173.324069 | J15: 79.6835 | K15: 129.116 | L15: 118.534 | M15: 87.711
B16: 908 | C16: Retten i Horsens | D16: 494.4026486 | E16: 447.956962 | F16: 323.6913333 | G16: 282.23 | H16: 229.32 | I16: 270.0282 | J16: 93.3894 | K16: 113.1624 | L16: 123.708 | M16: 94.61727731
B17: 909 | C17: Retten i Kolding | D17: 512.4342524 | E17: 574.5305047 | F17: 472.524 | G17: 304.538 | H17: 375.18 | I17: 362.4016777 | J17: 109.902 | K17: 132.7326 | L17: 131.2948929 | M17: 90.28596059
B18: 910 | C18: Retten i Esbjerg | D18: 598.1892558 | E18: 691.9972405 | F18: 430.274 | G18: 321.0324 | H18: 319.41 | I18: 378.0990909 | J18: 193.674 | K18: 222.8265 | L18: 172.35972 | M18: 142.6431158
B19: 911 | C19: Retten i Sønderborg | D19: 566.124 | E19: 618.5721905 | F19: 353.7411429 | G19: 483.678 | H19: 286.5338667 | I19: 263.0521739 | J19: 119.99 | K19: 162.8961176 | L19: 139.0258723 | M19: 115.0429091
B20: 912 | C20: Retten i Odense | D20: 497.5723671 | E20: 483.0985714 | F20: 279.4231304 | G20: 369.46104 | H20: 211.7197627 | I20: 248.6267463 | J20: 82.02133333 | K20: 86.697 | L20: 127.3535714 | M20: 88.0656824
B21: 913 | C21: Retten i Svendborg | D21: 527.6092208 | E21: 576.8277273 | F21: 375.9405 | G21: 378.0192 | H21: 320.1536 | I21: 298.792 | J21: 108.9036 | K21: 102.9773333 | L21: 124.0556571 | M21: 80.79685714
B22: 914 | C22: Retten i Nykøbing F. | D22: 417.4611316 | E22: 419.7739565 | F22: 354.6465 | G22: 290.173 | H22: 177.0921176 | I22: 202.1547273 | J22: 104.6955 | K22: 81.39654545 | L22: 95.64192857 | M22: 76.4112375
B23: 915 | C23: Retten i Næstved | D23: 487.5312 | E23: 604.5916047 | F23: 389.1374118 | G23: 534.8286667 | H23: 239.0847568 | I23: 226.9581053 | J23: 145.2917143 | K23: 101.8506667 | L23: 128.5111579 | M23: 105.426322
B24: 916 | C24: Retten i Holbæk | D24: 421.733194 | E24: 547.222 | F24: 354.6746667 | G24: 370.11 | H24: 251.8830811 | I24: 206.5518 | J24: 108.7877143 | K24: 148.6524 | L24: 117.4945532 | M24: 107.8014261
B25: 917 | C25: Retten i Roskilde | D25: 482.82 | E25: 538.7802439 | F25: 432.2456667 | G25: 490.7410345 | H25: 294.06 | I25: 337.8696867 | J25: 163.1019 | K25: 153.6934286 | L25: 219.4296 | M25: 138.3541992
B26: 918 | C26: Retten i Hillerød | D26: 407.7776066 | E26: 430.5937297 | F26: 373.4417143 | G26: 243.36 | H26: 255.4266 | I26: 267.2301081 | J26: 99.372 | K26: 122.9193333 | L26: 149.1614694 | M26: 133.6243235
B27: 919 | C27: Retten i Helsingør | D27: 426.864466 | E27: 527.4568605 | F27: 426.0152 | G27: 359.8251429 | H27: 264.1099024 | I27: 289.4886885 | J27: 111.7653333 | K27: 87.6772 | L27: 169.9982791 | M27: 119.3905781
B28: 920 | C28: Retten i Lyngby | D28: 365.2606941 | E28: 404.079 | F28: 277.6516364 | G28: 411.5826 | H28: 241.4112187 | I28: 196.9976667 | J28: 108.8182105 | K28: 150.9733333 | L28: 172.746766 | M28: 96.42432558
B29: 921 | C29: Retten i Glostrup | D29: 524.0676797 | E29: 551.2732394 | F29: 471.51 | G29: 440.72496 | H29: 255.2555821 | I29: 281.598087 | J29: 100.1266047 | K29: 98.79648649 | L29: 139.2150303 | M29: 88.11290756
B30: 922 | C30: Retten på Frederiksberg | D30: 587.0411512 | E30: 597.115362 | F30: 500.6987143 | G30: 458.8473659 | H30: 270.6221143 | I30: 182.4138837 | J30: 121.3758 | K30: 145.0865 | L30: 160.7437317 | M30: 99.44475336
B31: 923 | C31: Københavns Byret | D31: 495.7333333 | E31: 500.5578078 | F31: 448.5445714 | G31: 437.75225 | H31: 310.019728 | I31: 291.1710566 | J31: 145.8025263 | K31: 152.5175294 | L31: 188.4662963 | M31: 131.8165973
B32: 924 | C32: Retten på Bornholm | D32: 414.2488235 | E32: 226.512 | F32: 122.187 | G32: 187.8435 | H32: 209.4924 | I32: 139.6785 | J32: 159.6325714 | K32: 105.625 | L32: 82.2354 | M32: 56.20786364
B34: 1) Alle civile sager med forhandlingsmaksime inkluderer sagstyperne almindelige sager, boligretssager, forbud/påbudssager og småsager.

Sheet Sagstid.Foged
B2: GENNEMSNITLIG SAGSBEHANDLINGSTID FOGEDSAGER (DAGE)
D4: Alm. fogedsager | F4: Særlige fogedsager | H4: Betalingspåkrav | J4: Tvangsauktioner
D5: =Overblik!$D$6 -> 2018 | E5: =Overblik!$E$6 -> 2019 | F5: =Overblik!$D$6 -> 2018 | G5: =Overblik!$E$6 -> 2019 | H5: =Overblik!$D$6 -> 2018 | I5: =Overblik!$E$6 -> 2019 | J5: =Overblik!$D$6 -> 2018 | K5: =Overblik!$E$6 -> 2019
C6: SAMLET BYRETTERNE | D6: 82.74815948 | E6: 90.52076599 | F6: 48.55454962 | G6: 52.43204868 | H6: 82.94203313 | I6: 74.25734209 | J6: 67.06208969 | K6: 68.04619619
C7: 5. BEDSTE RET | D7: =SMALL(D9:D32,5) -> 56.75281778 | E7: =SMALL(E9:E32,5) -> 61.58295113 | F7: 38.50516283 | G7: 45.04849498 | H7: 54.60540541 | I7: 52.80696143 | J7: 54 | K7: 53
B8: EID | C8: Ret
B9: 901 | C9: Retten i Hjørring | D9: 56.75281778 | E9: 83.18656963 | F9: 35.03076923 | G9: 47.2192623 | H9: 71.27825497 | I9: 61.25413131 | J9: 84 | K9: 80
B10: 902 | C10: Retten i Aalborg | D10: 64.98275331 | E10: 99.13823556 | F10: 55.11389522 | G10: 62.00210084 | H10: 96.31415461 | I10: 69.36063269 | J10: 60 | K10: 77
B11: 903 | C11: Retten i Randers | D11: 114.9492871 | E11: 133.470018 | F11: 69.57206538 | G11: 69.5539823 | H11: 116.1987796 | I11: 102.3444046 | J11: 94 | K11: 115
B12: 904 | C12: Retten i Århus | D12: 105.2783143 | E12: 141.2140711 | F12: 38.97269625 | G12: 41.25649795 | H12: 93.15954416 | I12: 113.2943825 | J12: 66 | K12: 68
B13: 905 | C13: Retten i Viborg | D13: 65.28458003 | E13: 85.76863253 | F13: 50.45737705 | G13: 48.92938931 | H13: 61.10082806 | I13: 77.59101237 | J13: 66 | K13: 74
B14: 906 | C14: Retten i Holstebro | D14: 44.95084327 | E14: 45.24340842 | F14: 28.09177215 | G14: 33.23762376 | H14: 49.2414979 | I14: 44.68637048 | J14: 66 | K14: 53
B15: 907 | C15: Retten i Herning | D15: 61.50138013 | E15: 73.99461685 | F15: 40.43781095 | G15: 55.52972973 | H15: 56.8769559 | I15: 61.22229361 | J15: 57 | K15: 62
B16: 908 | C16: Retten i Horsens | D16: 72.30747078 | E16: 61.58295113 | F16: 43.67741935 | G16: 45.87288136 | H16: 87.6372549 | I16: 70.07551693 | J16: 64 | K16: 55
B17: 909 | C17: Retten i Kolding | D17: 55.49160207 | E17: 73.49851787 | F17: 39.36756757 | G17: 48.25384615 | H17: 47.32624237 | I17: 52.80696143 | J17: 54 | K17: 64
B18: 910 | C18: Retten i Esbjerg | D18: 51.58879047 | E18: 58.18642104 | F18: 36.75065963 | G18: 45.04849498 | H18: 73.31321244 | I18: 74.67512047 | J18: 70 | K18: 66
B19: 911 | C19: Retten i Sønderborg | D19: 73.1895683 | E19: 118.0636 | F19: 49.10751105 | G19: 55.70206022 | H19: 175.6742546 | I19: 136.9558247 | J19: 89 | K19: 89
B20: 912 | C20: Retten i Odense | D20: 75.39640434 | E20: 83.8533388 | F20: 38.50516283 | G20: 45.64561734 | H20: 90.50287987 | I20: 53.20988629 | J20: 71 | K20: 53
B21: 913 | C21: Retten i Svendborg | D21: 106.4509033 | E21: 86.17469965 | F21: 56.58733624 | G21: 51.18203883 | H21: 189.1641253 | I21: 121.1664865 | J21: 81 | K21: 89
B22: 914 | C22: Retten i Nykøbing F. | D22: 75.24575477 | E22: 69.83249628 | F22: 46.32714286 | G22: 45.41946309 | H22: 75.95245078 | I22: 58.27243861 | J22: 54 | K22: 55
B23: 915 | C23: Retten i Næstved | D23: 93.02628621 | E23: 78.49596651 | F23: 52.94318182 | G23: 53.62018592 | H23: 115.0600505 | I23: 79.0394675 | J23: 68 | K23: 61
B24: 916 | C24: Retten i Holbæk | D24: 61.83408135 | E24: 82.871695 | F24: 43.9939759 | G24: 59.83636364 | H24: 58.29144225 | I24: 72.31437126 | J24: 81 | K24: 75
B25: 917 | C25: Retten i Roskilde | D25: 63.65395454 | E25: 66.60530039 | F25: 46.95557351 | G25: 51.42011173 | H25: 58.48449406 | I25: 55.44341148 | J25: 56 | K25: 58
B26: 918 | C26: Retten i Hillerød | D26: 64.04495934 | E26: 71.56656245 | F26: 47.44605475 | G26: 45.88492063 | H26: 56.94895449 | I26: 59.13729309 | J26: 45 | K26: 47
B27: 919 | C27: Retten i Helsingør | D27: 89.01426471 | E27: 75.39681881 | F27: 42.58433735 | G27: 46.7027027 | H27: 100.0215506 | I27: 61.85663082 | J27: 59 | K27: 63
B28: 920 | C28: Retten i Lyngby | D28: 63.52278313 | E28: 59.41920865 | F28: 40.9125964 | G28: 39.64467005 | H28: 48.09824992 | I28: 41.79660453 | J28: 49 | K28: 47
B29: 921 | C29: Retten i Glostrup | D29: 138.299454 | E29: 139.1657914 | F29: 49.22488336 | G29: 60.81097813 | H29: 54.60540541 | I29: 51.65749778 | J29: 60 | K29: 73
B30: 922 | C30: Retten på Frederiksberg | D30: 113.2241101 | E30: 119.3118174 | F30: 64.27459016 | G30: 65.63775065 | H30: 80.48282995 | I30: 70.83579935 | J30: 78 | K30: 81
B31: 923 | C31: Københavns Byret | D31: 84.75326759 | E31: 84.03561376 | F31: 49.35247525 | G31: 47.69230769 | H31: 67.33943929 | I31: 72.11412251 | J31: 81 | K31: 67
B32: 924 | C32: Retten på Bornholm | D32: 26.96698523 | E32: 24.85339885 | F32: 26.72941176 | G32: 32.01666667 | H32: 25.34384858 | I32: 25.95714286 | J32: 50 | K32: 36

Sheet Sagstid.Skifte
B2: GENNEMSNITLIG SAGSBEHANDLINGSTID SKIFTESAGER (DAGE)
D4: Boudlæg | F4: Uskiftet bo | H4: Privat skifte | J4: Forenklet privat skifte
D5: =Overblik!$D$6 -> 2018 | E5: =Overblik!$E$6 -> 2019 | F5: =Overblik!$D$6 -> 2018 | G5: =Overblik!$E$6 -> 2019 | H5: =Overblik!$D$6 -> 2018 | I5: =Overblik!$E$6 -> 2019 | J5: =Overblik!$D$6 -> 2018 | K5: =Overblik!$E$6 -> 2019
C6: SAMLET BYRETTERNE | D6: 51.1015314 | E6: 49.44844328 | F6: 99.1195218 | G6: 101.2074358 | H6: 354.8299834 | I6: 362.8787629 | J6: 76.8242631 | K6: 75.40258171
C7: 5. BEDSTE RET | D7: =SMALL(D9:D32,5) -> 41.66 | E7: 41.08 | F7: 84.29 | G7: 79.15 | H7: 334.5 | I7: 345.69 | J7: 68.21 | K7: 62.95
B8: EID | C8: Ret
B9: 901 | C9: Retten i Hjørring | D9: 55.55 | E9: 53.3 | F9: 84.09 | G9: 82.56 | H9: 333.63 | I9: 348.3 | J9: 72.13 | K9: 70.45
B10: 902 | C10: Retten i Aalborg | D10: 51.77 | E10: 41.08 | F10: 84.46 | G10: 75.39 | H10: 353.89 | I10: 345.69 | J10: 82 | K10: 72.36
B11: 903 | C11: Retten i Randers | D11: 55.88 | E11: 52.48 | F11: 86.17 | G11: 97.84 | H11: 337.99 | I11: 354.41 | J11: 73.11 | K11: 72.95
B12: 904 | C12: Retten i Århus | D12: 71.46 | E12: 70.62 | F12: 112.03 | G12: 113.25 | H12: 408.43 | I12: 432.04 | J12: 81.35 | K12: 85.05
B13: 905 | C13: Retten i Viborg | D13: 51.84 | E13: 49.19 | F13: 92.71 | G13: 85.05 | H13: 331.53 | I13: 330.01 | J13: 70.42 | K13: 73.64
B14: 906 | C14: Retten i Holstebro | D14: 62.87 | E14: 41.87 | F14: 82.1 | G14: 81.39 | H14: 355.15 | I14: 354.42 | J14: 81.18 | K14: 54.45
B15: 907 | C15: Retten i Herning | D15: 58.18 | E15: 62.94 | F15: 84.29 | G15: 115.07 | H15: 335.97 | I15: 354.26 | J15: 73.28 | K15: 95.28
B16: 908 | C16: Retten i Horsens | D16: 56.3 | E16: 52.02 | F16: 108.77 | G16: 101.24 | H16: 359.72 | I16: 378.01 | J16: 85.23 | K16: 76.32
B17: 909 | C17: Retten i Kolding | D17: 41.46 | E17: 30.37 | F17: 90.81 | G17: 78.75 | H17: 346.92 | I17: 331.62 | J17: 66.88 | K17: 59.25
B18: 910 | C18: Retten i Esbjerg | D18: 64.94 | E18: 56.95 | F18: 113.15 | G18: 117.3 | H18: 409.41 | I18: 424.35 | J18: 86.31 | K18: 79.76
B19: 911 | C19: Retten i Sønderborg | D19: 61.25 | E19: 64.7 | F19: 118.59 | G19: 139.98 | H19: 362.99 | I19: 383.63 | J19: 97.12 | K19: 93.67
B20: 912 | C20: Retten i Odense | D20: 47.46 | E20: 46.97 | F20: 90.93 | G20: 87.04 | H20: 355.89 | I20: 359.28 | J20: 69.51 | K20: 68.24
B21: 913 | C21: Retten i Svendborg | D21: 54.89 | E21: 38.42 | F21: 95.55 | G21: 79.15 | H21: 357.82 | I21: 355.87 | J21: 77.95 | K21: 72.38
B22: 914 | C22: Retten i Nykøbing F. | D22: 36.98 | E22: 34.62 | F22: 44.24 | G22: 45.25 | H22: 332.7 | I22: 345.41 | J22: 44.65 | K22: 42.7
B23: 915 | C23: Retten i Næstved | D23: 49.46 | E23: 43.4 | F23: 107.8 | G23: 100.37 | H23: 353.93 | I23: 350.46 | J23: 68.21 | K23: 62.95
B24: 916 | C24: Retten i Holbæk | D24: 38.81 | E24: 55.99 | F24: 117.17 | G24: 143.21 | H24: 368.43 | I24: 386.26 | J24: 101.07 | K24: 96.26
B25: 917 | C25: Retten i Roskilde | D25: 51.27 | E25: 48.38 | F25: 110.88 | G25: 100.27 | H25: 362.93 | I25: 361.57 | J25: 73.2 | K25: 74
B26: 918 | C26: Retten i Hillerød | D26: 48.38 | E26: 50.15 | F26: 94.92 | G26: 121.64 | H26: 366.95 | I26: 366.27 | J26: 84.45 | K26: 98.74
B27: 919 | C27: Retten i Helsingør | D27: 51.31 | E27: 44.55 | F27: 122.83 | G27: 122.86 | H27: 350.89 | I27: 351.79 | J27: 108.56 | K27: 82.57
B28: 920 | C28: Retten i Lyngby | D28: 43.77 | E28: 45.43 | F28: 127.74 | G28: 126.79 | H28: 365.57 | I28: 369.85 | J28: 67.75 | K28: 78.09
B29: 921 | C29: Retten i Glostrup | D29: 41.66 | E29: 61.5 | F29: 112.16 | G29: 131.61 | H29: 334.5 | I29: 346.79 | J29: 69.43 | K29: 83.77
B30: 922 | C30: Retten på Frederiksberg | D30: 46.08 | E30: 49.56 | F30: 103.08 | G30: 106.4 | H30: 341.94 | I30: 400.01 | J30: 71.5 | K30: 84.98
B31: 923 | C31: Københavns Byret | D31: 54.98 | E31: 42.3 | F31: 109.21 | G31: 93.32 | H31: 351.34 | I31: 351.52 | J31: 89.2 | K31: 77.16
B32: 924 | C32: Retten på Bornholm | D32: 23.76 | E32: 22.59 | F32: 35.49 | G32: 40.46 | H32: 298.28 | I32: 283.88 | J32: 41.38 | K32: 41.26

Sheet HR-nøgletal_lønsum
B2: UDVALGTE HR-NØGLETAL
D4: Gnst. antal sygedage pr. ansat | F4: Personaleomsætning (%) | H4: Lønsumsforbrug (mio.) 2019-pl
D5: =Overblik!$D$6 -> 2018 | E5: =Overblik!$E$6 -> 2019 | F5: =Overblik!$D$6 -> 2018 | G5: =Overblik!$E$6 -> 2019 | H5: =Overblik!$D$6 -> 2018 | I5: =Overblik!$E$6 -> 2019
C6: SAMLET BYRETTERNE | D6: 9.764627718 | E6: 9.991245689 | F6: 10.33152447 | G6: 7.754591385 | H6: 32.93435665 | I6: 34.21696257
C7: 5. BEDSTE RET | D7: =SMALL(D9:D32,5) -> 6.637582669 | E7: =SMALL(E9:E32,5) -> 7.991211987
B8: EID | C8: Ret
B9: 901 | C9: Retten i Hjørring | D9: 5.730838319 | E9: 11.67115635 | F9: 10.15364941 | G9: 3.903345536 | H9: 25.05215199 | I9: 26.111157
B10: 902 | C10: Retten i Aalborg | D10: 6.501520143 | E10: 4.914900277 | F10: 12.11743046 | G10: 6.144358204 | H10: 38.18950288 | I10: 39.79516638
B11: 903 | C11: Retten i Randers | D11: 10.27738974 | E11: 12.67798225 | F11: 5.51325207 | G11: 10.05702783 | H11: 26.12697655 | I11: 27.61360852
B12: 904 | C12: Retten i Århus | D12: 16.58179415 | E12: 15.50239535 | F12: 15.63153285 | G12: 12.5637887 | H12: 43.43579685 | I12: 46.19907028
B13: 905 | C13: Retten i Viborg | D13: 13.37190019 | E13: 11.70690067 | F13: 18.18388198 | G13: 14.42686509 | H13: 25.93555386 | I13: 26.83659024
B14: 906 | C14: Retten i Holstebro | D14: 5.036595683 | E14: 13.78194312 | F14: 21.09435374 | G14: 1.591760603 | H14: 18.81650113 | I14: 18.84726757
B15: 907 | C15: Retten i Herning | D15: 6.765788574 | E15: 3.463521823 | F15: 5.628443228 | G15: 9.28334349 | H15: 20.02081879 | I15: 21.25259036
B16: 908 | C16: Retten i Horsens | D16: 12.16187031 | E16: 7.233343083 | F16: 20.93666005 | G16: 6.695085913 | H16: 21.72749869 | I16: 21.82319903
B17: 909 | C17: Retten i Kolding | D17: 8.391346653 | E17: 12.08875968 | F17: 7.1205379 | G17: 5.077183052 | H17: 35.87020939 | I17: 38.02560596
B18: 910 | C18: Retten i Esbjerg | D18: 18.08001835 | E18: 11.4069261 | F18: 11.85258732 | G18: 16.34641659 | H18: 24.90509993 | I18: 25.72227133
B19: 911 | C19: Retten i Sønderborg | D19: 7.159856839 | E19: 6.351825041 | F19: 19.34537469 | G19: 11.31449527 | H19: 31.14763551 | I19: 33.56342849
B20: 912 | C20: Retten i Odense | D20: 8.051195822 | E20: 8.39718208 | F20: 6.960939618 | G20: 6.574732047 | H20: 38.13528036 | I20: 39.38804959
B21: 913 | C21: Retten i Svendborg | D21: 9.574065984 | E21: 8.845553632 | F21: 5.258645265 | G21: 7.581411514 | H21: 20.00904147 | I21: 20.67479059
B22: 914 | C22: Retten i Nykøbing F. | D22: 6.637582669 | E22: 13.74577269 | F22: 8.994663904 | G22: 1.997661158 | H22: 25.57144464 | I22: 26.45936466
B23: 915 | C23: Retten i Næstved | D23: 7.687176755 | E23: 10.59558133 | F23: 4.710463807 | G23: 7.46576825 | H23: 31.01919945 | I23: 34.58996023
B24: 916 | C24: Retten i Holbæk | D24: 5.26581695 | E24: 8.156396919 | F24: 14.8645185 | G24: 3.067526945 | H24: 22.11801857 | I24: 23.29342936
B25: 917 | C25: Retten i Roskilde | D25: 11.85945551 | E25: 10.80271587 | F25: 5.984630325 | G25: 5.962924109 | H25: 36.80785343 | I25: 38.22246046
B26: 918 | C26: Retten i Hillerød | D26: 7.006743778 | E26: 11.55266253 | F26: 7.881058842 | G26: 6.664722272 | H26: 25.32991699 | I26: 26.63702221
B27: 919 | C27: Retten i Helsingør | D27: 11.29010186 | E27: 9.663325152 | F27: 12.37549035 | G27: 14.71902355 | H27: 23.47430938 | I27: 22.78936598
B28: 920 | C28: Retten i Lyngby | D28: 12.46306964 | E28: 11.56803069 | F28: 14.24446056 | G28: 10.46799048 | H28: 31.08047584 | I28: 29.49295619
B29: 921 | C29: Retten i Glostrup | D29: 13.04044338 | E29: 7.991211987 | F29: 10.35412234 | G29: 11.26386003 | H29: 53.4669808 | I29: 56.00977209
B30: 922 | C30: Retten på Frederiksberg | D30: 13.12803276 | E30: 9.979172097 | F30: 10.2057964 | G30: 8.561199536 | H30: 46.21712159 | I30: 47.90256278
B31: 923 | C31: Københavns Byret | D31: 7.053268655 | E31: 9.243422429 | F31: 5.242178625 | G31: 3.273865564 | H31: 116.8258535 | I31: 120.6381034
B32: 924 | C32: Retten på Bornholm | D32: 11.35858 | E32: 10.86696409 | F32: 10.3713778 | G32: 9.860065479 | H32: 9.141317924 | I32: 9.31930893
B34: 1) Gennemsnitlig antal sygedage pr. ansat er ekskl. ansatte under socialt kapitel. Deltidssygdom er inkluderet, men barns sygdom, omsorgsdage og særlige feriedage indgår ikke.
B35: 2) Det gennemsnitlige antal sygedage pr. ansat "samlet" er for alle byretter.
B36: 3) Perioden for personaleomsætningen opgøres af ISOLA som rullende år og løber fra november til november.
B37: 4) Lønsumsforbruget inkluderer egentlig løn, over- og merarbejde, stævningsmænd, refusioner og pensionsbidrag og er i faste priser (2019). Lønsummen for 2018 er opregnet til 2019-pl, således at det kan foretages en sammenligning mellem de to år. Samlet vises det gns. lønsumsforbrug pr. byret.

Sheet Årsværk_Pers.kat
B2: ÅRSVÆRKSFORBRUG 2018 OG 2019
D4: Jur | E4: Kon | F4: Elev | G4: Fleks | H4: Øvr. | I4: I ALT | J4: Jur | K4: Kon | L4: Elev | M4: Fleks | N4: Øvr. | O4: I ALT | P4: Jur | Q4: Kon | R4: Elev | S4: Fleks | T4: Øvr. | U4: I ALT | V4: Jur | W4: Kon | X4: Elev | Y4: Fleks | Z4: Øvr. | AA4: I ALT
D5: =Overblik!$D$6 -> 2018 | J5: =Overblik!$E$6 -> 2019 | P5: =Overblik!$D$6 -> 2018 | V5: =Overblik!$E$6 -> 2019
D6: - absolutte tal - | J6: - absolutte tal - | P6: - indeks - | V6: - indeks -
C8: SAMLET BYRETTERNE | D8: 408.47744 | E8: 791.71393 | F8: 66.22139 | G8: 43.36902 | H8: 89.30087 | I8: 1399.08265 | J8: 423.00653 | K8: 824.08979 | L8: 72.16025 | M8: 45.11075 | N8: 106.1933 | O8: 1470.56062 | P8: 100 | Q8: 100 | R8: 100 | S8: 100 | T8: 100 | U8: 100 | V8: =J8*100/D8 -> 103.5568892 | W8: =K8*100/E8 -> 104.0893382 | X8: =L8*100/F8 -> 108.9681899 | Y8: 104.0160695 | Z8: 118.9163107 | AA8: =O8*100/I8 -> 105.1089169
B9: EID | C9: Ret
B10: 901 | C10: Retten i Hjørring | D10: 12.88924 | E10: 26.81338 | F10: 1.84593 | G10: 2.64116 | H10: 3.26772 | I10: 47.45743 | J10: 12.66472 | K10: 27.7287 | L10: 3.47526 | M10: 2.71772 | N10: 3.64677 | O10: 50.23317 | P10: 100 | Q10: 100 | R10: 100 | S10: 100 | T10: 100 | U10: 100 | V10: =J10*100/D10 -> 98.25808194 | W10: =K10*100/E10 -> 103.4136688 | X10: 188.2660773 | Y10: 102.8987263 | Z10: 111.5998311 | AA10: 105.848905
B11: 902 | C11: Retten i Aalborg | D11: 19.47866 | E11: 41.1891 | F11: 3.98035 | G11: 2.81258 | H11: 3.48658 | I11: 70.94727 | J11: 21.33205 | K11: 41.12848 | L11: 5.46845 | M11: 1.95181 | N11: 3.48125 | O11: 73.36204 | P11: 100 | Q11: 100 | R11: 100 | S11: 100 | T11: 100 | U11: 100 | V11: =J11*100/D11 -> 109.5149769 | W11: =K11*100/E11 -> 99.85282514 | X11: =L11*100/F11 -> 137.3861595 | Y11: =M11*100/G11 -> 69.39571497 | Z11: =N11*100/H11 -> 99.84712813 | AA11: =O11*100/I11 -> 103.4036123
B12: 903 | C12: Retten i Randers | D12: 12.61336 | E12: 26.26789 | F12: 2.73323 | G12: 1.70287 | H12: 2.59282 | I12: 45.91017 | J12: 12.89042 | K12: 28.71551 | L12: 4.66764 | M12: 1.75695 | N12: 1.96628 | O12: 49.9968 | P12: 100 | Q12: 100 | R12: 100 | S12: 100 | T12: 100 | U12: 100 | V12: 102.1965598 | W12: 109.3179163 | X12: =L12*100/F12 -> 170.7737732 | Y12: 103.1758149 | Z12: 75.83557671 | AA12: 108.9013611
B13: 904 | C13: Retten i Århus | D13: 22.51301 | E13: 43.37522 | F13: 1.86086 | G13: 2.90098 | H13: 5.48146 | I13: 76.13153 | J13: 23.68577 | K13: 46.00667 | L13: 1.79455 | M13: 2.50894 | N13: 9.60922 | O13: 83.60515 | P13: 100 | Q13: 100 | R13: 100 | S13: 100 | T13: 100 | U13: 100 | V13: 105.2092546 | W13: 106.0667127 | X13: 96.43659383 | Y13: 86.48594613 | Z13: 175.3040248 | AA13: 109.8167211
B14: 905 | C14: Retten i Viborg | D14: 13.51215 | E14: 26.61592 | F14: 3.97077 | G14: 2.00006 | H14: 3.76908 | I14: 49.86798 | J14: 14.17594 | K14: 28.03704 | L14: 4.25643 | M14: 2.00006 | N14: 3.90169 | O14: 52.37116 | P14: 100 | Q14: 100 | R14: 100 | S14: 100 | T14: 100 | U14: 100 | V14: 104.9125417 | W14: 105.3393608 | X14: 107.1940707 | Y14: 100 | Z14: 103.5183652 | AA14: 105.0196138
B15: 906 | C15: Retten i Holstebro | D15: 8.34288 | E15: 19.72015 | F15: 1.24088 | G15: 2.60262 | H15: 2.08866 | I15: 33.99519 | J15: 7.9746 | K15: 18.95781 | L15: 1.96924 | M15: 1.92987 | N15: 1.96818 | O15: 32.7997 | P15: 100 | Q15: 100 | R15: 100 | S15: 100 | T15: 100 | U15: 100 | V15: 95.58569703 | W15: 96.1342079 | X15: 158.6970537 | Y15: 74.15104779 | Z15: 94.23170837 | AA15: 96.48335544
B16: 907 | C16: Retten i Herning | D16: 11.22781 | E16: 20.51485 | F16: 3.15845 | G16: 0 | H16: 2.00006 | I16: 36.90117 | J16: 12.0754 | K16: 22.03605 | L16: 3.05896 | M16: 0 | N16: 2.00006 | O16: 39.17047 | P16: 100 | Q16: 100 | R16: 100 | S16: 100 | T16: 100 | U16: 100 | V16: 107.5490234 | W16: 107.4151164 | X16: 96.8500372 | Y16: - | Z16: 100 | AA16: 106.1496695
B17: 908 | C17: Retten i Horsens | D17: 11.43512 | E17: 18.6924 | F17: 3.0775 | G17: 3.77254 | H17: 4.48525 | I17: 41.46281 | J17: 12.15434 | K17: 19.70622 | L17: 3.22775 | M17: 3.87783 | N17: 4.00888 | O17: 42.97502 | P17: 100 | Q17: 100 | R17: 100 | S17: 100 | T17: 100 | U17: 100 | V17: 106.2895711 | W17: 105.4237016 | X17: 104.8822096 | Y17: =M17*100/G17 -> 102.7909578 | Z17: 89.37918734 | AA17: 103.6471479
B18: 909 | C18: Retten i Kolding | D18: 19.64304 | E18: 36.20283 | F18: 3.41456 | G18: 3.00009 | H18: 3.3865 | I18: 65.64702 | J18: 19.98124 | K18: 38.57853 | L18: 3.65822 | M18: 2.75778 | N18: 3.98039 | O18: 68.95616 | P18: 100 | Q18: 100 | R18: 100 | S18: 100 | T18: 100 | U18: 100 | V18: 101.7217294 | W18: 106.5621942 | X18: 107.1359121 | Y18: 91.9232423 | Z18: 117.5369851 | AA18: 105.0408076
B19: 910 | C19: Retten i Esbjerg | D19: 13.10119 | E19: 25.97283 | F19: 2.19643 | G19: 0.88399 | H19: 2.69001 | I19: 44.84445 | J19: 14.03954 | K19: 25.59647 | L19: 1.1345 | M19: 0.80337 | N19: 3.16838 | O19: 44.74226 | P19: 100 | Q19: 100 | R19: 100 | S19: 100 | T19: 100 | U19: 100 | V19: 107.1623265 | W19: 98.55094728 | X19: 51.65199893 | Y19: 90.87998733 | Z19: 117.7832053 | AA19: 99.77212342
B20: 911 | C20: Retten i Sønderborg | D20: 14.82488 | E20: 30.28972 | F20: 2.20293 | G20: 1.00003 | H20: 3.8812 | I20: 52.19876 | J20: 15.90641 | K20: 33.08726 | L20: 2.66514 | M20: 1.44481 | N20: 3.85492 | O20: 56.95854 | P20: 100 | Q20: 100 | R20: 100 | S20: 100 | T20: 100 | U20: 100 | V20: 107.295371 | W20: 109.2359388 | X20: 120.9816018 | Y20: 144.4766657 | Z20: 99.32288983 | AA20: 109.1185691
B21: 912 | C21: Retten i Odense | D21: 18.98083 | E21: 42.31545 | F21: 2.66678 | G21: 1.08503 | H21: 4.00938 | I21: 69.05747 | J21: 19.90301 | K21: 42.66025 | L21: 4.00016 | M21: 1.21629 | N21: 5.01718 | O21: 72.79689 | P21: 100 | Q21: 100 | R21: 100 | S21: 100 | T21: 100 | U21: 100 | V21: 104.8584809 | W21: 100.8148324 | X21: 149.999625 | Y21: 112.0973614 | Z21: 125.1360559 | AA21: 105.4149392
B22: 913 | C22: Retten i Svendborg | D22: 10.38663 | E22: 19.45462 | F22: 1.23509 | G22: 1.00003 | H22: 3.74306 | I22: 35.81943 | J22: 10.29846 | K22: 22.06089 | L22: 0.68186 | M22: 1.00003 | N22: 4.00505 | O22: 38.04629 | P22: 100 | Q22: 100 | R22: 100 | S22: 100 | T22: 100 | U22: 100 | V22: 99.15112024 | W22: 113.3966636 | X22: 55.20731283 | Y22: 100 | Z22: 106.9993535 | AA22: 106.2169052
B23: 914 | C23: Retten i Nykøbing F. | D23: 12.65826 | E23: 30.50041 | F23: 1.33339 | G23: 0.4551 | H23: 2.48083 | I23: 47.42799 | J23: 13.10207 | K23: 31.37255 | L23: 2.00008 | M23: 0.40708 | N23: 2.749 | O23: 49.63078 | P23: 100 | Q23: 100 | R23: 100 | S23: 100 | T23: 100 | U23: 100 | V23: 103.5060901 | W23: 102.859437 | X23: 149.999625 | Y23: - | Z23: 110.8096887 | AA23: 104.6444937
B24: 915 | C24: Retten i Næstved | D24: 16.5859 | E24: 34.38183 | F24: 1.9957 | G24: 2.65789 | H24: 2.98405 | I24: 58.60537 | J24: 18.96357 | K24: 38.1185 | L24: 2.00006 | M24: 2.55257 | N24: 2.99783 | O24: 64.63253 | P24: 100 | Q24: 100 | R24: 100 | S24: 100 | T24: 100 | U24: 100 | V24: 114.3354898 | W24: 110.8681533 | X24: 100.2184697 | Y24: 96.03745828 | Z24: 100.4617885 | AA24: 110.2843135
B25: 916 | C25: Retten i Holbæk | D25: 11.24375 | E25: 23.78151 | F25: 2.00008 | G25: 2.34159 | H25: 2.69846 | I25: 42.06539 | J25: 12.47353 | K25: 23.60285 | L25: 2.2938 | M25: 2.861 | N25: 2.80833 | O25: 44.03951 | P25: 100 | Q25: 100 | R25: 100 | S25: 100 | T25: 100 | U25: 100 | V25: 110.9374541 | W25: 99.24874409 | X25: 114.6854126 | Y25: 122.1819362 | Z25: 104.0715816 | AA25: 104.6929792
B26: 917 | C26: Retten i Roskilde | D26: 19.60239 | E26: 37.85466 | F26: 2.32463 | G26: 1.28477 | H26: 2.20523 | I26: 63.27168 | J26: 20.41889 | K26: 38.95097 | L26: 3.1381 | M26: 1.21821 | N26: 2.08941 | O26: 65.81558 | P26: 100 | Q26: 100 | R26: 100 | S26: 100 | T26: 100 | U26: 100 | V26: 104.1653084 | W26: 102.8961031 | X26: 134.9935259 | Y26: 94.81930618 | Z26: 94.74794012 | AA26: 104.0205982
B27: 918 | C27: Retten i Hillerød | D27: 13.3924 | E27: 21.72779 | F27: 2.92838 | G27: 2.82387 | H27: 5.93439 | I27: 46.80683 | J27: 13.82417 | K27: 22.90455 | L27: 3.91699 | M27: 2.98287 | N27: 5.17157 | O27: 48.80015 | P27: 100 | Q27: 100 | R27: 100 | S27: 100 | T27: 100 | U27: 100 | V27: 103.2239927 | W27: 105.4159213 | X27: 133.7596214 | Y27: 105.6305708 | Z27: 87.14577235 | AA27: 104.2586093
B28: 919 | C28: Retten i Helsingør | D28: 12.74285 | E28: 23.03527 | F28: 2.46717 | G28: 2.56766 | H28: 2.48874 | I28: 43.30169 | J28: 11.52174 | K28: 22.60817 | L28: 2.12686 | M28: 3.11732 | N28: 3.00206 | O28: 42.37615 | P28: 100 | Q28: 100 | R28: 100 | S28: 100 | T28: 100 | U28: 100 | V28: 90.41729283 | W28: 98.14588672 | X28: 86.20646328 | Y28: =M28*100/G28 -> 121.4070399 | Z28: 120.6256981 | AA28: 97.86257765
B29: 920 | C29: Retten i Lyngby | D29: 16.20458 | E29: 28.25268 | F29: 4.64175 | G29: 0.91891 | H29: 2.842 | I29: 52.85992 | J29: 14.33953 | K29: 29.99244 | L29: 3.76029 | M29: 0.91315 | N29: 3.38661 | O29: 52.39202 | P29: 100 | Q29: 100 | R29: 100 | S29: 100 | T29: 100 | U29: 100 | V29: 88.49059957 | W29: 106.1578583 | X29: 81.01017935 | Y29: - | Z29: 119.1629134 | AA29: 99.11483029
B30: 921 | C30: Retten i Glostrup | D30: 29.4054 | E30: 54.92075 | F30: 3.64066 | G30: 1.81047 | H30: 4.78019 | I30: 94.55747 | J30: 31.43391 | K30: 54.60231 | L30: 2.82904 | M30: 2.89592 | N30: 10.71785 | O30: 102.47903 | P30: 100 | Q30: 100 | R30: 100 | S30: 100 | T30: 100 | U30: 100 | V30: 106.8984268 | W30: 99.42018272 | X30: 77.70678943 | Y30: 159.9540451 | Z30: 224.2138911 | AA30: 108.3775084
B31: 922 | C31: Retten på Frederiksberg | D31: 24.80539 | E31: 41.52306 | F31: 3.30242 | G31: 3.10678 | H31: 5.17044 | I31: 77.90809 | J31: 25.54208 | K31: 45.77945 | L31: 2.54021 | M31: 4.19717 | N31: 9.40937 | O31: 87.46828 | P31: 100 | Q31: 100 | R31: 100 | S31: 100 | T31: 100 | U31: 100 | V31: 102.9698787 | W31: 110.2506655 | X31: 76.91965286 | Y31: 135.0971102 | Z31: 181.9839317 | AA31: 112.2711133
B32: 923 | C32: Københavns Byret | D32: 59.50228 | E32: 111.3338 | F32: 6.0757 | G32: 0 | H32: 11.27432 | I32: 188.1861 | J32: 61.44665 | K32: 114.78033 | L32: 6.05317 | M32: 0 | N32: 11.91321 | O32: 194.19336 | P32: 100 | Q32: 100 | R32: 100 | S32: 100 | T32: 100 | U32: 100 | V32: 103.2677235 | W32: 103.0956727 | X32: 99.62917853 | Y32: - | Z32: 105.6667719 | AA32: 103.1921911
B33: 924 | C33: Retten på Bornholm | D33: 3.38544 | E33: 6.97781 | F33: 1.92775 | G33: 0 | H33: 1.56044 | I33: 13.85144 | J33: 2.85849 | K33: 7.07779 | L33: 1.44349 | M33: 0 | N33: 1.33981 | O33: 12.71958 | P33: 100 | Q33: 100 | R33: 100 | S33: 100 | T33: 100 | U33: 100 | V33: 84.43481497 | W33: 101.4328278 | X33: 74.87952276 | Y33: - | Z33: 85.86103919 | AA33: 91.82857522
B34: 1) Det opgjorte årsværksforbrug er inkl. de korrektioner, der foretages som led i produktivitetsberegningen, hvorfor det ikke kan stemmes af i forhold til eksempelvis prognoseværktøjet SOL.

Sheet Årsværk_Sagsområder
B2: ÅRSVÆRKSFORBRUG DE ENKELTE SAGSOMRÅDER I 2019
E4: Straf | G4: Civil | I4: Foged | K4: Skifte | M4: Notarial
E5: Årsværk | F5: % | G5: Årsværk | H5: % | I5: Årsværk | J5: % | K5: Årsværk | L5: % | M5: Årsværk | N5: %
C7: SAMLET BYRETTERNE | D7: Jurister | E7: 179.966384 | F7: 0.4254458766 | G7: 143.8618841 | H7: 0.3400937665 | I7: 35.93674888 | J7: 0.08495554165 | K7: 31.93514794 | L7: 0.07549563818 | M7: 0.5091920839 | N7: 0.001203745209
D8: Kontor | E8: 226.5710828 | F8: 0.2749349471 | G8: 144.2810096 | H8: 0.1750792345 | I8: 188.0271926 | J8: 0.2281634779 | K8: 142.1701112 | L8: 0.1725177437 | M8: 19.29560224 | N8: 0.02341444157
D9: Elev | E9: 17.88039739 | F9: 0.2477873537 | G9: 9.925374916 | H9: 0.1375462934 | I9: 21.27662514 | J9: 0.294852431 | K9: 15.7051016 | L9: 0.2176420065 | M9: 0.1351259619 | N9: 0.001872581676
D10: Fleks | E10: 5.310600278 | F10: 0.1177236086 | G10: 6.483479524 | H10: 0.143723603 | I10: 11.14825238 | J10: 0.2471307256 | K10: 3.649725049 | L10: 0.08090588273 | M10: 2.397234116 | N10: 0.05314108314
D11: Øvrige | E11: 12.45677418 | F11: 0.1173028259 | G11: 4.517670885 | H11: 0.04254195778 | I11: 7.319621453 | J11: 0.06892733773 | K11: 2.812421336 | L11: 0.02648398097 | M11: 1.28391927 | N11: 0.01209039808
B12: EID | C12: Ret
B13: 901 | C13: Retten i Hjørring | D13: Jurister | E13: 4.424370186 | F13: 0.3493460721 | G13: 4.898113649 | H13: 0.3867526206 | I13: 1.229782438 | J13: 0.09710301045 | K13: 1.292663284 | L13: 0.1020680508 | M13: 0.003285429308 | N13: 0.0002594158661
B14: 901 | C14: Retten i Hjørring | D14: Kontor | E14: 6.488691978 | F14: 0.2340063536 | G14: 4.598964529 | H14: 0.165855757 | I14: 7.85597207 | J14: 0.2833155564 | K14: 5.399922649 | L14: 0.1947412843 | M14: 0.566438511 | N14: 0.02042787837
B15: 901 | C15: Retten i Hjørring | D15: Elev | E15: 0.7470333672 | F15: 0.2149575477 | G15: 0.7294547067 | H15: 0.2098993188 | I15: 0.7975898693 | J15: 0.2295050929 | K15: 0.9911775743 | L15: 0.2852096172 | M15: 0.005665133538 | N15: 0.001630132289
B16: 901 | C16: Retten i Hjørring | D16: Fleks | E16: 1.050495501 | F16: 0.3865355891 | G16: 1.036902218 | H16: 0.381533866 | I16: 0.2074670586 | J16: 0.07633864363 | K16: 0.4145413026 | L16: 0.152532749 | M16: 0 | N16: 0
B17: 901 | C17: Retten i Hjørring | D17: Øvrige | E17: 0.2394992279 | F17: 0.06567434412 | G17: 0.1661295922 | H17: 0.04555527006 | I17: 0.602401116 | J17: 0.1651875813 | K17: 0.002786945014 | L17: 0.0007642228642 | M17: 0 | N17: 0
B18: 902 | C18: Retten i Aalborg | D18: Jurister | E18: 8.658990347 | F18: 0.4059145908 | G18: 8.195989617 | H18: 0.3842101259 | I18: 1.66462331 | J18: 0.07803391188 | K18: 1.641827385 | L18: 0.07696528861 | M18: 0.00926610663 | N18: 0.0004343748787
B19: 902 | C19: Retten i Aalborg | D19: Kontor | E19: 9.145368417 | F19: 0.2223609629 | G19: 7.748758495 | H19: 0.1884037167 | I19: 9.516952273 | J19: 0.2313956721 | K19: 8.848916522 | L19: 0.2151530162 | M19: 0.7772592044 | N19: 0.01889832069
B20: 902 | C20: Retten i Aalborg | D20: Elev | E20: 0.9819803769 | F20: 0.1795719769 | G20: 0.771487403 | H20: 0.1410797215 | I20: 2.396768473 | J20: 0.4382902784 | K20: 0.897632762 | L20: 0.1641475669 | M20: 0.003285494891 | N20: 0.0006008091673
B21: 902 | C21: Retten i Aalborg | D21: Fleks | E21: 0.3248514297 | F21: 0.16643599 | G21: 0 | H21: 0 | I21: 0.496352087 | J21: 0.254303486 | K21: 0.1520614098 | L21: 0.07790789565 | M21: 0 | N21: 0
B22: 902 | C22: Retten i Aalborg | D22: Øvrige | E22: 1.008496007 | F22: 0.2896936466 | G22: 0.3065426435 | H22: 0.08805533744 | I22: 1.254255273 | J22: 0.3602887678 | K22: 0 | L22: 0 | M22: 0 | N22: 0
B23: 903 | C23: Retten i Randers | D23: Jurister | E23: 4.96310522 | F23: 0.3850227704 | G23: 4.031745649 | H23: 0.3127706971 | I23: 1.545210719 | J23: 0.1198727985 | K23: 1.397615356 | L23: 0.1084227943 | M23: 0.01172615232 | N23: 0.0009096796162
B24: 903 | C24: Retten i Randers | D24: Kontor | E24: 6.791578471 | F24: 0.2365125492 | G24: 5.858098521 | H24: 0.2040046832 | I24: 6.11254128 | J24: 0.212865496 | K24: 6.017876751 | L24: 0.209568862 | M24: 0.4769059468 | N24: 0.0166079567
B25: 903 | C25: Retten i Randers | D25: Elev | E25: 0.4968962743 | F25: 0.1064555695 | G25: 0.3287906786 | H25: 0.07044045355 | I25: 1.951472303 | J25: 0.4180854357 | K25: 1.529470385 | L25: 0.3276753102 | M25: 0.004376043519 | N25: 0.0009375280696
B26: 903 | C26: Retten i Randers | D26: Fleks | E26: 0.004438701319 | F26: 0.002526367466 | G26: 0 | H26: 0 | I26: 0.06055470101 | J26: 0.0344658078 | K26: 0.1207732391 | L26: 0.06874028238 | M26: 0.06522849154 | N26: 0.03712598055
B27: 903 | C27: Retten i Randers | D27: Øvrige | E27: 0.04134699617 | F27: 0.02102803068 | G27: 0.0714516701 | H27: 0.0363385022 | I27: 0.6468287673 | J27: 0.3289606604 | K27: 0.06258998834 | L27: 0.03183167623 | M27: 0 | N27: 0
B28: 904 | C28: Retten i Århus | D28: Jurister | E28: 10.7997202 | F28: 0.4559581641 | G28: 6.757429218 | H28: 0.285294893 | I28: 2.192371499 | J28: 0.09256070204 | K28: 2.257216259 | L28: 0.09529841163 | M28: 0.02782412891 | N28: 0.001174719205
B29: 904 | C29: Retten i Århus | D29: Kontor | E29: 16.00385303 | F29: 0.3478594089 | G29: 7.273725055 | H29: 0.158101533 | I29: 8.02572076 | J29: 0.1744468956 | K29: 7.96310865 | L29: 0.1730859602 | M29: 1.001208492 | N29: 0.02176224647
B30: 904 | C30: Retten i Århus | D30: Elev | E30: 0.862304497 | F30: 0.4805129403 | G30: 0.3192633865 | H30: 0.1779072116 | I30: 0.1415486983 | J30: 0.07887698772 | K30: 0.3628168216 | L30: 0.2021770481 | M30: 0.007862167694 | N30: 0.004381136047
B31: 904 | C31: Retten i Århus | D31: Fleks | E31: 0.2742610843 | F31: 0.1093135285 | G31: 6.33762453e-05 | H31: 2.526016776e-05 | I31: 1.061547738 | J31: 0.4231060677 | K31: 0 | L31: 0 | M31: 0 | N31: 0
B32: 904 | C32: Retten i Århus | D32: Øvrige | E32: 1.730478171 | F32: 0.180085186 | G32: 0.2755907182 | H32: 0.0286798219 | I32: 0.2781143858 | J32: 0.02894245171 | K32: 0.5773108425 | L32: 0.06007884537 | M32: 0 | N32: 0
B33: 905 | C33: Retten i Viborg | D33: Jurister | E33: 6.111486695 | F33: 0.4311168568 | G33: 3.902408992 | H33: 0.2752839665 | I33: 1.285977119 | J33: 0.09071547416 | K33: 1.556362593 | L33: 0.1097890223 | M33: 0.01641835114 | N33: 0.0011581843
B34: 905 | C34: Retten i Viborg | D34: Kontor | E34: 7.875199076 | F34: 0.2808855384 | G34: 5.017902098 | H34: 0.1789740321 | I34: 6.160970356 | J34: 0.2197439657 | K34: 4.663343882 | L34: 0.1663279676 | M34: 0.8721890475 | N34: 0.03110845679
B35: 905 | C35: Retten i Viborg | D35: Elev | E35: 1.021581247 | F35: 0.2400089386 | G35: 0.2452174907 | H35: 0.05761107095 | I35: 1.576487442 | J35: 0.3703778618 | K35: 1.039493231 | L35: 0.2442171563 | M35: 0.01587464407 | N35: 0.003729567752
B36: 905 | C36: Retten i Viborg | D36: Fleks | E36: 0.5549057566 | F36: 0.277444555 | G36: 0.5219341647 | H36: 0.2609592536 | I36: 0.8434775266 | J36: 0.4217261115 | K36: 0.0005100105362 | L36: 0.0002549976182 | M36: 0 | N36: 0
B37: 905 | C37: Retten i Viborg | D37: Øvrige | E37: 0.4390621721 | F37: 0.1125312806 | G37: 0.08506222588 | H37: 0.02180137988 | I37: 0.7495925783 | J37: 0.1921199732 | K37: 0 | L37: 0 | M37: 0 | N37: 0
B38: 906 | C38: Retten i Holstebro | D38: Jurister | E38: 3.082578404 | F38: 0.3865495955 | G38: 2.218683965 | H38: 0.2782188405 | I38: 0.6315389648 | J38: 0.07919381095 | K38: 1.014357899 | L38: 0.1271985929 | M38: 0.02178246171 | N38: 0.002731480164
B39: 906 | C39: Retten i Holstebro | D39: Kontor | E39: 3.948453203 | F39: 0.2082758084 | G39: 3.180657006 | H39: 0.1677755503 | I39: 5.111379129 | J39: 0.2696186495 | K39: 4.870270002 | L39: 0.2569004543 | M39: 0.5050384945 | N39: 0.0266401285
B40: 906 | C40: Retten i Holstebro | D40: Elev | E40: 0.1587859723 | F40: 0.08063312358 | G40: 0.05393483742 | H40: 0.02738865624 | I40: 0.8375898154 | J40: 0.4253365844 | K40: 0.8838202435 | L40: 0.4488128636 | M40: 0 | N40: 0
B41: 906 | C41: Retten i Holstebro | D41: Fleks | E41: 0.1992653722 | F41: 0.1032532617 | G41: 0.1891500186 | H41: 0.0980117928 | I41: 0.06509366958 | J41: 0.03372956188 | K41: 0.0702997495 | L41: 0.03642719432 | M41: 0.008243506257 | N41: 0.004271534485
B42: 906 | C42: Retten i Holstebro | D42: Øvrige | E42: 0 | F42: 0 | G42: 0 | H42: 0 | I42: 0 | J42: 0 | K42: 0 | L42: 0 | M42: 0 | N42: 0
B43: 907 | C43: Retten i Herning | D43: Jurister | E43: 5.196655599 | F43: 0.430350597 | G43: 4.38391013 | H43: 0.3630447132 | I43: 0.8563398747 | J43: 0.07091606694 | K43: 1.094274813 | L43: 0.09062017099 | M43: 0.02790175865 | N43: 0.002310628108
B44: 907 | C44: Retten i Herning | D44: Kontor | E44: 7.286398063 | F44: 0.3306580836 | G44: 2.824788785 | H44: 0.1281894344 | I44: 5.417741027 | J44: 0.2458580838 | K44: 4.186363686 | L44: 0.1899779537 | M44: 0.7290441309 | N44: 0.03308415669
B45: 907 | C45: Retten i Herning | D45: Elev | E45: 0.7149420547 | F45: 0.2337206288 | G45: 0.0949615256 | H45: 0.03104372911 | I45: 1.089220205 | J45: 0.3560753344 | K45: 0.9403406506 | L45: 0.3074053438 | M45: 0.01457877325 | N45: 0.004765924774
B46: 907 | C46: Retten i Herning | D46: Fleks | E46: 0 | F46: - | G46: 0 | H46: - | I46: 0 | J46: - | K46: 0 | L46: - | M46: 0 | N46: -
B47: 907 | C47: Retten i Herning | D47: Øvrige | E47: 0 | F47: 0 | G47: 0 | H47: 0 | I47: 0 | J47: 0 | K47: 0 | L47: 0 | M47: 0 | N47: 0
B48: 908 | C48: Retten i Horsens | D48: Jurister | E48: 4.019296617 | F48: 0.3306881836 | G48: 4.69464265 | H48: 0.3862523715 | I48: 0.9264835083 | J48: 0.07622655844 | K48: 1.511866972 | L48: 0.1243890637 | M48: 0.01548813885 | N48: 0.001274288761
B49: 908 | C49: Retten i Horsens | D49: Kontor | E49: 4.393811451 | F49: 0.222965716 | G49: 3.116018411 | H49: 0.1581235981 | I49: 4.256183877 | J49: 0.2159817498 | K49: 4.14632196 | L49: 0.210406763 | M49: 0.6933100806 | N49: 0.03518229679
B50: 908 | C50: Retten i Horsens | D50: Elev | E50: 0.504746752 | F50: 0.1563772758 | G50: 0.6746978832 | H50: 0.209030403 | I50: 0.6632244019 | J50: 0.2054757654 | K50: 0.6988252031 | L50: 0.2165053685 | M50: 0.01222857756 | N50: 0.003788576427
B51: 908 | C51: Retten i Horsens | D51: Fleks | E51: 0.01081149825 | F51: 0.002788027906 | G51: 1.510537248 | H51: 0.3895315804 | I51: 0.4776593058 | J51: 0.1231769587 | K51: 0.9360392592 | L51: 0.2413822316 | M51: 0.005493612101 | N51: 0.001416671721
B52: 908 | C52: Retten i Horsens | D52: Øvrige | E52: 0.7933484444 | F52: 0.197897778 | G52: 0.01385583781 | H52: 0.003456286496 | I52: 0.8588732523 | J52: 0.2142426943 | K52: 0.2454496911 | L52: 0.06122649995 | M52: 0.1441937068 | N52: 0.03596857646
B53: 909 | C53: Retten i Kolding | D53: Jurister | E53: 7.628823077 | F53: 0.3817992816 | G53: 8.039477301 | H53: 0.4023512706 | I53: 1.633255559 | J53: 0.08173944955 | K53: 1.122256587 | L53: 0.05616551263 | M53: 0.03681934001 | N53: 0.001842695449
B54: 909 | C54: Retten i Kolding | D54: Kontor | E54: 10.93550417 | F54: 0.2834608827 | G54: 8.340378568 | H54: 0.2161922336 | I54: 7.984639724 | J54: 0.2069710724 | K54: 6.624916165 | L54: 0.1717254692 | M54: 1.038500495 | N54: 0.0269191308
B55: 909 | C55: Retten i Kolding | D55: Elev | E55: 1.087341833 | F55: 0.2972324883 | G55: 0.128615671 | H55: 0.03515799243 | I55: 1.115950668 | J55: 0.3050529132 | K55: 0.8284253389 | L55: 0.2264558553 | M55: 0.0005718594708 | N55: 0.0001563217824
B56: 909 | C56: Retten i Kolding | D56: Fleks | E56: 0.91926 | F56: 0.3333333333 | G56: 0 | H56: 0 | I56: 0.91926 | J56: 0.3333333333 | K56: 0 | L56: 0 | M56: 0 | N56: 0
B57: 909 | C57: Retten i Kolding | D57: Øvrige | E57: 0.1960088722 | F57: 0.04924363496 | G57: 0.1944212649 | H57: 0.04884477775 | I57: 0.546968762 | J57: 0.1374158718 | K57: 0 | L57: 0 | M57: 0 | N57: 0
B58: 910 | C58: Retten i Esbjerg | D58: Jurister | E58: 6.549489363 | F58: 0.4665031307 | G58: 3.924271712 | H58: 0.2795156901 | I58: 1.170354083 | J58: 0.08336128412 | K58: 1.140333233 | L58: 0.08122297686 | M58: 0.06546428655 | N58: 0.004662851244
B59: 910 | C59: Retten i Esbjerg | D59: Kontor | E59: 7.008332236 | F59: 0.2738007325 | G59: 3.452162709 | H59: 0.1348687029 | I59: 6.532296426 | J59: 0.2552030192 | K59: 5.521132082 | L59: 0.2156989648 | M59: 0.6457637788 | N59: 0.0252286264
B60: 910 | C60: Retten i Esbjerg | D60: Elev | E60: 0.01179516772 | F60: 0.01039679834 | G60: 0.1056447017 | H60: 0.09312005437 | I60: 0.9075948956 | J60: 0.7999955007 | K60: 0.0767266607 | L60: 0.06763037523 | M60: 0 | N60: 0
B61: 910 | C61: Retten i Esbjerg | D61: Fleks | E61: 0 | F61: 0 | G61: 0 | H61: 0 | I61: 0 | J61: 0 | K61: 0.779835522 | L61: 0.9707053064 | M61: 0.02353447803 | N61: 0.02929469365
B62: 910 | C62: Retten i Esbjerg | D62: Øvrige | E62: 0.1459422636 | F62: 0.04606210858 | G62: 0.1399128798 | H62: 0.04415912227 | I62: 0.004210597855 | J62: 0.001328943452 | K62: 0.1987844964 | L62: 0.06274010581 | M62: 0.002760090055 | N62: 0.0008711360554
B63: 911 | C63: Retten i Sønderborg | D63: Jurister | E63: 5.589843191 | F63: 0.3514207914 | G63: 6.359894804 | H63: 0.3998321937 | I63: 1.610259527 | J63: 0.1012333724 | K63: 1.102794489 | L63: 0.06933019388 | M63: 0.07609570241 | N63: 0.004783964603
B64: 911 | C64: Retten i Sønderborg | D64: Kontor | E64: 8.404660035 | F64: 0.2540149905 | G64: 6.305092078 | H64: 0.1905595108 | I64: 7.48695675 | J64: 0.2262791404 | K64: 5.645520894 | L64: 0.1706252163 | M64: 1.225778566 | N64: 0.03704684419
B65: 911 | C65: Retten i Sønderborg | D65: Elev | E65: 0.1287301426 | F65: 0.04830145604 | G65: 1.088404429 | H65: 0.4083854614 | I65: 1.016452139 | J65: 0.3813878967 | K65: 0.3119528683 | L65: 0.1170493364 | M65: 0.0008971146853 | N65: 0.0003366107166
B66: 911 | C66: Retten i Sønderborg | D66: Fleks | E66: 0 | F66: 0 | G66: 0 | H66: 0 | I66: 0.8222200052 | J66: 0.569085212 | K66: 0 | L66: 0 | M66: 0 | N66: 0
B67: 911 | C67: Retten i Sønderborg | D67: Øvrige | E67: 0.06748738407 | F67: 0.01750681832 | G67: 0.02677305505 | H67: 0.006945164892 | I67: 0.2474451683 | J67: 0.06418944319 | K67: 0.0366193663 | L67: 0.00949938424 | M67: 0.102382291 | N67: 0.02655886271
B68: 912 | C68: Retten i Odense | D68: Jurister | E68: 8.060791184 | F68: 0.4050036243 | G68: 6.177542888 | H68: 0.3103823436 | I68: 1.822006107 | J68: 0.09154424918 | K68: 2.230998265 | L68: 0.1120935107 | M68: 0.02986531081 | N68: 0.001500542421
B69: 912 | C69: Retten i Odense | D69: Kontor | E69: 12.55139209 | F69: 0.2942174997 | G69: 6.421267784 | H69: 0.1505211007 | I69: 10.02883883 | J69: 0.2350862648 | K69: 9.409378069 | L69: 0.2205654695 | M69: 0.8449706043 | N69: 0.01980697732
B70: 912 | C70: Retten i Odense | D70: Elev | E70: 0.96564148 | F70: 0.241400714 | G70: 0.3319521568 | H70: 0.08298471981 | I70: 1.57916869 | J70: 0.3947763814 | K70: 1.033896312 | L70: 0.2584637396 | M70: 0.001869265282 | N70: 0.0004672976286
B71: 912 | C71: Retten i Odense | D71: Fleks | E71: 0 | F71: 0 | G71: 0 | H71: 0 | I71: 0.6734424707 | J71: 0.5536857745 | K71: 0 | L71: 0 | M71: 0 | N71: 0
B72: 912 | C72: Retten i Odense | D72: Øvrige | E72: 0.02181265043 | F72: 0.004347591761 | G72: 0 | H72: 0 | I72: 0.003710373422 | J72: 0.0007395336467 | K72: 0 | L72: 0 | M72: 0 | N72: 0
B73: 913 | C73: Retten i Svendborg | D73: Jurister | E73: 4.612434218 | F73: 0.4478761114 | G73: 2.702054242 | H73: 0.2623745921 | I73: 1.338804216 | J73: 0.1300004288 | K73: 0.7620454701 | L73: 0.07399606059 | M73: 0.009862681145 | N73: 0.0009576850466
B74: 913 | C74: Retten i Svendborg | D74: Kontor | E74: 5.799186319 | F74: 0.2628718206 | G74: 3.678457586 | H74: 0.1667411236 | I74: 5.380261544 | J74: 0.2438823431 | K74: 4.0089625 | L74: 0.1817226096 | M74: 0.07353536953 | N74: 0.003333291156
B75: 913 | C75: Retten i Svendborg | D75: Elev | E75: 0.3424543196 | F75: 0.5022355316 | G75: 0.002783933007 | H75: 0.004082851329 | I75: 0.1611286386 | J75: 0.2363075097 | K75: 0.07835754133 | L75: 0.1149173457 | M75: 0 | N75: 0
B76: 913 | C76: Retten i Svendborg | D76: Fleks | E76: 0.006561128052 | F76: 0.006560931224 | G76: 0.007833744759 | H76: 0.007833509754 | I76: 0.01795628106 | J76: 0.01795574239 | K76: 0.02539992327 | L76: 0.02539916129 | M76: 0.4719224137 | N76: 0.4719082565
B77: 913 | C77: Retten i Svendborg | D77: Øvrige | E77: 0.370045532 | F77: 0.09239473465 | G77: 0.05007276806 | H77: 0.01250240772 | I77: 0.4095448935 | J77: 0.1022571238 | K77: 0.01507742226 | L77: 0.003764602754 | M77: 0.2289138229 | N77: 0.05715629591
B78: 914 | C78: Retten i Nykøbing F. | D78: Jurister | E78: 5.25378361 | F78: 0.4009888216 | G78: 3.815402089 | H78: 0.2912060529 | I78: 1.710702522 | J78: 0.1305673472 | K78: 1.241053632 | L78: 0.09472195096 | M78: 0.0001984216806 | N78: 1.514430014e-05
B79: 914 | C79: Retten i Nykøbing F. | D79: Kontor | E79: 7.555225123 | F79: 0.2408227933 | G79: 4.333823364 | H79: 0.1381406154 | I79: 9.241105468 | J79: 0.2945602276 | K79: 5.679715528 | L79: 0.1810409268 | M79: 0.5328975228 | N79: 0.01698610801
B80: 914 | C80: Retten i Nykøbing F. | D80: Elev | E80: 0.4961263203 | F80: 0.248053238 | G80: 0.2263953032 | H80: 0.1131931239 | I80: 0.6025554269 | J80: 0.3012656628 | K80: 0.4748047044 | L80: 0.2373928565 | M80: 0.01041929908 | N80: 0.005209441164
B81: 914 | C81: Retten i Nykøbing F. | D81: Fleks | E81: 0 | F81: 0 | G81: 0 | H81: 0 | I81: 0 | J81: 0 | K81: 0 | L81: 0 | M81: 0 | N81: 0
B82: 914 | C82: Retten i Nykøbing F. | D82: Øvrige | E82: 0 | F82: 0 | G82: 0 | H82: 0 | I82: 0 | J82: 0 | K82: 0 | L82: 0 | M82: 0.0122657367 | N82: 0.004461890397
B83: 915 | C83: Retten i Næstved | D83: Jurister | E83: 8.109050859 | F83: 0.4276120403 | G83: 5.503724517 | H83: 0.2902261819 | I83: 1.920231478 | J83: 0.1012589654 | K83: 1.964073606 | L83: 0.1035708786 | M83: 0.001681888132 | N83: 8.869048034e-05
B84: 915 | C84: Retten i Næstved | D84: Kontor | E84: 8.854737421 | F84: 0.2322950122 | G84: 5.213915656 | H84: 0.1367817636 | I84: 11.33886688 | J84: 0.297463617 | K84: 6.391937284 | L84: 0.1676859605 | M84: 0.6742010605 | N84: 0.01768697773
B85: 915 | C85: Retten i Næstved | D85: Elev | E85: 0.4680444546 | F85: 0.2340152068 | G85: 0.1086469859 | H85: 0.0543218633 | I85: 0.5061525042 | J85: 0.2530686601 | K85: 0.7687606888 | L85: 0.3843688133 | M85: 0 | N85: 0
B86: 915 | C86: Retten i Næstved | D86: Fleks | E86: 0.06649210361 | F86: 0.02604908136 | G86: 0.004568577209 | H86: 0.001789795073 | I86: 0.6182901826 | J86: 0.2422226159 | K86: 0.003160817622 | L86: 0.001238288322 | M86: 0.7185947486 | N86: 0.2815181361
B87: 915 | C87: Retten i Næstved | D87: Øvrige | E87: 0 | F87: 0 | G87: 0 | H87: 0 | I87: 0.004156916147 | J87: 0.00138664172 | K87: 0.005962683022 | L87: 0.001988999717 | M87: 0 | N87: 0
B88: 916 | C88: Retten i Holbæk | D88: Jurister | E88: 5.250481596 | F88: 0.4209298888 | G88: 4.04017588 | H88: 0.323899961 | I88: 1.200546174 | J88: 0.09624750762 | K88: 1.150941003 | L88: 0.09227067262 | M88: 0.02213958038 | N88: 0.001774925012
B89: 916 | C89: Retten i Holbæk | D89: Kontor | E89: 5.500636345 | F89: 0.2330496675 | G89: 3.306421216 | H89: 0.1400856768 | I89: 6.614787173 | J89: 0.2802537479 | K89: 4.880249877 | L89: 0.2067652795 | M89: 0.6288096395 | N89: 0.02664125898
B90: 916 | C90: Retten i Holbæk | D90: Elev | E90: 0.712348952 | F90: 0.3105540814 | G90: 0.2843163892 | H90: 0.1239499474 | I90: 0.7273364399 | J90: 0.3170879937 | K90: 0.264883618 | L90: 0.1154780792 | M90: 0.006188854924 | N90: 0.002698079573
B91: 916 | C91: Retten i Holbæk | D91: Fleks | E91: 1.139010251 | F91: 0.398116131 | G91: 0.91506813 | H91: 0.3198420587 | I91: 0.3875042395 | J91: 0.1354436349 | K91: 0.01034100874 | L91: 0.003614473518 | M91: 0.0001719091549 | N91: 6.008708666e-05
B92: 916 | C92: Retten i Holbæk | D92: Øvrige | E92: 0.04823056879 | F92: 0.01717411016 | G92: 0.001885296668 | H92: 0.0006713230524 | I92: 0.3087580537 | J92: 0.1099436511 | K92: 0.005611687341 | L92: 0.001998229318 | M92: 0.002401427163 | N92: 0.00085510861
B93: 917 | C93: Retten i Roskilde | D93: Jurister | E93: 8.829651739 | F93: 0.432425648 | G93: 6.261431244 | H93: 0.3066489532 | I93: 1.808420216 | J93: 0.08856603936 | K93: 2.125009813 | L93: 0.1040707802 | M93: 0.01143863382 | N93: 0.0005601986113
B94: 917 | C94: Retten i Roskilde | D94: Kontor | E94: 9.552882524 | F94: 0.2452540341 | G94: 7.91645144 | H94: 0.2032414453 | I94: 8.36733352 | J94: 0.214817077 | K94: 7.030081575 | L94: 0.1804854045 | M94: 0.6085250919 | N94: 0.01562284821
B95: 917 | C95: Retten i Roskilde | D95: Elev | E95: 1.087276382 | F95: 0.3464760149 | G95: 0.8681874942 | H95: 0.2766602384 | I95: 0.7454608297 | J95: 0.237551649 | K95: 0.3994272407 | L95: 0.1272831461 | M95: 0 | N95: 0
B96: 917 | C96: Retten i Roskilde | D96: Fleks | E96: 0 | F96: 0 | G96: 0 | H96: 0 | I96: 0 | J96: 0 | K96: 0 | L96: 0 | M96: 0 | N96: 0
B97: 917 | C97: Retten i Roskilde | D97: Øvrige | E97: 0 | F97: 0 | G97: 0 | H97: 0 | I97: 0 | J97: 0 | K97: 0 | L97: 0 | M97: 0 | N97: 0
B98: 918 | C98: Retten i Hillerød | D98: Jurister | E98: 5.863769948 | F98: 0.4241679571 | G98: 4.57976181 | H98: 0.3312865662 | I98: 1.385954439 | J98: 0.100255888 | K98: 1.031926462 | L98: 0.07464654021 | M98: 0.0235982882 | N98: 0.001707031106
B99: 918 | C99: Retten i Hillerød | D99: Kontor | E99: 4.484052936 | F99: 0.1957712741 | G99: 5.072909186 | H99: 0.2214804127 | I99: 4.766027874 | J99: 0.2080821441 | K99: 5.571640396 | L99: 0.2432547418 | M99: 0.4809347687 | N99: 0.02099734632
B100: 918 | C100: Retten i Hillerød | D100: Elev | E100: 1.677145089 | F100: 0.4281719099 | G100: 0.595730264 | H100: 0.1520887886 | I100: 0.9995540893 | J100: 0.2551842331 | K100: 0.615990567 | L100: 0.1572612049 | M100: 0.00478104851 | N100: 0.001220592473
B101: 918 | C101: Retten i Hillerød | D101: Fleks | E101: 0.1139262755 | F101: 0.03819351013 | G101: 0.02620782327 | H101: 0.008786109777 | I101: 1.0089251 | J101: 0.3382397154 | K101: 0.0009416801267 | L101: 0.0003156959997 | M101: 0.3071144748 | N101: 0.1029593897
B102: 918 | C102: Retten i Hillerød | D102: Øvrige | E102: 1.30178646 | F102: 0.2517197795 | G102: 0.07326697503 | H102: 0.01416725966 | I102: 0.3405391699 | J102: 0.0658483149 | K102: 0.265875141 | L102: 0.05141091409 | M102: 0.1733383249 | N102: 0.03351754397
B103: 919 | C103: Retten i Helsingør | D103: Jurister | E103: 4.155662878 | F103: 0.3606801471 | G103: 4.315411032 | H103: 0.3745450802 | I103: 1.000200003 | J103: 0.08680980501 | K103: 1.1985311 | L103: 0.1040234461 | M103: 0.01641280518 | N103: 0.001424507512
B104: 919 | C104: Retten i Helsingør | D104: Kontor | E104: 4.294540986 | F104: 0.1899552678 | G104: 4.170250332 | H104: 0.1844576687 | I104: 7.054857421 | J104: 0.3120490257 | K104: 4.265400272 | L104: 0.1886663216 | M104: 0.2403190543 | N104: 0.01062974377
B105: 919 | C105: Retten i Helsingør | D105: Elev | E105: 0.08296542383 | F105: 0.03900840856 | G105: 0.2498018691 | H105: 0.1174510166 | I105: 0.7676692087 | J105: 0.3609401694 | K105: 0.8872855378 | L105: 0.4171809794 | M105: 0 | N105: 0
B106: 919 | C106: Retten i Helsingør | D106: Fleks | E106: 0.3288458378 | F106: 0.1054899201 | G106: 0.05479564022 | H106: 0.01757780408 | I106: 0.5361862416 | J106: 0.1720023102 | K106: 0.1400495693 | L106: 0.04492627297 | M106: 0.5507557224 | N106: 0.1766760302
B107: 919 | C107: Retten i Helsingør | D107: Øvrige | E107: 0.0045391206 | F107: 0.001512001959 | G107: 0.7198073365 | H107: 0.239771136 | I107: 0.1411221424 | J107: 0.04700843499 | K107: 0.2997467765 | L107: 0.09984703052 | M107: 0 | N107: 0
B108: 920 | C108: Retten i Lyngby | D108: Jurister | E108: 3.993878906 | F108: 0.2785223021 | G108: 7.97527973 | H108: 0.5561744164 | I108: 0.7211342614 | J108: 0.05028995103 | K108: 0.8433722164 | L108: 0.05881449507 | M108: 0.00841440585 | N108: 0.0005867978832
B109: 920 | C109: Retten i Lyngby | D109: Kontor | E109: 6.486865194 | F109: 0.2162833432 | G109: 5.416362219 | H109: 0.1805909162 | I109: 4.901472439 | J109: 0.1634235974 | K109: 6.958599652 | L109: 0.2320117887 | M109: 1.765230496 | N109: 0.05885584821
B110: 920 | C110: Retten i Lyngby | D110: Elev | E110: 0.7696384413 | F110: 0.2046752887 | G110: 0.1563354275 | H110: 0.04157536454 | I110: 0.8004437405 | J110: 0.2128675556 | K110: 0.5267829059 | L110: 0.1400910318 | M110: 0.01207273152 | N110: 0.003210585227
B111: 920 | C111: Retten i Lyngby | D111: Fleks | E111: 0 | F111: 0 | G111: 0 | H111: 0 | I111: 0.7481795238 | J111: 0.819339127 | K111: 0.003176205083 | L111: 0.003478295004 | M111: 0.1271001881 | N111: 0.1391887292
B112: 920 | C112: Retten i Lyngby | D112: Øvrige | E112: 0.3115727008 | F112: 0.09200135261 | G112: 0.129832635 | H112: 0.03833704945 | I112: 0.0002379342684 | J112: 7.025735717e-05 | K112: 0.3003295389 | L112: 0.0886814658 | M112: 0.001070705278 | N112: 0.0003161584234
B113: 921 | C113: Retten i Glostrup | D113: Jurister | E113: 13.63584223 | F113: 0.4337940214 | G113: 10.99701389 | H113: 0.3498455613 | I113: 2.827119894 | J113: 0.08993853753 | K113: 1.146265274 | L113: 0.03646588266 | M113: 0.04225469936 | N113: 0.00134423937
B114: 921 | C114: Retten i Glostrup | D114: Kontor | E114: 15.64877682 | F114: 0.2865955089 | G114: 9.168231776 | H114: 0.167909229 | I114: 16.42494058 | J114: 0.300810361 | K114: 6.605411432 | L114: 0.1209731133 | M114: 0.7751567075 | N114: 0.01419640868
B115: 921 | C115: Retten i Glostrup | D115: Elev | E115: 0.4117052871 | F115: 0.1455282665 | G115: 1.072396652 | H115: 0.3790673346 | I115: 0.4361423932 | J115: 0.1541662165 | K115: 0.4845905841 | L115: 0.1712915279 | M115: 0.002825968698 | N115: 0.0009989143661
B116: 921 | C116: Retten i Glostrup | D116: Fleks | E116: 0.2991695104 | F116: 0.1033072427 | G116: 0.00304063728 | H116: 0.001049972817 | I116: 0.746379885 | J116: 0.2577349806 | K116: 0.9862608741 | L116: 0.3405691021 | M116: 0 | N116: 0
B117: 921 | C117: Retten i Glostrup | D117: Øvrige | E117: 0.8861475126 | F117: 0.08267959643 | G117: 0.3211960764 | H117: 0.029968331 | I117: 0.05963939343 | J117: 0.005564492266 | K117: 0.09427210334 | L117: 0.008795803574 | M117: 0.1450689458 | N117: 0.01353526555
B118: 922 | C118: Retten på Frederiksberg | D118: Jurister | E118: 13.3857905 | F118: 0.5240681455 | G118: 8.914079846 | H118: 0.3489958471 | I118: 1.590955297 | J118: 0.06228761704 | K118: 0.7484954177 | L118: 0.02930440347 | M118: 0.002929881165 | N118: 0.0001147080099
B119: 922 | C119: Retten på Frederiksberg | D119: Kontor | E119: 12.99159793 | F119: 0.2837866758 | G119: 8.828388083 | H119: 0.1928460932 | I119: 11.30984735 | J119: 0.2470507476 | K119: 7.423071714 | L119: 0.162148556 | M119: 0.2638863801 | N119: 0.005764297739
B120: 922 | C120: Retten på Frederiksberg | D120: Elev | E120: 1.10196526 | F120: 0.4338087244 | G120: 0.6395397712 | H120: 0.2517664962 | I120: 0.3625889057 | J120: 0.1427397364 | K120: 0.0645011173 | L120: 0.02539204133 | M120: 0 | N120: 0
B121: 922 | C121: Retten på Frederiksberg | D121: Fleks | E121: 0.01830582866 | F121: 0.004361469433 | G121: 2.213377945 | H121: 0.5273500824 | I121: 1.457756364 | J121: 0.3473188754 | K121: 0.006334478342 | L121: 0.00150922606 | M121: 0.1190745716 | N121: 0.02837020459
B122: 922 | C122: Retten på Frederiksberg | D122: Øvrige | E122: 0.7473314695 | F122: 0.07942417712 | G122: 0.1478738304 | H122: 0.01571559312 | I122: 0.3620490044 | J122: 0.03847749684 | K122: 0.7020046543 | L122: 0.07460697733 | M122: 0.1183060321 | N122: 0.01257321501
B123: 923 | C123: Københavns Byret | D123: Jurister | E123: 31.11786092 | F123: 0.5064207882 | G123: 20.40263181 | H123: 0.332038147 | I123: 3.517974012 | J123: 0.05725249484 | K123: 1.884112874 | L123: 0.03066258086 | M123: 0.009318632185 | N123: 0.0001516540313
B124: 923 | C124: Københavns Byret | D124: Kontor | E124: 43.13110603 | F124: 0.3757708837 | G124: 22.18968804 | H124: 0.1933230897 | I124: 17.20990215 | J124: 0.1499377302 | K124: 8.650439109 | L124: 0.07536517022 | M124: 3.757919924 | N124: 0.03274010385
B125: 923 | C125: Københavns Byret | D125: Elev | E125: 2.498030632 | F125: 0.4126813938 | G125: 0.8422255933 | H125: 0.1391379382 | I125: 1.076352331 | J125: 0.1778163063 | K125: 0.9685874538 | L125: 0.1600132581 | M125: 0.0316289852 | N125: 0.00522519361
B126: 923 | C126: Københavns Byret | D126: Fleks | E126: 0 | F126: - | G126: 0 | H126: - | I126: 0 | J126: - | K126: 0 | L126: - | M126: 0 | N126: -
B127: 923 | C127: Københavns Byret | D127: Øvrige | E127: 4.087972418 | F127: 0.3431461729 | G127: 1.79399608 | H127: 0.1505888069 | I127: 0.5011736713 | J127: 0.04206873473 | K127: 0 | L127: 0 | M127: 0.3532181876 | N127: 0.02964928744
B128: 924 | C128: Retten på Bornholm | D128: Jurister | E128: 0.6730264666 | F128: 0.2354482494 | G128: 0.7708073915 | H128: 0.2696554445 | I128: 0.3465036574 | J128: 0.1212191253 | K128: 0.4767539345 | L128: 0.1667852378 | M128: 0.01900499948 | N128: 0.006648614994
B129: 924 | C129: Retten på Bornholm | D129: Kontor | E129: 1.438232949 | F129: 0.2032036765 | G129: 0.848296683 | H129: 0.1198533275 | I129: 0.9275976522 | J129: 0.1310575267 | K129: 1.407530527 | L129: 0.198865822 | M129: 0.1177788732 | N129: 0.01664062839
B130: 924 | C130: Retten på Bornholm | D130: Elev | E130: 0.5509176636 | F130: 0.3816567233 | G130: 0.006590362952 | H130: 0.004565575759 | I130: 0.01817302987 | J130: 0.01258964722 | K130: 0.5765515888 | L130: 0.3994150211 | M130: 0 | N130: 0
B131: 924 | C131: Retten på Bornholm | D131: Fleks | E131: 0 | F131: - | G131: 0 | H131: - | I131: 0 | J131: - | K131: 0 | L131: - | M131: 0 | N131: -
B132: 924 | C132: Retten på Bornholm | D132: Øvrige | E132: 0.01566620724 | F132: 0.01169285737 | G132: 0 | H132: 0 | I132: 0 | J132: 0 | K132: 0 | L132: 0 | M132: 0 | N132: 0
B134: 1) Procenten er beregnet i forhold til det samlede årsværksforbrug ved retten inkl. generel ledelse og administration, hvorfor der ikke kan summes op til 100 % for den enkelte ret.
B135: 2) Ansatte under socialt kapitel (fleksjobbere mv.) uden tidsfordeling indgår ikke i denne opgørelse.
B136: 3) Det opgjorte årsværksforbrug er inkl. de korrektioner, der foretages som led i produktivitetsberegningen.

Sheet Dataark til 901-924 (hidden)
B11: Samlet produktivitet, retten | D11: Samlet produktivitet, jurister | F11: Samlet produktivitet, kontor | H11: ÅRVK ledelse og adm. | J11: Sagstider domsmandssager | L11: Sagstider hfh. alm. Civil | N11: Sagstid alm. fogedsag | P11: Målopfyldelse vold | R11: Målopfyldelse voldtægt | T11: Sygefravær | V11: Personaleomsætning | X11: Årsværk retten | Z11: Årsværk jurist | AB11: Årsværk kontor | AD11: Samlet lønsum
A12: Ret | B12: 2013 | C12: 2014 | D12: 2013 | E12: 2014 | F12: 2013 | G12: 2014 | H12: 2013 | I12: 2014 | J12: 2013 | K12: 2014 | L12: 2013 | M12: 2014 | N12: 2013 | O12: 2014 | P12: 2013 | Q12: 2014 | R12: 2013 | S12: 2014 | T12: 2013 | U12: 2014 | V12: 2013 | W12: 2014 | X12: 2013 | Y12: 2014 | Z12: 2013 | AA12: 2014 | AB12: 2013 | AC12: 2014 | AD12: 2013 | AE12: 2014
A13: Retten i Hjørring | B13: 102.9146793 | C13: 103.5231212 | D13: 101.4346809 | E13: 100.759754 | F13: 103.2149744 | G13: 103.3974315 | H13: 0.1868261939 | I13: 0.1665256771 | J13: 96 | K13: 95 | L13: 631.7745665 | M13: 525.5742574 | N13: 49.86269469 | O13: 49.91041129 | P13: 64 | Q13: 56.25 | R13: 75 | S13: 33.33333333 | T13: 5.7 | U13: 8.9 | V13: 12.7 | W13: 5.7 | X13: 53.476 | Y13: 50.05401 | Z13: 14.51677 | AA13: 13.73052 | AB13: 29.3254 | AC13: 28.51714 | AD13: 25.23077424 | AE13: 23.90913679 | AF13: Retten i Hjørring
A14: Retten i Aalborg | B14: 98.62855147 | C14: 96.6556053 | D14: 98.45801217 | E14: 89.37239006 | F14: 98.27397591 | G14: 106.1063077 | H14: 0.1339181623 | I14: 0.1197207669 | J14: 106 | K14: 114 | L14: 593.4757282 | M14: 527.4122807 | N14: 41.55710276 | O14: 43.94413408 | P14: 33.89830508 | Q14: 54.28571429 | R14: 60 | S14: 100 | T14: 5.1 | U14: 7.5 | V14: 12 | W14: 14.9 | X14: 75.60557 | Y14: 74.76297 | Z14: 20.77576 | AA14: 23.25516 | AB14: 43.97071 | AC14: 40.42406 | AD14: 36.32284163 | AE14: 36.63402749 | AF14: Retten i Aalborg
A15: Retten i Randers | B15: 97.0241151 | C15: 103.339095 | D15: 91.55018696 | E15: 96.00976208 | F15: 105.3368061 | G15: 117.9593277 | H15: 0.1980503732 | I15: 0.2099300769 | J15: 151 | K15: 124 | L15: 622.7865854 | M15: 555.5109489 | N15: 47.72560892 | O15: 58.37249399 | P15: 40 | Q15: 47.72727273 | R15: 0 | S15: 66.66666667 | T15: 6.9 | U15: 8.2 | V15: 10.8 | W15: 16.8 | X15: 51.35568 | Y15: 51.06822 | Z15: 14.54448 | AA15: 14.54934 | AB15: 28.09834 | AC15: 26.15055 | AD15: 26.74664964 | AE15: 25.62575263 | AF15: Retten i Randers
A16: Retten i Århus | B16: 98.14882931 | C16: 96.18247078 | D16: 94.28098483 | E16: 89.7982108 | F16: 104.1593869 | G16: 109.6431052 | H16: 0.1656399121 | I16: 0.1516882453 | J16: 140 | K16: 139 | L16: 494.8684211 | M16: 483.0638298 | N16: 56.95581015 | O16: 59.21347896 | P16: 38.46153846 | Q16: 27.08333333 | R16: 100 | S16: 14.28571429 | T16: 10.8 | U16: 9.6 | V16: 11.6 | W16: 13.7 | X16: 83.99051 | Y16: 81.20104 | Z16: 25.22725 | AA16: 25.26038 | AB16: 45.35235 | AC16: 41.33383 | AD16: 41.02113215 | AE16: 40.6273674 | AF16: Retten i Århus
A17: Retten i Viborg | B17: 97.24417792 | C17: 96.93034019 | D17: 92.31263346 | E17: 86.7549527 | F17: 105.8387295 | G17: 111.2954665 | H17: 0.1831987808 | I17: 0.1776954429 | J17: 108 | K17: 128 | L17: 534.7073171 | M17: 519.2689655 | N17: 47.35630204 | O17: 51.79351254 | P17: 67.74193548 | Q17: 62.16216216 | R17: 0 | S17: 100 | T17: 4.7 | U17: 5.9 | V17: 16.2 | W17: 19.2 | X17: 53.08464 | Y17: 52.03653 | Z17: 15.00269 | AA17: 15.44982 | AB17: 28.03999 | AC17: 26.36467 | AD17: 25.88336059 | AE17: 24.61018693 | AF17: Retten i Viborg
A18: Retten i Holstebro | B18: 103.5572491 | C18: 100.812459 | D18: 103.5300145 | E18: 99.45621923 | F18: 106.9435187 | G18: 105.1031682 | H18: 0.2155162205 | I18: 0.2143408913 | J18: 86 | K18: 84 | L18: 475.9032258 | M18: 413.4242424 | N18: 32.54022491 | O18: 34.27151899 | P18: 72.72727273 | Q18: 71.42857143 | R18: 100 | S18: 50 | T18: 5 | U18: 7.3 | V18: 16.2 | W18: 14.1 | X18: 38.40156 | Y18: 37.12805 | Z18: 9.67165 | AA18: 9.58671 | AB18: 20.53304 | AC18: 20.18777 | AD18: 19.40336905 | AE18: 19.09541128 | AF18: Retten i Holstebro
A19: Retten i Herning | B19: 92.5848018 | C19: 99.65816242 | D19: 82.04356593 | E19: 89.417041 | F19: 104.7436876 | G19: 111.3990738 | H19: 0.1955231872 | I19: 0.1893007858 | J19: 94 | K19: 91 | L19: 433.9708738 | M19: 520.7297297 | N19: 46.84155791 | O19: 46.73239437 | P19: 52.63157895 | Q19: 76.92307692 | R19: 16.66666667 | S19: 66.66666667 | T19: 8.6 | U19: 5.7 | V19: 15.3 | W19: 15.6 | X19: 38.76992 | Y19: 37.47035 | Z19: 11.84085 | AA19: 11.39788 | AB19: 20.75833 | AC19: 20.21608 | AD19: 20.02559767 | AE19: 19.00288448 | AF19: Retten i Herning
A20: Retten i Horsens | B20: 96.30874721 | C20: 89.74637006 | D20: 90.97352822 | E20: 80.99846156 | F20: 103.1020684 | G20: 100.8419553 | H20: 0.1979407442 | I20: 0.1918271636 | J20: 96 | K20: 111 | L20: 418 | M20: 434.1073826 | N20: 49.71742972 | O20: 46.29432687 | P20: 47.05882353 | Q20: 40 | R20: 0 | S20: 50 | T20: 5.3 | U20: 7.7 | V20: 13.3 | W20: 15.7 | X20: 49.88988 | Y20: 48.3814 | Z20: 14.06581 | AA20: 14.3927 | AB20: 25.31688 | AC20: 24.3045 | AD20: 24.53226103 | AE20: 24.09609649 | AF20: Retten i Horsens
A21: Retten i Kolding | B21: 103.4065127 | C21: 102.7438446 | D21: 93.44213967 | E21: 95.50833868 | F21: 112.1976912 | G21: 109.1412959 | H21: 0.1814648532 | I21: 0.1734292531 | J21: 105 | K21: 99 | L21: 510.0465116 | M21: 480.371134 | N21: 46.31372549 | O21: 52.97362322 | P21: 61.2244898 | Q21: 60 | R21: 100 | S21: 75 | T21: 11.7 | U21: 15.9 | V21: 6.6 | W21: 15.3 | X21: 67.53552 | Y21: 66.6538 | Z21: 21.33572 | AA21: 19.78779 | AB21: 37.2161 | AC21: 36.96165 | AD21: 35.21200134 | AE21: 33.98298785 | AF21: Retten i Kolding
A22: Retten i Esbjerg | B22: 99.69839621 | C22: 96.95557776 | D22: 95.03327915 | E22: 90.16354519 | F22: 101.4630039 | G22: 101.1639788 | H22: 0.1544399994 | I22: 0.1449473346 | J22: 143 | K22: 133 | L22: 631.4972067 | M22: 627.1860465 | N22: 58.91485835 | O22: 42.71642026 | P22: 30.86419753 | Q22: 40 | R22: 0 | S22: 0 | T22: 10.3 | U22: 8.5 | V22: 15 | W22: 15.2 | X22: 54.27444 | Y22: 51.83652 | Z22: 14.92874 | AA22: 14.62602 | AB22: 29.74744 | AC22: 27.96305 | AD22: 26.28483427 | AE22: 25.05472688 | AF22: Retten i Esbjerg
A23: Retten i Sønderborg | B23: 103.0055282 | C23: 106.4151909 | D23: 98.84884045 | E23: 103.7144091 | F23: 105.9415153 | G23: 108.6960709 | H23: 0.1968216784 | I23: 0.2000639601 | J23: 77 | K23: 81 | L23: 588.0246914 | M23: 405.7076923 | N23: 52.85101266 | O23: 51.7282204 | P23: 75.67567568 | Q23: 63.82978723 | R23: 100 | S23: - | T23: 7 | U23: 6.2 | V23: 10.2 | W23: 10.3 | X23: 58.41784 | Y23: 55.80884 | Z23: 17.36145 | AA23: 15.55415 | AB23: 33.50583 | AC23: 32.17316 | AD23: 32.07104816 | AE23: 30.87363142 | AF23: Retten i Sønderborg
A24: Retten i Odense | B24: 108.3800934 | C24: 96.5395286 | D24: 106.2807687 | E24: 89.58908157 | F24: 110.9626462 | G24: 104.5850874 | H24: 0.1610274217 | I24: 0.1668205188 | J24: 97 | K24: 92 | L24: 460.0165746 | M24: 410.88 | N24: 50.36748596 | O24: 60.92986425 | P24: 51.11111111 | Q24: 45.71428571 | R24: 40 | S24: 30.76923077 | T24: 7.7 | U24: 9.5 | V24: 8.3 | W24: 7.9 | X24: 77.86296 | Y24: 77.07732 | Z24: 21.81471 | AA24: 23.71285 | AB24: 45.22965 | AC24: 43.9482 | AD24: 38.81514503 | AE24: 38.61886183 | AF24: Retten i Odense
A25: Retten i Svendborg | B25: 98.99112703 | C25: 99.80214422 | D25: 96.48288534 | E25: 95.62400779 | F25: 103.5551398 | G25: 107.9791467 | H25: 0.1662743921 | I25: 0.1705922523 | J25: 105 | K25: 122 | L25: 479.2658228 | M25: 477.09375 | N25: 47.2630719 | O25: 56.18881119 | P25: 56.60377358 | Q25: 51.28205128 | R25: 40 | S25: 0 | T25: 14.2 | U25: 7.4 | V25: 17.7 | W25: 14.5 | X25: 36.96098 | Y25: 36.62017 | Z25: 10.30021 | AA25: 10.27236 | AB25: 21.70681 | AC25: 20.21508 | AD25: 19.70705955 | AE25: 18.51114105 | AF25: Retten i Svendborg
A26: Retten i Nykøbing F. | B26: 101.1958707 | C26: 99.31443827 | D26: 103.2506045 | E26: 101.3997252 | F26: 99.98645671 | G26: 96.93095285 | H26: 0.2136326657 | I26: 0.1807260383 | J26: 94 | K26: 80 | L26: 390.2222222 | M26: 382.2692308 | N26: 51.22872467 | O26: 46.03074305 | P26: 43.83561644 | Q26: 67.30769231 | R26: 100 | S26: 50 | T26: 3.8 | U26: 7.2 | V26: 15.8 | W26: 11.5 | X26: 49.93317 | Y26: 50.32492 | Z26: 13.97805 | AA26: 13.82973 | AB26: 30.55141 | AC26: 30.67865 | AD26: 25.6823684 | AE26: 25.17850572 | AF26: Retten i Nykøbing F.
A27: Retten i Næstved | B27: 106.4522251 | C27: 102.3117616 | D27: 101.2406033 | E27: 95.96222851 | F27: 111.6879755 | G27: 108.2319237 | H27: 0.2110018934 | I27: 0.2055415245 | J27: 132 | K27: 137 | L27: 524.7538462 | M27: 502.7627119 | N27: 59.44236241 | O27: 69.69931074 | P27: 38.0952381 | Q27: 31.81818182 | R27: 50 | S27: 22.22222222 | T27: 9 | U27: 8 | V27: 19.7 | W27: 12.6 | X27: 63.45753 | Y27: 60.64993 | Z27: 18.70124 | AA27: 17.55258 | AB27: 35.80973 | AC27: 34.2524 | AD27: 31.63077126 | AE27: 29.79163161 | AF27: Retten i Næstved
A28: Retten i Holbæk | B28: 97.5198651 | C28: 101.478968 | D28: 98.0654575 | E28: 98.97449175 | F28: 95.65987869 | G28: 102.2496137 | H28: 0.1791150763 | I28: 0.1726009196 | J28: 121 | K28: 92 | L28: 423.1904762 | M28: 406.2105263 | N28: 61.38024691 | O28: 62.59675489 | P28: 66.66666667 | Q28: 60 | R28: 66.66666667 | S28: 33.33333333 | T28: 7.3 | U28: 8.7 | V28: 14.1 | W28: 18.7 | X28: 49.02491 | Y28: 45.54094 | Z28: 12.88079 | AA28: 12.52644 | AB28: 27.5082 | AC28: 25.08951 | AD28: 23.08612638 | AE28: 22.46541318 | AF28: Retten i Holbæk
A29: Retten i Roskilde | B29: 101.069153 | C29: 101.644567 | D29: 93.84592474 | E29: 99.36044334 | F29: 107.666467 | G29: 101.7161825 | H29: 0.1856861136 | I29: 0.1794598483 | J29: 152 | K29: 133 | L29: 631.7375566 | M29: 468.0430108 | N29: 62.14235163 | O29: 56.66790871 | P29: 38.46153846 | Q29: 26.66666667 | R29: - | S29: 0 | T29: 8 | U29: 4.5 | V29: 19.9 | W29: 11.9 | X29: 73.92877 | Y29: 71.54561 | Z29: 22.48327 | AA29: 20.71814 | AB29: 41.59892 | AC29: 43.09007 | AD29: 38.57747683 | AE29: 37.60096141 | AF29: Retten i Roskilde
A30: Retten i Hillerød | B30: 98.37624366 | C30: 92.68948395 | D30: 93.0362009 | E30: 83.08629181 | F30: 111.8642549 | G30: 111.2224862 | H30: 0.2259331167 | I30: 0.1991529722 | J30: 93 | K30: 113 | L30: 457.4690265 | M30: 502.826087 | N30: 49.4952913 | O30: 52.278487 | P30: 56.25 | Q30: 41.37931034 | R30: 50 | S30: 50 | T30: 9.2 | U30: 11.2 | V30: 20.1 | W30: 12.9 | X30: 51.95118 | Y30: 51.27185 | Z30: 14.9175 | AA30: 15.82924 | AB30: 25.88941 | AC30: 24.89634 | AD30: 26.59530339 | AE30: 25.43023796 | AF30: Retten i Hillerød
A31: Retten i Helsingør | B31: 96.60724523 | C31: 95.73488114 | D31: 85.9110245 | E31: 81.20297998 | F31: 105.9668203 | G31: 112.4083829 | H31: 0.1578139783 | I31: 0.1449705115 | J31: 106 | K31: 112 | L31: 446.7733333 | M31: 559.9230769 | N31: 55.7016081 | O31: 68.93901858 | P31: 53.84615385 | Q31: 40 | R31: - | S31: 0 | T31: 13.1 | U31: 10.5 | V31: 17.9 | W31: 8.1 | X31: 47.84352 | Y31: 48.75499 | Z31: 14.47586 | AA31: 15.65373 | AB31: 25.18211 | AC31: 23.82526 | AD31: 25.17136882 | AE31: 24.29663369 | AF31: Retten i Helsingør
A32: Retten i Lyngby | B32: 96.82753324 | C32: 88.90590959 | D32: 86.51477605 | E32: 79.383929 | F32: 110.7851418 | G32: 101.3125505 | H32: 0.2167293196 | I32: 0.2029569311 | J32: 103 | K32: 105 | L32: 475.2258065 | M32: 385.046729 | N32: 39.57969813 | O32: 41.28764479 | P32: 72.72727273 | Q32: 60 | R32: 100 | S32: 33.33333333 | T32: 9.7 | U32: 8.8 | V32: 15.3 | W32: 16.5 | X32: 55.74239 | Y32: 55.26352 | Z32: 19.51242 | AA32: 18.80749 | AB32: 29.6227 | AC32: 29.49397 | AD32: 31.14209533 | AE32: 29.34078699 | AF32: Retten i Lyngby
A33: Retten i Glostrup | B33: 98.98202225 | C33: 104.7182355 | D33: 100.008897 | E33: 103.6593422 | F33: 99.29484206 | G33: 101.7834329 | H33: 0.2005362955 | I33: 0.1838177813 | J33: 146 | K33: 142 | L33: 614.8410405 | M33: 509.8187702 | N33: 75.69489089 | O33: 80.59972946 | P33: 43.75 | Q33: 32.89473684 | R33: 0 | S33: 0 | T33: 11.8 | U33: 7.5 | V33: 20.6 | W33: 17.3 | X33: 115.40872 | Y33: 106.84539 | Z33: 32.60759 | AA33: 30.84999 | AB33: 66.42532 | AC33: 63.61432 | AD33: 56.2588608 | AE33: 54.12637493 | AF33: Retten i Glostrup
A34: Retten på Frederiksberg | B34: 101.2561076 | C34: 103.1249909 | D34: 97.63529013 | E34: 96.62965753 | F34: 107.7453051 | G34: 112.175938 | H34: 0.2027823079 | I34: 0.1769760671 | J34: 180 | K34: 162 | L34: 551.3023256 | M34: 542.7112299 | N34: 86.15949623 | O34: 76.66579713 | P34: 8.695652174 | Q34: 26.47058824 | R34: 0 | S34: 40 | T34: 12 | U34: 10.9 | V34: 18.3 | W34: 15.6 | X34: 79.92535 | Y34: 80.89792 | Z34: 23.83584 | AA34: 25.78624 | AB34: 44.71399 | AC34: 43.13565 | AD34: 40.40890417 | AE34: 40.72638703 | AF34: Retten på Frederiksberg
A35: Københavns Byret | B35: 96.14494276 | C35: 94.63679124 | D35: 97.09472333 | E35: 93.86221962 | F35: 91.31934696 | G35: 91.19352344 | H35: 0.2065795179 | I35: 0.2060769464 | J35: 96 | K35: 104 | L35: 512.7992278 | M35: 529.8726592 | N35: 78.12335474 | O35: 73.15736591 | P35: 70 | Q35: 38.02816901 | R35: - | S35: 16.66666667 | T35: 8.1 | U35: 10.3 | V35: 9.6 | W35: 8.7 | X35: 190.18872 | Y35: 186.12346 | Z35: 58.73651 | AA35: 59.37777 | AB35: 113.64497 | AC35: 108.74881 | AD35: 102.9923745 | AE35: 101.9412044 | AF35: Københavns Byret
A36: Retten på Bornholm | B36: 63.43657445 | C36: 62.38123174 | D36: 64.7059556 | E36: 61.18431382 | F36: 66.6434586 | G36: 67.97281795 | H36: 0.3379421224 | I36: 0.3262324987 | J36: 46 | K36: 35 | L36: 291.3529412 | M36: 332.1111111 | N36: 27.57464366 | O36: 27.50285249 | P36: 94.73684211 | Q36: 78.94736842 | R36: 100 | S36: - | T36: 7.2 | U36: 8.7 | V36: 6.4 | W36: 19.4 | X36: 14.55013 | Y36: 14.58443 | Z36: 3.48785 | AA36: 3.77068 | AB36: 7.80507 | AC36: 7.52959 | AD36: 7.31 | AE36: 7.08154941 | AF36: Retten på Bornholm
B37: 0 | C37: 0 | D37: 0 | E37: 0 | F37: 0 | G37: 0 | H37: 0 | I37: 0 | J37: 0 | K37: 0 | L37: 0 | M37: 0 | N37: 0 | O37: 0 | P37: 0 | Q37: 0 | R37: 0 | S37: 0 | T37: 0 | U37: 0 | V37: 0 | W37: 0 | X37: 0 | Y37: 0 | Z37: 0 | AA37: 0 | AB37: 0 | AC37: 0 | AD37: 0 | AE37: 0
B41: Samlet produktivitet, retten | D41: Samlet produktivitet, jurister | F41: Samlet produktivitet, kontor | H41: ÅRVK ledelse og adm. | J41: Sagstider domsmandssager | L41: Sagstider hfh. alm. Civil | N41: Sagstid alm. fogedsag | P41: Målopfyldelse vold | R41: Målopfyldelse voldtægt | T41: Sygefravær | V41: Personaleomsætning | X41: Årsværk retten | Z41: Årsværk jurist | AB41: Årsværk kontor | AD41: Samlet lønsum
A42: Ret | B42: 2010 | C42: 2011 | D42: 2010 | E42: 2011 | F42: 2010 | G42: 2011 | H42: 2011 | J42: 2011 | L42: 2011 | N42: 2011 | P42: 2011 | R42: 2011 | T42: 2011 | V42: 2011 | X42: 2011 | Z42: 2011 | AB42: 2011 | AD42: 2011
A43: Retten i Hjørring | H43: 0.1808500373 | I43: =#REF!-H43 ->  | J43: 93 | K43: =J13-J43 -> 3 | L43: 588.737931 | M43: =L13-L43 -> 43.03663544 | N43: 59.02804965 | O43: =N13-N43 -> -9.165354958 | P43: 72.72727273 | Q43: =P13-P43 -> -8.727272727 | R43: 75 | S43: =R13-R43 -> 0 | T43: 9.195340336 | U43: =T13-T43 -> -3.495340336 | V43: 13.3 | W43: =V13-V43 -> -0.6 | X43: 59.79526 | Y43: =#REF!-X43 ->  | Z43: 13.34803 | AA43: =#REF!-Z43 ->  | AB43: 33.06976 | AC43: =#REF!-AB43 ->  | AD43: 25.84077727 | AE43: =AD13-AD43 -> -0.61000303
A44: Retten i Aalborg | H44: 0.1440885883 | I44: =#REF!-H44 ->  | J44: 89 | K44: =J14-J44 -> 17 | L44: 549.7346939 | M44: =L14-L44 -> 43.74103428 | N44: 81.29756381 | O44: =N14-N44 -> -39.74046105 | P44: 70 | Q44: =P14-P44 -> -36.10169492 | R44: 0 | S44: =R14-R44 -> 60 | T44: 7.44756948 | U44: =T14-T44 -> -2.34756948 | V44: 11.1 | W44: =V14-V44 -> 0.9 | X44: 80.50898 | Y44: =#REF!-X44 ->  | Z44: 22.18722 | AA44: =#REF!-Z44 ->  | AB44: 48.742 | AC44: =#REF!-AB44 ->  | AD44: 38.77436805 | AE44: =AD14-AD44 -> -2.45152642
A45: Retten i Randers | H45: 0.2242573374 | I45: =#REF!-H45 ->  | J45: 160 | K45: -9 | L45: 633.4363636 | M45: -10.64977827 | N45: 76.65538674 | O45: -28.92977782 | P45: 43.1372549 | Q45: -3.137254902 | R45: 0 | S45: 0 | T45: 7.923213529 | U45: -1.023213529 | V45: 6.1 | W45: 4.7 | X45: 58.17027 | Y45: =#REF!-X45 ->  | Z45: 16.642 | AA45: =#REF!-Z45 ->  | AB45: 31.602 | AC45: =#REF!-AB45 ->  | AD45: 28.27830635 | AE45: -1.53165671
A46: Retten i Århus | H46: 0.1740744916 | I46: =#REF!-H46 ->  | J46: 187 | K46: -47 | L46: 585.8815789 | M46: -91.01315789 | N46: 68.09649662 | O46: -11.14068647 | P46: 44.44444444 | Q46: -5.982905983 | R46: 0 | S46: 100 | T46: 10.94548768 | U46: -0.1454876758 | V46: 11.4 | W46: 0.2 | X46: 90.00205 | Y46: =#REF!-X46 ->  | Z46: 26.56876 | AA46: =#REF!-Z46 ->  | AB46: 50.61565 | AC46: =#REF!-AB46 ->  | AD46: 43.96941009 | AE46: -2.94827794
A47: Retten i Viborg | H47: 0.1869106164 | I47: =#REF!-H47 ->  | J47: 110 | K47: -2 | L47: 598.0942408 | M47: -63.38692376 | N47: 70.36160608 | O47: -23.00530404 | P47: 67.64705882 | Q47: 0.09487666034 | R47: 100 | S47: -100 | T47: 7.021671724 | U47: -2.321671724 | V47: 10.2 | W47: 6 | X47: 55.19659 | Y47: =#REF!-X47 ->  | Z47: 15.1701 | AA47: =#REF!-Z47 ->  | AB47: 30.18242 | AC47: =#REF!-AB47 ->  | AD47: 26.64360749 | AE47: -0.7602469
A48: Retten i Holstebro | H48: 0.2156894162 | I48: =#REF!-H48 ->  | J48: 99 | K48: -13 | L48: 517.1038961 | M48: -41.2006703 | N48: 33.32733875 | O48: -0.787113838 | P48: 44.06779661 | Q48: 28.65947612 | R48: 66.66666667 | S48: 33.33333333 | T48: 7.512563132 | U48: -2.512563132 | V48: 11.9 | W48: 4.3 | X48: 46.44103 | Y48: =#REF!-X48 ->  | Z48: 11.27 | AA48: =#REF!-Z48 ->  | AB48: 23.056 | AC48: =#REF!-AB48 ->  | AD48: 21.76629581 | AE48: -2.36292676
A49: Retten i Herning | H49: 0.2140891957 | I49: =#REF!-H49 ->  | J49: 93 | K49: 1 | L49: 504 | M49: -70.02912621 | N49: 46.15043463 | O49: 0.6911232819 | P49: 60.41666667 | Q49: -7.785087719 | R49: 0 | S49: 16.66666667 | T49: 12.53367166 | U49: -3.933671661 | V49: 17.4 | W49: -2.1 | X49: 42.52615 | Y49: =#REF!-X49 ->  | Z49: 11.84873 | AA49: =#REF!-Z49 ->  | AB49: 23.57106 | AC49: =#REF!-AB49 ->  | AD49: 21.11471095 | AE49: -1.08911328
A50: Retten i Horsens | H50: 0.1978894442 | I50: =#REF!-H50 ->  | J50: 75 | K50: 21 | L50: 454.2037037 | M50: -36.2037037 | N50: 53.19851049 | O50: -3.481080771 | P50: 54.23728814 | Q50: -7.178464606 | R50: 999 | S50: -999 | T50: 9.656788281 | U50: -4.356788281 | V50: 12.5 | W50: 0.8 | X50: 53.41053 | Y50: =#REF!-X50 ->  | Z50: 14.38903 | AA50: =#REF!-Z50 ->  | AB50: 26.41923 | AC50: =#REF!-AB50 ->  | AD50: 25.08928797 | AE50: -0.55702694
A51: Retten i Kolding | H51: 0.1649720064 | I51: =#REF!-H51 ->  | J51: 150 | K51: -45 | L51: 651.4146341 | M51: -141.3681225 | N51: 50.7865086 | O51: -4.47278311 | P51: 65.51724138 | Q51: -4.292751583 | R51: 999 | S51: -899 | T51: 8.675627926 | U51: 3.024372074 | V51: 6.1 | W51: 0.5 | X51: 76.6875 | Y51: =#REF!-X51 ->  | Z51: 20.54952 | AA51: =#REF!-Z51 ->  | AB51: 45.06554 | AC51: =#REF!-AB51 ->  | AD51: 36.12998449 | AE51: -0.91798315
A52: Retten i Esbjerg | H52: 0.160884098 | I52: =#REF!-H52 ->  | J52: 134 | K52: 9 | L52: 627.5329949 | M52: 3.96421178 | N52: 57.25041368 | O52: 1.664444668 | P52: 31.91489362 | Q52: -1.050696086 | R52: 20 | S52: -20 | T52: 9.830962196 | U52: 0.469037804 | V52: 12.2 | W52: 2.8 | X52: 56.23196 | Y52: =#REF!-X52 ->  | Z52: 15.1442 | AA52: =#REF!-Z52 ->  | AB52: 32.03157 | AC52: =#REF!-AB52 ->  | AD52: 27.40345038 | AE52: -1.11861611
A53: Retten i Sønderborg | H53: 0.2093655007 | I53: =#REF!-H53 ->  | J53: 146 | K53: -69 | L53: 670.3020134 | M53: -82.27732206 | N53: 66.74565217 | O53: -13.89463951 | P53: 51.25 | Q53: 24.42567568 | R53: 0 | S53: 100 | T53: 5.1 | U53: 1.9 | V53: 12.9 | W53: -2.7 | X53: 62.58565 | Y53: =#REF!-X53 ->  | Z53: 15.411 | AA53: =#REF!-Z53 ->  | AB53: 36.905 | AC53: =#REF!-AB53 ->  | AD53: 32.31378702 | AE53: -0.24273886
A54: Retten i Odense | H54: 0.1463671875 | I54: =#REF!-H54 ->  | J54: 86 | K54: 11 | L54: 428.4694836 | M54: 31.54709102 | N54: 66.62457364 | O54: -16.25708768 | P54: 60.46511628 | Q54: -9.354005168 | R54: 37.5 | S54: 2.5 | T54: 7.222463525 | U54: 0.4775364751 | V54: 20.8 | W54: -12.5 | X54: 89.18757 | Y54: =#REF!-X54 ->  | Z54: 24.26146 | AA54: =#REF!-Z54 ->  | AB54: 52.27552 | AC54: =#REF!-AB54 ->  | AD54: 42.19547545 | AE54: -3.38033042
A55: Retten i Svendborg | H55: 0.2310023534 | I55: =#REF!-H55 ->  | J55: 100 | K55: 5 | L55: 457.0487805 | M55: 22.2170423 | N55: 39.74894068 | O55: 7.514131217 | P55: 60.52631579 | Q55: -3.922542205 | R55: 0 | S55: 40 | T55: 7.534810135 | U55: 6.665189865 | V55: 13.5 | W55: 4.2 | X55: 46.62935 | Y55: =#REF!-X55 ->  | Z55: 12.16381 | AA55: =#REF!-Z55 ->  | AB55: 26.86367 | AC55: =#REF!-AB55 ->  | AD55: 21.33413431 | AE55: -1.62707476
A56: Retten i Nykøbing F. | H56: 0.2106800886 | I56: =#REF!-H56 ->  | J56: 89 | K56: 5 | L56: 511.1076923 | M56: -120.8854701 | N56: 58.32441823 | O56: -7.095693557 | P56: 75 | Q56: -31.16438356 | R56: 33.33333333 | S56: 66.66666667 | T56: 3.1 | U56: 0.7 | V56: 5.9 | W56: 9.9 | X56: 57.71872 | Y56: =#REF!-X56 ->  | Z56: 15.11914 | AA56: =#REF!-Z56 ->  | AB56: 36.06329 | AC56: =#REF!-AB56 ->  | AD56: 27.75952561 | AE56: -2.07715721
A57: Retten i Næstved | H57: 0.2009634119 | I57: =#REF!-H57 ->  | J57: 175 | K57: -43 | L57: 667.1578947 | M57: -142.4040486 | N57: 90.31952363 | O57: -30.87716122 | P57: 19.60784314 | Q57: 18.48739496 | R57: 42.85714286 | S57: 7.142857143 | T57: 9.143692893 | U57: -0.1436928928 | V57: 8.7 | W57: 11 | X57: 71.95559 | Y57: =#REF!-X57 ->  | Z57: 19.95737 | AA57: =#REF!-Z57 ->  | AB57: 40.2327 | AC57: =#REF!-AB57 ->  | AD57: 33.44395386 | AE57: -1.8131826
A58: Retten i Holbæk | H58: 0.2013305659 | I58: =#REF!-H58 ->  | J58: 129 | K58: -8 | L58: 492.7288136 | M58: -69.53833737 | N58: 79.91707956 | O58: -18.53683265 | P58: 45.90163934 | Q58: 20.76502732 | R58: 0 | S58: 66.66666667 | T58: 10.0927266 | U58: -2.792726598 | V58: 3.7 | W58: 10.4 | X58: 52.84805 | Y58: =#REF!-X58 ->  | Z58: 12.96697 | AA58: =#REF!-Z58 ->  | AB58: 31.22812 | AC58: =#REF!-AB58 ->  | AD58: 24.06054675 | AE58: -0.97442037
A59: Retten i Roskilde | H59: 0.1985138754 | I59: =#REF!-H59 ->  | J59: 161 | K59: -9 | L59: 580.0681818 | M59: 51.66937474 | N59: 78.76805332 | O59: -16.62570169 | P59: 57.69230769 | Q59: -19.23076923 | R59: 0 | T59: 8.041632025 | U59: -0.04163202497 | V59: 8.1 | W59: 11.8 | X59: 81.93291 | Y59: =#REF!-X59 ->  | Z59: 20.991 | AA59: =#REF!-Z59 ->  | AB59: 50.15184 | AC59: =#REF!-AB59 ->  | AD59: 40.35202857 | AE59: -1.77455174
A60: Retten i Hillerød | H60: 0.1966681251 | I60: =#REF!-H60 ->  | J60: 94 | K60: =J30-J60 -> -1 | L60: 535.2297297 | M60: -77.76070318 | N60: 69.77698997 | O60: -20.28169867 | P60: 67.56756757 | Q60: -11.31756757 | R60: 0 | S60: 50 | T60: 10.53646297 | U60: -1.33646297 | V60: 15.7 | W60: 4.4 | X60: 59.93847 | Y60: =#REF!-X60 ->  | Z60: 15.51429 | AA60: =#REF!-Z60 ->  | AB60: 31.81079 | AC60: =#REF!-AB60 ->  | AD60: 28.1485882 | AE60: -1.55328481
A61: Retten i Helsingør | H61: 0.1747076542 | I61: =#REF!-H61 ->  | J61: 91 | K61: 15 | L61: 625.1616766 | M61: -178.3883433 | N61: 80.56226998 | O61: -24.86066188 | P61: 65.71428571 | Q61: -11.86813187 | R61: 33.33333333 | T61: 8.100239201 | U61: 4.999760799 | V61: 11 | W61: 6.9 | X61: 59.49472 | Y61: =#REF!-X61 ->  | Z61: 16.67005 | AA61: =#REF!-Z61 ->  | AB61: 30.65085 | AC61: =#REF!-AB61 ->  | AD61: 27.2421141 | AE61: -2.07074528
A62: Retten i Lyngby | H62: 0.215369746 | I62: =#REF!-H62 ->  | J62: 97 | K62: 6 | L62: 681.4340426 | M62: -206.2082361 | N62: 48.64405845 | O62: -9.064360324 | P62: 92 | Q62: -19.27272727 | R62: 0 | S62: 100 | T62: 13.96319244 | U62: -4.263192438 | V62: 11.4 | W62: 3.9 | X62: 64.72881 | Y62: =#REF!-X62 ->  | Z62: 18.96953 | AA62: =#REF!-Z62 ->  | AB62: 37.24601 | AC62: =#REF!-AB62 ->  | AD62: 32.28066977 | AE62: -1.13857444
A63: Retten i Glostrup | H63: 0.1969059645 | I63: =#REF!-H63 ->  | J63: 204 | K63: -58 | L63: 771.7123746 | M63: -156.8713341 | N63: 86.84454431 | O63: -11.14965342 | P63: 31.86813187 | Q63: 11.88186813 | R63: 0 | S63: 0 | T63: 10.93379043 | U63: 0.8662095749 | V63: 11.7 | W63: 8.9 | X63: 130.88573 | Y63: =#REF!-X63 ->  | Z63: 35.62068 | AA63: =#REF!-Z63 ->  | AB63: 77.10199 | AC63: =#REF!-AB63 ->  | AD63: 61.81072972 | AE63: -5.55186892
A64: Retten på Frederiksberg | H64: 0.174762062 | I64: =#REF!-H64 ->  | J64: 165 | K64: 15 | L64: 581.0327869 | M64: -29.7304613 | N64: 111.6069617 | O64: -25.44746547 | P64: 13.79310345 | Q64: -5.097451274 | R64: 0 | S64: 0 | T64: 13.6 | U64: -1.6 | V64: 6.9 | W64: 11.4 | X64: 85.6221 | Y64: =#REF!-X64 ->  | Z64: 23.5809 | AA64: =#REF!-Z64 ->  | AB64: 50.499 | AC64: =#REF!-AB64 ->  | AD64: 41.59169201 | AE64: -1.18278784
A65: Københavns Byret | H65: 0.2193251818 | I65: =#REF!-H65 ->  | J65: 149 | K65: -53 | L65: 545 | M65: -32.2007722 | N65: 119.5509634 | O65: -41.42760866 | P65: 31.50684932 | Q65: 38.49315068 | R65: 12.5 | T65: 9.68431915 | U65: -1.58431915 | V65: 7 | W65: 2.6 | X65: 193.76867 | Y65: =#REF!-X65 ->  | Z65: 57.94189 | AA65: =#REF!-Z65 ->  | AB65: 116.4215 | AC65: =#REF!-AB65 ->  | AD65: 102.5840725 | AE65: 0.40830193
A66: Retten på Bornholm | H66: 0.3437150824 | I66: =#REF!-H66 ->  | J66: 37 | K66: 9 | L66: 359.8181818 | M66: -68.46524064 | N66: 39.08944028 | O66: -11.51479662 | P66: 100 | Q66: -5.263157895 | R66: 999 | S66: -899 | T66: 6.887992143 | U66: 0.3120078568 | V66: 6.4 | W66: 0 | X66: 15.32718 | Y66: =#REF!-X66 ->  | Z66: 3.68583 | AA66: =#REF!-Z66 ->  | AB66: 8.36564 | AC66: =#REF!-AB66 ->  | AD66: 7.34 | AE66: -0.03
B67: 0 | C67: 0 | D67: 0 | E67: 0 | F67: 0 | G67: 0 | H67: 0 | I67: 0 | J67: 0 | K67: 0 | L67: 0 | M67: 0 | N67: 0 | O67: 0 | P67: 0 | Q67: 0 | R67: 0 | S67: 0 | T67: 0 | U67: 0 | V67: 0 | W67: 0 | X67: 0 | Y67: 0 | Z67: 0 | AA67: 0 | AB67: 0 | AC67: 0 | AD67: 0 | AE67: 0
